Workbook

Sheet constant L
B1: FRICTION | C1: =TRUE -> TRUE
S2: vxrelative = vx-omega*y | V2: L-I*omega+mass*x*vy-mass*y*vx
B3: MASS | E3: 3 | S3: vyrelative=vy-omega*x | V3: domega/dt=mass*(x*dvy/dt-ydvx/et)/inertia
B5: OMEGA | E5: 4 | F5: =-omega0 -> -4
B7: INERTIA | E7: 5000 | Y7: ;+Yom∙dω/dt²-Xom∙dω/dt
B9: V0 | C9: =-exactome*1 -> 4
AM10: TEL_AKTINA | AN10: 1.001853603 | AO10: -4.000015224 | AP10: TEL_OMEGA
B11: L0 | C11: =INERTIA*exactome-mazalazo*1*v0 -> -20012
B13: friction | E13: 3
K14: 159
K15: MOVE OBJECT
AA16: =ISERR(xtomi11) -> FALSE
U18: =AX -> -2.706358523 | V18: =AY -> -1.646357955 | X18: vom^2 | Y18: =VXOM^2+VYOM^2 -> 2241.171619 | AA18: =AXOM^2+AYOM^2 -> 30255.17616
K19: Deltax = 6 * Pi / Abs(omega0) / ARFOR | U19: ACCELERATION | X19: vom^2/R | Y19: =Y18/aktistomon -> 174.5564021 | Z19: R =Vom^2/Aom | AA19: =IF(AA18<>0,(VXOM^2+VYOM^2)/SQRT(AXOM^2+AYOM^2),10000000) -> 12.88472849
J20: DT | K20: =6*PI()/ABS(exactome)/250 -> 0.01884955592 | U20: =X -> 6.931465864 | V20: =Y -> -10.95017176 | AA20: =IF(AA19<aktistomon/10,Y19*1/SQRT(1+klisia11^2),AXOM/10) -> 6.078722338 | AB20: =IF(AA19<aktistomon/10,Y19*klisia11/SQRT(1+klisia11^2),AYOM/10) -> 16.29726653
U21: =X+AX -> 4.22510734 | V21: =Y+AY -> -12.59652972 | AA21: =AXOM -> 60.78722338 | AB21: =AYOM -> 162.9726653
U22: =-1/20*V18+18/20*U18+U20 -> 4.57806109 | V22: =1/20*U18+18/20*V18+V20 -> -12.56721185 | AA22: =IF(ISERR(xtomi11),0, SIGN(xtomi11-XOM)*ABS(AA20)) -> 6.078722338 | AB22: =IF(ISERR(ytomi11),0,SIGN(ytomi11-YOM)*ABS(AB20)) -> 16.29726653 | AU22: xA1 = THeseis2rotx(XTYPHMA): xa2 = THeseis2rotx(XTYPHMA - 1): xa3 = THeseis2rotx(XTYPHMA - 2)
U23: =1/20*V18+18/20*U18+U20 -> 4.413425295 | V23: =-1/20*U18+18/20*V18+V20 -> -12.296576 | Y23: =VXOM -> 46.00277129 | Z23: =VYOM -> -11.17661187 | AA23: =AA22 -> 6.078722338 | AB23: =AB22 -> 16.29726653 | AH23: xmes11 | AU23: Ya1 = THeseis2roty(XTYPHMA): ya2 = THeseis2roty(XTYPHMA - 1): ya3 = THeseis2roty(XTYPHMA - 2)
U24: =U21 -> 4.22510734 | V24: =V21 -> -12.59652972 | Y24: VELOCITY ROTATED | AA24: ACCELERATION ROTATED | AE24: =AE25-1 -> 157 | AF24: =VLOOKUP(AE24,B40:F290,4,FALSE) -> -3.239074342 | AG24: =VLOOKUP(AE24,B40:G290,5,FALSE) -> -12.33167852 | AH24: =(xa_1+xa_2)/2 -> -1.981092121 | AI24: =(ya_1+ya_2)/2 -> -12.74652557 | AU24: xmes1 = 0.5 * (xA1 + xa2): xmes2 = 0.5 * (xa2 + xa3)
Y25: =XOM -> -1.553290019 | Z25: =YOM -> -12.86618711 | AA25: =XOM -> -1.553290019 | AB25: =YOM -> -12.86618711 | AE25: =AE26-1 -> 158 | AF25: =VLOOKUP(AE25,B41:F291,4,FALSE) -> -2.408894224 | AG25: =VLOOKUP(AE25,B41:G291,5,FALSE) -> -12.62686402 | AH25: =(xa_2+xa_3)/2 -> -2.823984283 | AI25: =(ya_2+ya_3)/2 -> -12.47927127 | AU25: ymes1 = 0.5 * (Ya1 + ya2): ymes2 = 0.5 * (ya2 + ya3)
N26: =FIXED(AKT_KAMP,1,) -> 19,6 | U26: =X -> 6.931465864 | V26: =Y -> -10.95017176 | W26: CURRENT XY | Y26: =XOM+VXOM -> 44.44948127 | Z26: =YOM+VYOM -> -24.04279898 | AA26: =XOM+AA23 -> 4.525432319 | AB26: =YOM+AB23 -> 3.431079418 | AE26: =E33 -> 159 | AF26: =VLOOKUP(AE26,B42:F292,4,FALSE) -> -1.553290019 | AG26: =VLOOKUP(AE26,B42:G292,5,FALSE) -> -12.86618711 | AH26: klisia11 | AI26: =-(xa_2-xa_1)/(ya_2-ya_1) -> 3.575100994 | AU26: 'èÝëù íá âñù ôçí ôïìÞ ôçò êáèÝôïõ ðÜíù óôá xmes1,ymes1, xmes2,ymes2
E27: =CELL("row",E33) -> 33 | O27: =ABS(FIXED(O28,1)) -> 0 | P27: =ABS(FIXED(P28,1)) -> 7 | Q27: 24.3 | R27: 1 | U27: =X -> 6.931465864 | V27: =V26 -> -10.95017176 | Y27: =-1/20*Z23+18/20*Y23+Y25 -> 40.40803474 | Z27: =1/20*Y23+18/20*Z23+Z25 -> -20.62499923 | AA27: =-1/20*AB23+18/20*AA23+AA25 -> 3.102696759 | AB27: =1/20*AA23+18/20*AB23+AB25 -> 2.105288882 | AH27: klisia22 | AI27: =-(xa_3-xa_2)/(ya_3-ya_2) -> 2.81240137 | AU27: If ya2 - Ya1 <> 0 Then
M28: =MAX(N28:R28) -> 24.29458694 | N28: =AKT_KAMP -> 19.63765151 | O28: =ABS(O30) -> 0 | P28: =ABS(P30) -> 7.035228813 | Q28: 24.29458694 | R28: 1 | S28: =FIXED(M28,2,FALSE) -> 24,29 | U28: =VX -> -0.7438805577 | V28: =VY -> -7.077598274 | W28: VELOCITY | Y28: =1/20*Z23+18/20*Y23+Y25 -> 39.29037355 | Z28: =-1/20*Y23+18/20*Z23+Z25 -> -25.22527636 | AA28: =1/20*AB23+18/20*AA23+AA25 -> 4.732423412 | AB28: =-1/20*AA23+18/20*AB23+AB25 -> 1.497416648 | AF28: xtomi11 | AG28: =((ymess11-ymess22)+klisia22*xmess22-klisia11*xmess11)/(klisia22-klisia11) -> 1.477419307 | AH28: ytomi11 | AI28: =ymess11+klisia11*(xtomi11-xmess11) -> -0.3819979207 | AU28: klisia1 = -(xa2 - xA1) / (ya2 - Ya1): klisia2 = -(xa3 - xa2) / (ya3 - ya2)
O29: minxlab | P29: maxlab | Q29: minylab | R29: maxylab | S29: =-S28 -> -24.29 | U29: VX | V29: VY | Y29: =Y26 -> 44.44948127 | Z29: =Z26 -> -24.04279898 | AA29: =AA26 -> 4.525432319 | AB29: =AB26 -> 3.431079418 | AF29: aktistomon | AG29: =IF(AH29,SQRT((xtomi11-xmess22)^2+(ytomi11-ymess22)^2),1000000) -> 12.83924045 | AH29: =NOT(AI29) -> TRUE | AI29: =AND(ABS(AF25-AF24)<0.0000000001,ABS(AF25-AF26)<0.0000000001) -> FALSE | AU29: atnklisia1 = Pi / 2
O30: =MIN(C40:C290) -> 0 | P30: =MAX(C40:C290) -> 7.035228813 | Q30: =MIN(D40:D290) -> -24.29458694 | R30: =MAX(D40:D290) -> 1 | U30: =X -> 6.931465864 | V30: =Y -> -10.95017176 | AU30: End If
I31: exacome(kkk) = (Ltotal - mass * (ThesiY(kkk) * taxYx(kkk) - thesiX(kkk) * taxYy(kkk)) * epilogi - mass * Radius * omega0 * (1 - epilogi)) / Inertia 'ç ôéìÞ ôçò ù ìå áñ÷Þ äéáôÞñçóçò | O31: minxrot | P31: maxxrot | Q31: miniyro | R31: maxyrto | S31: =MAX(N33:R33) -> 24.1 | U31: =X+VX -> 6.187585306 | V31: =Y+VY -> -18.02777004 | AU31: If Abs(xa2 - xA1) < 0.000000000000001 And Abs(xa2 - xa3) < 0.000000000000001 Then
F32: X | G32: Y | H32: VX | I32: VY | J32: AX | K32: AY | M32: Ltotal = Inertai * omEGa - mass * y(3) * y(0) + mass * y(2) * y(1) | O32: =MIN(E40:E290) -> -21.50822803 | P32: =MAX(E40:E290) -> 15.77110139 | Q32: =MIN(F40:F290) -> -24.07882818 | R32: =MAX(F40:F290) -> 18.52891286 | S32: =-S31 -> -24.1 | U32: =-1/20*V28+18/20*U28+U30 -> 6.615853275 | V32: =1/20*U28+18/20*V28+V30 -> -17.35720424 | AU32: aktistomon = 10000
E33: =VLOOKUP(1,A40:R288,2,FALSE) -> 159 | F33: =VLOOKUP(1,A40:AJ288,34,FALSE) -> 6.931465864 | G33: =VLOOKUP(1,A40:AQ288,35,FALSE) -> -10.95017176 | H33: =VLOOKUP(1,A40:U288,7,FALSE) -> -0.7438805577 | I33: =VLOOKUP(1,A40:U288,8,FALSE) -> -7.077598274 | J33: =VLOOKUP(1,A40:U288,10,FALSE) -> -2.706358523 | K33: =VLOOKUP(1,A40:U288,11,FALSE) -> -1.646357955 | M33: L-I*omega+mass*x*vy-mass*y*vx | N33: =N27 -> 0 | O33: =ABS(FIXED(O32,1)) -> 21.5 | P33: =ABS(FIXED(P32,1)) -> 15.8 | Q33: 24.1 | R33: 18.5 | U33: =1/20*V28+18/20*U28+U30 -> 5.908093448 | V33: =-1/20*U28+18/20*V28+V30 -> -17.28281618 | AU33: AKTINA_RELATIVE1 = aktistomon
E34: =VLOOKUP(1,A40:R289,5,FALSE) -> -1.553290019 | F34: =VLOOKUP(1,A40:S289,6,FALSE) -> -12.86618711 | G34: =VX*COS(F)+VY*SIN(F)+YOM*OMEGA -> 46.00277129 | H34: =-VX*SIN(F)+VY*COS(F)-XOM*OMEGA -> -11.17661187 | I34: =AX*COS(F)+AY*SIN(F)+2*VYOM*OMEGA+XOM*OMEGA^2+YOM*DOMEGADT -> 60.78722338 | J34: =-AX*SIN(F)+AY*COS(F)-2*VXOM*OMEGA+YOM*OMEGA^2-XOM*DOMEGADT -> 162.9726653 | K34: =VLOOKUP(1,A40:X289,15,FALSE) -> -11.88189362 | L34: =VLOOKUP(1,A40:Y289,12,FALSE) -> -3.96807775 | M34: =VLOOKUP(1,A40:Z289,14,FALSE) -> 0.02462805879 | U34: =U31 -> 6.187585306 | V34: =V31 -> -18.02777004 | AM34: xmes1 = 0.5 * (xA1 + xa2): xmes2 = 0.5 * (xa2 + xa3) | AU34: Exit Function
E35: XOM | F35: YOM | G35: VXOM | H35: VYOM | I35: AXOM | J35: AYOM | K35: F | L35: OMEGA | M35: DOMEGADT | Q35: Vxom=vx∙cosφ+vy∙sinφ+Yom∙ω | AM35: ymes1 = 0.5 * (Ya1 + ya2): ymes2 = 0.5 * (ya2 + ya3) | AU35: End If
A36: =SUM(A40:A289) -> 1 | B36: =E33+40 -> 199 | Q36: Vyom=-vx∙sinφ+vy∙cosφ-Xom∙ω | U36: Axom=ax∙cosφ+ay∙sinφ+2Vyom∙ω+Xom∙ω²+Yom∙dω/dt | AH36: X=XOM*COSF-YOM*SINF | AU36: If XTYPHMA > 4 Then
H37: taxyy | M37: DOMEGADT=MASS*(Y*AX-X*AY)/INERTIA | U37: Ayom=-ax∙sinφ+ay∙cosφ-2Vxom∙ω+Yom∙ω²-Xom∙dω/dt | Z37: =VLOOKUP(1,A40:AG289,17,FALSE) -> -1037.483238 | AH37: Y=XOM*SINF+YOM*COSF | AM37: XA1 | AU37: xa11 = THeseis2rotx(XTYPHMA - 2): xa22 = THeseis2rotx(XTYPHMA - 3): xa33 = THeseis2rotx(XTYPHMA - 4)
A38: =SUM(A40:A289) -> 1 | B38: kkk | C38: THESIX(K) | D38: THESIY(K) | E38: THESIXOM | F38: THESIYOM | G38: taxyx(kkk) | H38: taxyy | I38: omeg | J38: -mit*vxr/v | K38: -mit*vyr/v | L38: omega | M38: domega/dt | N38: domega/dt=mass*(x*dvy/dt-ydvx/et)/inertia | O38: φ | P38: TAXXOM | Q38: ergo trivis | R38: ergofygoke | S38: AXOM | T38: AYOM | U38: TAXYOM | Y38: RX | Z38: =VLOOKUP(1,A40:AG290,31,FALSE) -> -12.59868119 | AA38: RY | AB38: =VLOOKUP(1,A40:AG290,32,FALSE) -> -8.897087392 | AC38: AKT_KAMP | AD38: =VLOOKUP(1,A40:AI290,33,FALSE) -> 19.63765151 | AU38: Ya11 = THeseis2roty(XTYPHMA - 2): ya22 = THeseis2roty(XTYPHMA - 3): ya33 = THeseis2roty(XTYPHMA - 4)
A39: 1 | B39: =A39+1 -> 2 | C39: =B39+1 -> 3 | D39: =C39+1 -> 4 | E39: 5 | F39: 6 | G39: 7 | H39: 8 | I39: 9 | J39: =I39+1 -> 10 | K39: 11 | L39: 12 | M39: 13 | N39: 14 | O39: 15 | P39: 16 | Q39: 17 | R39: 18 | S39: 19 | T39: 20 | U39: 21 | V39: CIRCLE | Y39: XMESI1 | Z39: XMESI2 | AA39: YMESI1 | AB39: YMESI2 | AC39: KLISIA1 | AD39: KLISIA2 | AE39: XTOMII11 | AF39: YTOMI11 | AG39: AKTINATOMON | AH39: X TLEIKO | AI39: Y_TELIKO | AJ39: TEL_F | AL39: If exacome(foreSxtypo) > omeag0 / 10 And exacome(foreSxtypo + 1) < omega0 / 10 Then | AM39: X | AO39: circle | AR39: TIME | AU39: xmes11 = 0.5 * (xa11 + xa22): xmes22 = 0.5 * (xa22 + xa33)
A40: =IF(B40=XRON,1,0) -> 0 | B40: 0 | C40: 0 | D40: 1 | E40: 0 | F40: 1 | G40: 4 | H40: 0 | I40: =(L0+mazalazo*(D40*G40-C40*H40))/INERTIA -> -4 | J40: =-mew*(G40+L40*D40)/SQRT((G40+L40*D40)^2+(H40-L40*C40)^2) -> -3 | K40: =-mew*(G40-C40*L40)/SQRT((G40+D40*L40)^2+(I40-L40*C40)^2) -> -2.121320344 | L40: 0 | M40: -0.04364249772 | N40: =mazalazo*(D40*J40-C40*K40)/INERTIA -> -0.0018 | O40: 0 | P40: 0 | Q40: 0 | R40: 0 | S40: =J40*COS(O40)+K40*SIN(O40)+2*U40*L40^2-F40*M40 -> -2.956357502 | T40: =-J40*SIN(O40)+K40*COS(O40)-2*P40*L40^2-C40*N40 -> -2.121320344 | U40: =-G40*SIN(O40)+H40*COS(O40)-E40*L40 -> 0 | V40: =0 -> 0 | W40: =IF(ERGOTRIVIS<>0,RX+AKT_KAMP*COS(V40),TEL_AKTINA*COS(V40)) -> 7.038970314 | X40: =IF(ERGOTRIVIS<>0,RY+AKT_KAMP*SIN(V40),TEL_AKTINA*SIN(V40)) -> -8.897087392 | AH40: =C40 -> 0 | AI40: =D40 -> 1 | AO40: =V40 -> 0 | AP40: =xtomi11+aktistomon*COS(AO40) -> 14.31665976 | AQ40: =ytomi11+aktistomon*SIN(AO40) -> -0.3819979207 | AR40: =B40*DT -> 0 | AU40: ymes11 = 0.5 * (Ya11 + ya22): ymes22 = 0.5 * (ya22 + ya33)
A41: 0 | B41: 1 | C41: 0.07542584012 | D41: 0.9990103128 | E41: 0.07542584012 | F41: 0.9990103128 | G41: 3.988631941 | H41: -0.05499386649 | I41: -4.000006701 | J41: =-mew*(G41+L41*D41)/SQRT((G41+L41*D41)^2+(H41-L41*C41)^2) -> 0.09013808584 | K41: =-mew*(G41-C41*L41)/SQRT((G41+D41*L41)^2+(I41-L41*C41)^2) -> -3.480240023 | L41: -4.000006701 | M41: -0.04364249772 | N41: =IF(Q41<>0,mazalazo*(D41*J41-C41*K41)/INERTIA,0) -> 0.000211529343 | O41: 3.676009428e-21 | P41: -4.003463949 | Q41: -0.6855143177 | R41: 0 | S41: =IF(Q41<>0,J41*COS(O41)+K41*SIN(O41)+2*U41*L41+E41*L41^2+F41*N41,0) -> -0.6765164104 | T41: =IF(Q41<>0,-J41*SIN(O41)+K41*COS(O41)-2*P41*L41+F41*L41^2-E41*N41,0) -> -19.52380266 | U41: =-G41*SIN(O41)+H41*COS(O41)-E41*L41 -> 0.2467099994 | V41: =2*PI()/50*B41 -> 0.1256637061 | W41: 6.884121567 | X41: -6.435837028 | AH41: =IF(Q41<>0,C41,SIGN(C41)*TEL_AKTINA*COS(AJ41)) -> 0.07542584012 | AI41: =IF(Q41<>0,D41,TEL_AKTINA*SIN(AJ41)) -> 0.9990103128 | AJ41: =IF(Q41<>0,O41,AJ40+TEL_OMEGA*DT) -> 3.676009428e-21 | AK41: =(C41-C40)*J41+I40(D41-D40)*K41 ->  | AO41: =V41 -> 0.1256637061 | AP41: 14.21541851 | AQ41: 1.227185602 | AR41: 0.01884955592 | AU41: If ya22 - Ya11 <> 0 Then
A42: 0 | B42: 2 | C42: 0.1506190886 | D42: 0.9974408414 | E42: 0.07505708632 | F42: 1.005952671 | G42: 3.989353976 | H42: -0.1115359926 | I42: -4.000002434 | J42: =-mew*(G42+L42*D42)/SQRT((G42+L42*D42)^2+(H42-L42*C42)^2) -> 0.002516496638 | K42: =-mew*(G42-C42*L42)/SQRT((G42+D42*L42)^2+(I42-L42*C42)^2) -> -4.054565927 | L42: -4.000002434 | M42: -0.04364249772 | N42: 0.0003679230487 | O42: -0.07539826956 | P42: -4.061204797 | Q42: -1.387389206 | R42: 0.4217847214 | S42: =IF(Q42<>0,J42*COS(O42)+K42*SIN(O42)+2*U42*L42+E42*L42^2+F42*N42,0) -> -2.406909549 | T42: =IF(Q42<>0,-J42*SIN(O42)+K42*COS(O42)-2*P42*L42+F42*L42^2-E42*N42,0) -> -20.43728037 | U42: =IF(Q42<>0,-G42*SIN(O42)+H42*COS(O42)-E42*L42,0) -> 0.4895148942 | V42: =2*PI()/50*B42 -> 0.2513274123 | W42: 6.422017381 | X42: -4.013402054 | Y42: =(C42+C41)/2 -> 0.1130224644 | Z42: =(C41+C40)/2 -> 0.03771292006 | AA42: =(D42+D41)/2 -> 0.9982255771 | AB42: =(D41+D40)/2 -> 0.9995051564 | AC42: =-(C41-C42)/(D41-D42) -> 47.90992083 | AD42: =-(C40-C41)/(D40-D41) -> 76.21179615 | AE42: =((AA42-AB42)+AD42*Z42-AC42*Y42)/(AD42-AC42) -> -0.08981763555 | AF42: =AA42+AC42*(AE42-Y42) -> -8.719827551 | AG42: =SQRT((AE42-Z42)^2+(AF42-AB42)^2) -> 9.720169357 | AH42: =IF(Q42<>0,C42,E42*COS(AJ42)-F42*SIN(AJ42)) -> 0.1506190886 | AI42: =IF(Q42<>0,D42,E42*SIN(AJ42)+F42*COS(AJ42)) -> 0.9974408414 | AJ42: -0.07539826956 | AL42: =AND(ABS(L42)>ABS(exactome)/10,ABS(L43)<ABS(exactome)/10) -> FALSE | AO42: =V42 -> 0.2513274123 | AP42: 13.91329141 | AQ42: 2.810991339 | AR42: 0.03769911184 | AU42: klisia11 = -(xa22 - xa11) / (ya22 - Ya11): klisia22 = -(xa33 - xa22) / (ya33 - ya22)
A43: 0 | B43: 3 | C43: 0.2258143199 | D43: 0.9948054871 | E43: 0.07380650583 | F43: 1.017439268 | G43: 3.988975944 | H43: -0.1680829337 | I43: -3.999996274 | J43: =IF(Q43<>0,-mew*(G43+L43*D43)/SQRT((G43+L43*D43)^2+(H43-L43*C43)^2),-mew*L43^2*AH43) -> -0.03981445375 | K43: =IF(Q43<>0,-mew*(G43-C43*L43)/SQRT((G43+D43*L43)^2+(I43-L43*C43)^2),-mew*L43^2*AI43) -> -4.739379176 | L43: -3.999996274 | M43: -0.04364249772 | N43: 0.0006183672291 | O43: -0.150796423 | P43: -4.170548165 | Q43: -2.115782785 | R43: 0.9751197242 | S43: -3.97222166 | T43: -21.77697858 | U43: =IF(Q43<>0,-G43*SIN(O43)+H43*COS(O43)-E43*L43,0) -> 0.7282964272 | V43: 0.3769911184 | W43: 5.659945416 | X43: -1.667985714 | Y43: =(C43+C42)/2 -> 0.1882167043 | Z43: =(C42+C41)/2 -> 0.1130224644 | AA43: =(D43+D42)/2 -> 0.9961231643 | AB43: =(D42+D41)/2 -> 0.9982255771 | AC43: =-(C42-C43)/(D42-D43) -> 28.53325257 | AD43: =-(C41-C42)/(D41-D42) -> 47.90992083 | AE43: =((AA43-AB43)+AD43*Z43-AC43*Y43)/(AD43-AC43) -> 0.002186141893 | AF43: =AA43+AC43*(AE43-Y43) -> -4.311933858 | AG43: =SQRT((AE43-Z43)^2+(AF43-AB43)^2) -> 5.311316025 | AH43: =IF(Q43<>0,C43,E43*COS(AJ43)-F43*SIN(AJ43)) -> 0.2258143199 | AI43: =IF(Q43<>0,D43,E43*SIN(AJ43)+F43*COS(AJ43)) -> 0.9948054871 | AJ43: -0.150796423 | AL43: FALSE | AM43: =ABS(exactome)/10 -> 0.4 | AO43: 0.3769911184 | AP43: 13.41504318 | AQ43: 4.344441728 | AR43: 0.05654866776 | AU43: If Abs(klisia22 - klisia11) > 0.000001 Then
A44: 0 | B44: 4 | C44: 0.3009956819 | D44: 0.9911043186 | E44: 0.07105292036 | F44: 1.033362305 | G44: 3.987913469 | H44: -0.2246213493 | I44: -3.999987971 | J44: -0.07199007953 | K44: -5.570485643 | L44: -3.999987971 | M44: -0.04364249772 | N44: 0.0009632054674 | O44: -0.2261944199 | P44: -4.330168566 | Q44: -2.879595146 | R44: 1.74925758 | S44: -5.360463748 | T44: -23.55234888 | U44: 0.9596826855 | V44: 0.5026548246 | W44: 4.609924003 | X44: 0.5634233733 | Y44: 0.2634050009 | Z44: 0.1882167043 | AA44: 0.9929549028 | AB44: 0.9961231643 | AC44: 20.31287212 | AD44: 28.53325257 | AE44: 0.002038153848 | AF44: -4.316156438 | AG44: 5.315541085 | AH44: 0.3009956819 | AI44: =IF(Q44<>0,D44,E44*SIN(AJ44)+F44*COS(AJ44)) -> 0.9911043186 | AJ44: -0.2261944199 | AL44: FALSE | AO44: 0.5026548246 | AP44: 12.72853148 | AQ44: 5.80335334 | AR44: 0.07539822369 | AU44: xtomi111 = ((ymes11 - ymes22) + klisia22 * xmes22 - klisia11 * xmes11) / (klisia22 - klisia11)
A45: 0 | B45: 5 | C45: 0.3761515727 | D45: 0.9863375461 | E45: 0.06619124784 | F45: 1.053551365 | G45: 3.986285119 | H45: -0.2811463567 | I45: -3.999977454 | J45: -0.1003740074 | K45: -6.600370595 | L45: -3.999977454 | M45: -0.04364249772 | N45: 0.001430242276 | O45: -0.3015922187 | P45: -4.538488312 | Q45: -3.686379688 | R45: 2.744411314 | S45: -6.517828196 | T45: -25.78344108 | U45: 1.180396618 | V45: 0.6283185307 | W45: 3.288512606 | X45: 2.645634555 | Y45: 0.3385736273 | Z45: 0.2634050009 | AA45: 0.9887209324 | AB45: 0.9929549028 | AC45: 15.76662004 | AD45: 20.31287212 | AE45: 0.001785293112 | AF45: -4.321292766 | AG45: 5.320683523 | AH45: 0.3761515727 | AI45: 0.9863375461 | AJ45: -0.3015922187 | AL45: FALSE | AO45: 0.6283185307 | AP45: 11.86458303 | AQ45: 7.164718268 | AR45: 0.09424777961 | AU45: ytomi111 = ymes11 + klisia11 * (xtomi111 - xmes11) 'âñßóêù ôá óçìåßá ôïìÞò ôùí êáèÝôùí
A46: 0 | B46: 6 | C46: 0.451271852 | D46: 0.9805054588 | E46: 0.05863526926 | F46: 1.07777509 | G46: 3.984140593 | H46: -0.3376541606 | I46: -3.999964693 | J46: -0.1269530481 | K46: -7.909577092 | L46: -3.999964693 | M46: -0.04364249772 | N46: 0.002066934808 | O46: -0.3769897768 | P46: -4.793464039 | Q46: -4.542397472 | R46: 3.960823814 | S46: -7.363872522 | T46: -28.50427508 | U46: 1.387250945 | V46: 0.7539822369 | W46: 1.716550672 | X46: 4.545810116 | Y46: 0.4137117123 | Z46: 0.3385736273 | AA46: 0.9834215024 | AB46: 0.9887209324 | AC46: 12.88051346 | AD46: 15.76662004 | AE46: 0.001400858666 | AF46: -4.327353998 | AG46: 5.326756812 | AH46: 0.451271852 | AI46: 0.9805054588 | AJ46: -0.3769897768 | AL46: FALSE | AO46: 0.7539822369 | AP46: 10.8368228 | AQ46: 8.407066973 | AR46: 0.1130973355 | AU46: AKTISTOMON1 = Sqr((xtomi111 - xmes22) ^ 2 + (ytomi111 - ymes22) ^ 2) 'õðïëïãßóù ôçíáôêßíáêáìðõëïôçôáò
A47: 0 | B47: 7 | C47: 0.526347053 | D47: 0.9736084145 | E47: 0.04782224761 | F47: 1.105743007 | G47: 3.981505279 | H47: -0.3941412169 | I47: -3.999949671 | J47: -0.1525366265 | K47: -9.62812275 | L47: -3.999949671 | M47: -0.04364249772 | N47: 0.002951533856 | O47: -0.4523870518 | P47: -5.092557482 | Q47: -5.452781506 | R47: 5.3987737 | S47: -7.777361189 | T47: -31.77491515 | U47: 1.57716404 | V47: 0.879645943 | W47: -0.08117102034 | X47: 6.233983153 | Y47: 0.4888094525 | Z47: 0.4137117123 | AA47: 0.9770569366 | AB47: 0.9834215024 | AC47: 10.88512674 | AD47: 12.88051346 | AE47: 0.0008529038628 | AF47: -4.334411937 | AG47: 5.333835851 | AH47: =IF(Q47<>0,C47,(E47*COS(AJ47)-F47*SIN(AJ47)+C47)/2) -> 0.526347053 | AI47: =IF(Q47<>0,D47,(E47*SIN(AJ47)+F47*COS(AJ47)+D47)/2) -> 0.9736084145 | AJ47: -0.4523870518 | AL47: FALSE | AO47: 0.879645943 | AP47: 9.661459182 | AQ47: 9.510806875 | AR47: 0.1319468915 | AU47: Else
A48: 0 | B48: 8 | C48: 0.6013680747 | D48: 0.9656468371 | E48: 0.03321786405 | F48: 1.137107712 | G48: 3.978393882 | H48: -0.4506040588 | I48: -3.999932379 | J48: -0.1775125503 | K48: -11.97936576 | L48: -3.999932379 | M48: -0.04364249772 | N48: 0.004219556214 | O48: -0.5277840009 | P48: -5.43273986 | Q48: -6.421756138 | R48: 7.058578345 | S48: -7.561247399 | T48: -35.70689105 | U48: 1.747180214 | V48: 1.005309649 | W48: -2.076301325 | X48: 7.683530168 | Y48: 0.5638575639 | Z48: 0.4888094525 | AA48: 0.9696276258 | AB48: 0.9770569366 | AC48: 9.422884166 | AD48: 10.88512674 | AE48: 0.0001087497777 | AF48: -4.342512148 | AG48: 5.341970014 | AH48: =IF(Q48<>0,C48,(E48*COS(AJ48)-F48*SIN(AJ48)+C48)/2) -> 0.6013680747 | AI48: =IF(Q48<>0,D48,(E48*SIN(AJ48)+F48*COS(AJ48)+D48)/2) -> 0.9656468371 | AJ48: -0.5277840009 | AL48: FALSE | AO48: 1.005309649 | AP48: 8.357028369 | AQ48: 10.45853134 | AR48: 0.1507964474 | AU48: AKTISTOMON1 = 0 'õðïëïãßóù ôçíáôêßíáêáìðõëïôçôáò
A49: 0 | B49: 9 | C49: 0.6763260368 | D49: 0.9566212154 | E49: 0.01432112788 | F49: 1.17146744 | G49: 3.974815712 | H49: -0.5070392479 | I49: -3.99991281 | J49: -0.2020881774 | K49: -15.37830251 | L49: -3.99991281 | M49: -0.04364249772 | N49: 0.006124454732 | O49: -0.6031805811 | P49: -5.810507741 | Q49: -7.452870264 | R49: 8.940595612 | S49: -6.362153428 | T49: -40.5196908 | U49: 1.894490899 | V49: 1.130973355 | W49: -4.237375847 | X49: 8.87159094 | Y49: 0.6388470558 | Z49: 0.5638575639 | AA49: 0.9611340263 | AB49: 0.9696276258 | AC49: 8.305019303 | AD49: 9.422884166 | AE49: -0.0008643428563 | AF49: -4.351681488 | AG49: 5.351190663 | AH49: 0.6763260368 | AI49: 0.9566212154 | AJ49: -0.6031805811 | AL49: FALSE | AO49: 1.130973355 | AP49: 6.944102011 | AQ49: 11.23529417 | AR49: 0.1696460033 | AU49: End If
A50: 0 | B50: 10 | C50: 0.7512122041 | D50: 0.946532103 | E50: -0.009330865536 | F50: 1.208369038 | G50: 3.970777089 | H50: -0.5634433593 | I50: -3.99989096 | J50: -0.2263834865 | K50: -20.67585421 | L50: -3.99989096 | M50: -0.04364249772 | N50: 0.009190604863 | O50: -0.6785767494 | P50: -6.221905065 | Q50: -8.549219471 | R50: 11.04522493 | S50: -3.467678966 | T50: -46.67851235 | U50: 2.016455596 | V50: 1.256637061 | W50: -6.530313148 | X50: 9.77942904 | Y50: 0.7137691205 | Z50: 0.6388470558 | AA50: 0.9515766592 | AB50: 0.9611340263 | AC50: 7.422473294 | AD50: 8.305019303 | AE50: -0.002099009475 | AF50: -4.361935418 | AG50: 5.361518457 | AH50: 0.7512122041 | AI50: 0.946532103 | AJ50: -0.6785767494 | AL50: FALSE | AO50: 1.256637061 | AP50: 5.444962802 | AQ50: 11.82884538 | AR50: 0.1884955592 | AU50: End If
A51: 0 | B51: 11 | C51: 0.8260179421 | D51: 0.9353801179 | E51: -0.03815839586 | F51: 1.247311325 | G51: 3.96628255 | H51: -0.6198129757 | I51: -3.999866825 | J51: -0.2504721078 | K51: -29.82298221 | L51: -3.999866825 | M51: -0.04364249772 | N51: 0.01464001906 | O51: -0.7539724628 | P51: -6.662549536 | Q51: -9.713643927 | R51: 13.37290803 | S51: 2.755787892 | T51: -55.25408685 | U51: 2.110622118 | V51: 1.382300768 | W51: -8.918952239 | X51: 10.39272732 | Y51: 0.7886150731 | Z51: 0.7137691205 | AA51: 0.9409561105 | AB51: 0.9515766592 | AC51: 6.707840564 | AD51: 7.422473294 | AE51: -0.003627724549 | AF51: -4.373282264 | AG51: 5.372967596 | AH51: 0.8260179421 | AI51: 0.9353801179 | AJ51: -0.7539724628 | AL51: FALSE | AO51: 1.382300768 | AP51: 3.883253061 | AQ51: 12.22982428 | AR51: 0.2073451151
A52: 0 | B52: 12 | C52: 0.9007346907 | D52: 0.9231659425 | E52: -0.07253484353 | F52: 1.287748825 | G52: 3.961335512 | H52: -0.6761446858 | I52: -3.999840402 | J52: -0.2744012972 | K52: -47.32629713 | L52: -3.999840402 | M52: -0.04364249772 | N52: 0.0254250718 | O52: -0.8293676781 | P52: -7.127662639 | Q52: -10.94889563 | R52: 15.92412936 | S52: 16.19304523 | T52: -68.57866421 | U52: 2.174745845 | V52: 1.507964474 | W52: -11.36562285 | X52: 10.7018137 | Y52: 0.8633763164 | Z52: 0.7886150731 | AA52: 0.9292730302 | AB52: 0.9409561105 | AC52: 6.117215931 | AD52: 6.707840564 | AE52: -0.005482772881 | AF52: -4.385725633 | AG52: 5.385548234 | AH52: 0.9007346907 | AI52: 0.9231659425 | AJ52: -0.8293676781 | AL52: FALSE | AO52: 1.507964474 | AP52: 2.283601886 | AQ52: 12.43190722 | AR52: 0.2261946711
A53: 0 | B53: 13 | C53: 0.9753539466 | D53: 0.9098903234 | E53: -0.1127827169 | F53: 1.329095851 | G53: 3.955938667 | H53: -0.7324350843 | I53: -3.999811688 | J53: -0.2982024398 | K53: -71.09631117 | L53: -3.999811688 | M53: -0.04364249772 | N53: 0.04144364171 | O53: -0.9047623522 | P53: -7.612102858 | Q53: -12.25777189 | R53: 18.69941653 | S53: 36.31433628 | T53: -83.78867288 | U53: 2.2068078 | V53: 1.63362818 | W53: -13.83173953 | X53: 10.7018137 | Y53: 0.9380443186 | Z53: 0.8633763164 | AA53: 0.9165281329 | AB53: 0.9292730302 | AC53: 5.620774078 | AD53: 6.117215931 | AE53: -0.007696229435 | AF53: -4.399265825 | AG53: 5.399267886 | AH53: 0.9753539466 | AI53: 0.9098903234 | AJ53: -0.9047623522 | AL53: FALSE | AO53: 1.63362818 | AP53: 0.6712367288 | AQ53: 12.43190722 | AR53: 0.245044227
A54: 0 | B54: 14 | C54: 1.049867253 | D54: 0.8955540713 | E54: -0.1591700121 | F54: 1.370730918 | G54: 3.950094214 | H54: -0.788680772 | I54: -3.99978068 | J54: -0.3218969245 | K54: -58.3981559 | L54: -3.99978068 | M54: -0.04364249772 | N54: 0.03661322124 | O54: -0.9801564418 | P54: -8.110401764 | Q54: -13.64321353 | R54: 21.69934048 | S54: 28.18980319 | T54: -75.73340349 | U54: 2.205031398 | V54: 1.759291886 | W54: -16.27841015 | X54: 10.39272732 | Y54: 1.0126106 | Z54: 0.9380443186 | AA54: 0.9027221973 | AB54: 0.9165281329 | AC54: 5.197544346 | AD54: 5.620774078 | AE54: -0.01029994187 | AF54: -4.413900704 | AG54: 5.414132287 | AH54: 1.049867253 | AI54: 0.8955540713 | AJ54: -0.9801564418 | AL54: FALSE | AO54: 1.759291886 | AP54: -0.9284144471 | AQ54: 12.22982428 | AR54: 0.2638937829
A55: 0 | B55: 15 | C55: 1.12426619 | D55: 0.880158061 | E55: -0.2119069336 | F55: 1.412001462 | G55: 3.943804015 | H55: -0.8448783567 | I55: -3.999747377 | J55: -0.3454996012 | K55: -38.78231286 | L55: -3.999747377 | M55: -0.04364249772 | N55: 0.02597852931 | O55: -1.055549904 | P55: -8.616802723 | Q55: -15.1083671 | R55: 24.9245157 | S55: 12.88152424 | T55: -65.74599444 | U55: 2.167897745 | V55: 1.884955592 | W55: -18.66704924 | X55: 9.77942904 | Y55: 1.087066721 | Z55: 1.0126106 | AA55: 0.8878560661 | AB55: 0.9027221973 | AC55: 4.832351725 | AD55: 5.197544346 | AE55: -0.01332551392 | AF55: -4.429626249 | AG55: 5.430145934 | AH55: 1.12426619 | AI55: 0.880158061 | AJ55: -1.055549904 | AL55: FALSE | AO55: 1.884955592 | AP55: -2.490124187 | AQ55: 11.82884538 | AR55: 0.2827433388
A56: 0 | B56: 16 | C56: 1.198542371 | D56: 0.8637032311 | E56: -0.2711430008 | F56: 1.452228825 | G56: 3.937069697 | H56: -0.9010244533 | I56: -3.999711775 | J56: -0.369020903 | K56: -28.18820264 | L56: -3.999711775 | M56: -0.04364249772 | N56: 0.02007961841 | O56: -1.130942694 | P56: -9.125301951 | Q56: -16.65661132 | R56: 28.37560034 | S56: 4.287378227 | T56: =IF(Q56<>0,-J56*SIN(O56)+K56*COS(O56)-2*P56*L56+F56*L56^2-E56*N56,0) -> -62.09602835 | U56: 2.094159367 | V56: 2.010619298 | W56: -20.95998654 | X56: 8.87159094 | Y56: 1.16140428 | Z56: 1.087066721 | AA56: 0.871930646 | AB56: 0.8878560661 | AC56: 4.513944049 | AD56: 4.832351725 | AE56: -0.01680428907 | AF56: -4.446436914 | AG56: 5.447312439 | AH56: 1.198542371 | AI56: 0.8637032311 | AJ56: -1.130942694 | AL56: FALSE | AO56: 2.010619298 | AP56: -3.989263397 | AQ56: 11.23529417 | AR56: 0.3015928947
A57: 0 | B57: 17 | C57: 1.272687439 | D57: 0.8461905841 | E57: -0.336964562 | F57: 1.490713489 | G57: 3.929892719 | H57: -0.957115685 | I57: -3.999673872 | J57: -0.3924681978 | K57: -22.19125814 | L57: -3.999673872 | M57: -0.04364249772 | N57: 0.01674625956 | O57: -1.206334771 | P57: -9.629691656 | Q57: -18.29154877 | R57: 32.05329635 | S57: -0.6333651357 | T57: -61.45476307 | U57: 1.982852281 | V57: 2.136283004 | W57: -23.12106106 | X57: 7.683530168 | Y57: 1.235614905 | Z57: 1.16140428 | AA57: 0.8549469076 | AB57: 0.871930646 | AC57: 4.233801322 | AD57: 4.513944049 | AE57: -0.02076733434 | AF57: -4.464325879 | AG57: 5.465634769 | AH57: 1.272687439 | AI57: 0.8461905841 | AJ57: -1.206334771 | AL57: FALSE | AO57: 2.136283004 | AP57: -5.402189754 | AQ57: 10.45853134 | AR57: 0.3204424507
A58: 0 | B58: 18 | C58: 1.346693063 | D58: 0.8276211857 | E58: -0.4093927372 | F58: 1.526740522 | G58: 3.922274426 | H58: -1.013148684 | I58: -3.999633665 | J58: -0.4158466749 | K58: -18.42388016 | L58: -3.999633665 | M58: -0.04364249772 | N58: 0.01468028885 | O58: -1.281726089 | P58: -10.123605 | Q58: -20.01696539 | R58: 35.95834951 | S58: -3.650859087 | T58: =IF(Q58<>0,-J58*SIN(O58)+K58*COS(O58)-2*P58*L58+F58*L58^2-E58*N58,0) -> -62.20256422 | U58: 1.833306313 | V58: 2.261946711 | W58: -25.11619137 | X58: 6.233983153 | Y58: 1.309690251 | Z58: 1.235614905 | AA58: 0.8369058849 | AB58: 0.8549469076 | AC58: 3.985353905 | AD58: 4.233801322 | AE58: -0.02524542426 | AF58: -4.483285222 | AG58: 5.485115408 | AH58: 1.346693063 | AI58: 0.8276211857 | AJ58: -1.281726089 | AL58: FALSE | AO58: 2.261946711 | AP58: -6.706620567 | AQ58: 9.510806875 | AR58: 0.3392920066
A59: 0 | B59: 19 | C59: 1.420550936 | D59: 0.8079961655 | E59: -0.4883818046 | F59: 1.559585195 | G59: 3.914216079 | H59: -1.069120091 | I59: -3.999591153 | J59: -0.4391599436 | K59: -15.85873307 | L59: -3.999591153 | M59: -0.04364249772 | N59: 0.01330397914 | O59: -1.357116606 | P59: -10.60056263 | Q59: -21.83676113 | R59: 40.09154949 | S59: -5.546712119 | T59: -63.63320663 | U59: 1.645153597 | V59: 2.387610417 | W59: -26.91391306 | X59: 4.545810116 | Y59: 1.383622 | Z59: 1.309690251 | AA59: 0.8178086756 | AB59: 0.8369058849 | AC59: 3.76345463 | AD59: 3.985353905 | AE59: -0.03026902492 | AF59: -4.503306048 | AG59: 5.505756474 | AH59: 1.420550936 | AI59: 0.8079961655 | AJ59: -1.357116606 | AL59: FALSE | AO59: 2.387610417 | AP59: -7.881984183 | AQ59: 8.407066973 | AR59: 0.3581415625
A60: 0 | B60: 20 | C60: 1.494252776 | D60: 0.7873167159 | E60: -0.5738180478 | F60: 1.588518749 | G60: 3.905718881 | H60: -1.125026558 | I60: -3.999546333 | J60: -0.4624104472 | K60: -14.00579434 | L60: -3.999546333 | M60: -0.04364249772 | N60: 0.01233848015 | O60: -1.432506279 | P60: -11.05402043 | Q60: -23.75485664 | R60: 44.45372993 | S60: -6.696460789 | T60: -65.39320895 | U60: 1.418335178 | V60: 2.513274123 | W60: -28.48587499 | X60: 2.645634555 | Y60: 1.457401856 | Z60: 1.383622 | AA60: 0.7976564407 | AB60: 0.8178086756 | AC60: 3.564013572 | AD60: 3.76345463 | AE60: -0.03586827831 | AF60: -4.524378584 | AG60: 5.527559802 | AH60: 1.494252776 | AI60: 0.7873167159 | AJ60: -1.432506279 | AL60: FALSE | AO60: 2.513274123 | AP60: -8.909744414 | AQ60: 7.164718268 | AR60: 0.3769911184
A61: 0 | B61: 21 | C61: 1.567790319 | D61: 0.7655840925 | E61: -0.6655190725 | F61: 1.612814265 | G61: 3.896784 | H61: -1.180864748 | I61: -3.999499202 | J61: -0.4855997542 | K61: -12.60668947 | L61: -3.999499202 | M61: -0.04364249772 | N61: 0.01163572696 | O61: -1.507895062 | P61: -11.47741826 | Q61: -25.77508155 | R61: 49.04576839 | S61: -7.299329859 | T61: -67.27863275 | U61: 1.15310568 | V61: 2.638937829 | W61: -29.80728639 | X61: 0.5634233733 | Y61: 1.531021547 | Z61: 1.457401856 | AA61: 0.7764504042 | AB61: 0.7976564407 | AC61: 3.383739844 | AD61: 3.564013572 | AE61: -0.04207298697 | AF61: -4.54649225 | AG61: 5.550527005 | AH61: 1.567790319 | AI61: 0.7655840925 | AJ61: -1.507895062 | AL61: FALSE | AO61: 2.638937829 | AP61: -9.773692868 | AQ61: 5.80335334 | AR61: 0.3958406744
A62: 0 | B62: 22 | C62: 1.641155329 | D62: 0.7427996136 | E62: -0.7632336046 | F62: 1.631752599 | G62: 3.88741258 | H62: -1.236631333 | I62: -3.999449756 | J62: -0.5087287688 | K62: -11.51355203 | L62: -3.999449756 | M62: -0.04364249772 | N62: 0.01111058624 | O62: -1.583282914 | P62: -11.86422939 | Q62: -27.90105028 | R62: 53.8685864 | S62: -7.470594259 | T62: -69.15636743 | U62: 0.8500359814 | V62: 2.764601535 | W62: -30.8573078 | X62: -1.667985714 | Y62: 1.604472824 | Z62: 1.531021547 | AA62: 0.754191853 | AB62: 0.7764504042 | AC62: 3.219955551 | AD62: 3.383739844 | AE62: -0.04891259887 | AF62: -4.569635717 | AG62: 5.574659517 | AH62: 1.641155329 | AI62: 0.7427996136 | AJ62: -1.583282914 | AL62: FALSE | AO62: 2.764601535 | AP62: -10.46020456 | AQ62: 4.344441728 | AR62: 0.4146902303
A63: 0 | B63: 23 | C63: 1.714339585 | D63: 0.7189646603 | E63: -0.8666417732 | F63: 1.644628357 | G63: 3.877605754 | H63: -1.292323 | I63: -3.999397995 | J63: -0.5317978837 | K63: -10.63605563 | L63: -3.999397995 | M63: -0.04364249772 | N63: 0.01071088039 | O63: -1.65866979 | P63: -12.20801029 | Q63: -30.13603149 | R63: 58.92314949 | S63: -7.282288052 | T63: -70.93028889 | U63: 0.5100138784 | V63: 2.890265241 | W63: -31.61937977 | X63: -4.013402054 | Y63: 1.677747457 | Z63: 1.604472824 | AA63: 0.7308821369 | AB63: 0.754191853 | AC63: 3.070459408 | AD63: 3.219955551 | AE63: -0.05641619271 | AF63: -4.593796956 | AG63: 5.599958627 | AH63: 1.714339585 | AI63: 0.7189646603 | AJ63: -1.65866979 | AL63: FALSE | AO63: 2.890265241 | AP63: -10.9584528 | AQ63: 2.810991339 | AR63: 0.4335397862
A64: 0 | B64: 24 | C64: 1.787334893 | D64: 0.6940806758 | E64: -0.9753558831 | F64: 1.650755859 | G64: 3.867364649 | H64: -1.347936446 | I64: -3.999343914 | J64: -0.5548070947 | K64: -9.916057293 | L64: -3.999343914 | M64: -0.04364249772 | N64: 0.01040294059 | O64: -1.734055647 | P64: -12.50245045 | Q64: -32.48281695 | R64: 64.21046711 | S64: -6.782791237 | T64: -72.52534443 | U64: 0.1342427128 | V64: 3.015928947 | W64: -32.08148396 | X64: -6.435837028 | Y64: 1.750837239 | Z64: 1.677747457 | AA64: 0.706522668 | AB64: 0.7308821369 | AC64: 2.933425219 | AD64: 3.070459408 | AE64: -0.06461246365 | AF64: -4.618963273 | AG64: 5.626425509 | AH64: 1.787334893 | AI64: 0.6940806758 | AJ64: -1.734055647 | AL64: FALSE | AO64: 3.015928947 | AP64: -11.2605799 | AQ64: 1.227185602 | AR64: 0.4523893421
A65: 0 | B65: 25 | C65: 1.860133076 | D65: 0.6681491656 | E65: -1.088921676 | F65: 1.649475053 | G65: 3.856690397 | H65: -1.403468383 | I65: -3.999287511 | J65: -0.5777560863 | K65: -9.314498716 | L65: -3.999287511 | M65: -0.04364249772 | N65: 0.01016410794 | O65: -1.809440441 | P65: -12.74142198 | Q65: -34.9435949 | R65: 69.7315927 | S65: -6.0069786 | T65: -73.87952263 | U65: -0.2757620487 | V65: 3.141592654 | W65: -32.2363327 | X65: -8.897087392 | Y65: 1.823733985 | Z65: 1.750837239 | AA65: 0.6811149207 | AB65: 0.706522668 | AC65: 2.807325247 | AD65: 2.933425219 | AE65: -0.07352970939 | AF65: -4.645121347 | AG65: 5.654061233 | AH65: 1.860133076 | AI65: 0.6681491656 | AJ65: -1.809440441 | AL65: FALSE | AO65: 3.141592654 | AP65: -11.36182115 | AQ65: -0.3819979207 | AR65: 0.471238898
A66: 0 | B66: 26 | C66: 1.932725981 | D66: 0.641171697 | E66: -1.206820081 | F66: 1.640157357 | G66: 3.845584139 | H66: -1.458915535 | I66: -3.999228782 | J66: -0.6006442975 | K66: -8.804198269 | L66: -3.999228782 | M66: -0.04364249772 | N66: 0.009978591969 | O66: -1.884824127 | P66: -12.91902866 | Q66: -37.51983226 | R66: 75.48762359 | S66: -4.981809412 | T66: -74.93958579 | U66: -0.7181782741 | V66: 3.26725636 | W66: -32.08148396 | X66: -11.35833775 | Y66: 1.896429529 | Z66: 1.823733985 | AA66: 0.6546604313 | AB66: 0.6811149207 | AC66: 2.690871633 | AD66: 2.807325247 | AE66: -0.08319581677 | AF66: -4.672257254 | AG66: 5.682866786 | AH66: 1.932725981 | AI66: 0.641171697 | AJ66: -1.884824127 | AL66: FALSE | AO66: 3.26725636 | AP66: -11.2605799 | AQ66: -1.991181443 | AR66: 0.490088454
A67: 0 | B67: 27 | C67: 2.005105476 | D67: 0.6131498988 | E67: -1.328469441 | F67: 1.622211365 | G67: 3.834047027 | H67: -1.514274643 | I67: -3.999167724 | J67: -0.6234709721 | K67: -8.365669638 | L67: -3.999167724 | M67: -0.04364249772 | N67: 0.009835061301 | O67: -1.960206663 | P67: -13.02965407 | Q67: -40.21216938 | R67: 81.47970104 | S67: -3.729563157 | T67: -75.65872253 | U67: -1.190884654 | V67: 3.392920066 | W67: -31.61937977 | X67: -13.78077273 | Y67: 1.968915728 | Z67: 1.896429529 | AA67: 0.6271607979 | AB67: 0.6546604313 | AC67: 2.582971091 | AD67: 2.690871633 | AE67: -0.09363824882 | AF67: -4.700356498 | AG67: 5.712843082 | AH67: 2.005105476 | AI67: 0.6131498988 | AJ67: -1.960206663 | AL67: FALSE | AO67: 3.392920066 | AP67: -10.9584528 | AQ67: -3.57498718 | AR67: 0.5089380099
A68: 0 | B68: 28 | C68: 2.077263449 | D68: 0.5840854615 | E68: -1.453228215 | F68: 1.595088405 | G68: 3.82208023 | H68: -1.569542459 | I68: -3.999104335 | J68: -0.6462351985 | K68: -7.98458586 | L68: -3.999104335 | M68: -0.04364249772 | N68: 0.009725179067 | O68: -2.035588004 | P68: -13.06800862 | Q68: -43.02032998 | R68: 87.70901019 | S68: -2.269788667 | T68: -75.99523631 | U68: -1.691470189 | V68: 3.518583772 | W68: -30.8573078 | X68: -16.12618907 | Y68: 2.041184462 | Z68: 1.968915728 | AA68: 0.5986176801 | AB68: 0.6271607979 | AC68: 2.482689497 | AD68: 2.582971091 | AE68: -0.1048840323 | AF68: -4.729404032 | AG68: 5.743990966 | AH68: 2.077263449 | AI68: 0.5840854615 | AJ68: -2.035588004 | AL68: FALSE | AO68: 3.518583772 | AP68: -10.46020456 | AQ68: -5.108437569 | AR68: 0.5277875658
A69: 0 | B69: 29 | C69: 2.149191813 | D69: 0.553980136 | E69: -1.58039814 | F69: 1.558287894 | G69: 3.809684933 | H69: -1.624715753 | I69: -3.999038611 | J69: -0.6689359408 | K69: -7.650181783 | L69: -3.999038611 | M69: -0.04364249772 | N69: 0.009642678502 | O69: -2.110968106 | P69: -13.02917503 | Q69: -45.94304864 | R69: 94.17678 | S69: -0.6205145675 | T69: -75.91181816 | U69: -2.217245642 | V69: 3.644247478 | W69: -29.80728639 | X69: -18.35759816 | Y69: 2.113227631 | Z69: 2.041184462 | AA69: 0.5690327987 | AB69: 0.5986176801 | AC69: 2.389223943 | AD69: 2.482689497 | AE69: -0.1169597457 | AF69: -4.759384279 | AG69: 5.776311229 | AH69: 2.149191813 | AI69: 0.553980136 | AJ69: -2.110968106 | AL69: FALSE | AO69: 3.644247478 | AP69: -9.773692868 | AQ69: -6.567349181 | AR69: 0.5466371217
A70: 0 | B70: 30 | C70: 2.220882503 | D70: 0.5228357347 | E70: -1.709227844 | F70: 1.511362456 | G70: 3.796862345 | H70: -1.679791311 | I70: -3.998970547 | J70: -0.6915720636 | K70: -7.354214252 | L70: -3.998970547 | M70: -0.04364249772 | N70: 0.0095827603 | O70: -2.186346925 | P70: -12.90865204 | Q70: -48.97801741 | R70: 100.8842833 | S70: 1.200983179 | T70: -75.37516034 | U70: -2.765256899 | V70: 3.769911184 | W70: -28.48587499 | X70: -20.43980934 | Y70: 2.185037158 | Z70: 2.113227631 | AA70: 0.5384079353 | AB70: 0.5690327987 | AC70: 2.301880472 | AD70: 2.389223943 | AE70: -0.1298915081 | AF70: -4.790281155 | AG70: 5.809804603 | AH70: 2.220882503 | AI70: 0.5228357347 | AJ70: -2.186346925 | AL70: FALSE | AO70: 3.769911184 | AP70: -8.909744414 | AQ70: -7.928714109 | AR70: 0.5654866776
A71: 0 | B71: 31 | C71: 2.292327475 | D71: 0.4906541297 | E71: -1.838916876 | F71: 1.453922779 | G71: 3.783613694 | H71: -1.734765934 | I71: -3.998900142 | J71: -0.714142352 | K71: -7.090265785 | L71: -3.998900142 | M71: -0.04364249772 | N71: 0.0095416885 | O71: -2.261724416 | P71: -12.70239613 | Q71: -52.12185286 | R71: 107.8328365 | S71: 3.17768974 | T71: -74.35577401 | U71: -3.332300187 | V71: 3.89557489 | W71: -26.91391306 | X71: -22.3399849 | Y71: 2.256604989 | Z71: 2.185037158 | AA71: 0.5067449322 | AB71: 0.5384079353 | AC71: 2.220056208 | AD71: 2.301880472 | AE71: -0.1437049677 | AF71: -4.822078088 | AG71: 5.844471772 | AH71: 2.292327475 | AI71: 0.4906541297 | AJ71: -2.261724416 | AL71: FALSE | AO71: 3.89557489 | AP71: -7.881984183 | AQ71: -9.171062815 | AR71: 0.5843362336
A72: 0 | B72: 32 | C72: 2.363518709 | D72: 0.4574372539 | E72: -1.96862016 | F72: 1.38564216 | G72: 3.769940234 | H72: -1.789636439 | I72: -3.99882739 | J72: -0.7366455276 | K72: -6.853266501 | L72: -3.99882739 | M72: -0.04364249772 | N72: 0.009516512693 | O72: -2.337100537 | P72: -12.40686078 | Q72: -55.37008462 | R72: 115.0238 | S72: 5.292538073 | T72: -72.82792999 | U72: -3.914939072 | V72: 4.021238597 | W72: =IF(ERGOTRIVIS<>0,RX+AKT_KAMP*COS(V72),TEL_AKTINA*COS(V72)) -> -25.11619137 | X72: =IF(ERGOTRIVIS<>0,RY+AKT_KAMP*SIN(V72),TEL_AKTINA*SIN(V72)) -> -24.02815794 | Y72: 2.327923092 | Z72: 2.256604989 | AA72: 0.4740456918 | AB72: 0.5067449322 | AC72: 2.143224884 | AD72: 2.220056208 | AE72: -0.1584252922 | AF72: -4.854758036 | AG72: 5.88031337 | AH72: 2.363518709 | AI72: 0.4574372539 | AJ72: -2.337100537 | AL72: FALSE | AO72: 4.021238597 | AP72: =xtomi11+aktistomon*COS(AO72) -> -6.706620567 | AQ72: =ytomi11+aktistomon*SIN(AO72) -> -10.27480272 | AR72: 0.6031857895
A73: 0 | B73: 33 | C73: 2.434448212 | D73: 0.4231870995 | E73: -2.097452825 | F73: 1.306260718 | G73: 3.755843242 | H73: -1.844399664 | I73: -3.998752288 | J73: -0.7590802621 | K73: -6.639158573 | L73: -3.998752288 | M73: -0.04364249772 | N73: 0.009504872846 | O73: -2.412475242 | P73: -12.01903318 | Q73: -58.71716636 | R73: 122.4585778 | S73: 7.528214391 | T73: -70.76967347 | U73: -4.509523156 | V73: 4.146902303 | W73: -23.12106106 | X73: -25.47770495 | Y73: 2.398983461 | Z73: 2.327923092 | AA73: 0.4403121767 | AB73: 0.4740456918 | AC73: 2.070925046 | AD73: 2.143224884 | AE73: -0.1740771586 | AF73: -4.888303505 | AG73: 5.917329986 | AH73: 2.434448212 | AI73: 0.4231870995 | AJ73: -2.412475242 | AL73: FALSE | AO73: 4.146902303 | AP73: -5.402189754 | AQ73: -11.22252718 | AR73: 0.6220353454
A74: 0 | B74: 34 | C74: 2.505108011 | D74: 0.3879057185 | E74: -2.224495403 | F74: 1.215589238 | G74: 3.741324021 | H74: -1.89905246 | I74: -3.998674832 | J74: -0.7814451878 | K74: -6.444656053 | L74: -3.998674832 | M74: -0.04364249772 | N74: 0.009504859469 | O74: -2.487848487 | P74: -11.53646812 | Q74: -62.15651016 | R74: 130.1386172 | S74: 9.867045285 | T74: -68.16288149 | U74: -5.112208376 | V74: 4.272566009 | W74: -20.95998654 | X74: -26.66576572 | Y74: 2.469778111 | Z74: 2.398983461 | AA74: 0.405546409 | AB74: 0.4403121767 | AC74: 2.002750374 | AD74: 2.070925046 | AE74: -0.1906847439 | AF74: -4.92269657 | AG74: 5.955522162 | AH74: 2.505108011 | AI74: 0.3879057185 | AJ74: -2.487848487 | AL74: FALSE | AO74: 4.272566009 | AP74: -3.989263397 | AQ74: -11.99929002 | AR74: 0.6408849013
A75: 0 | B75: 35 | C75: 2.57549016 | D75: 0.3515952219 | E75: -2.348799356 | F75: 1.113512618 | G75: 3.7263839 | H75: -1.953591701 | I75: -3.998595019 | J75: -0.8037389069 | K75: -6.267069903 | L75: -3.998595019 | M75: -0.04364249772 | N75: 0.009514911665 | O75: -2.563220227 | P75: -10.95731862 | Q75: -65.68054515 | R75: 138.0654096 | S75: 12.29094255 | T75: -64.99334279 | U75: -5.718978817 | V75: 4.398229715 | W75: -18.66704924 | X75: -27.57360382 | Y75: 2.540299085 | Z75: 2.469778111 | AA75: 0.3697504702 | AB75: 0.405546409 | AC75: 1.938341684 | AD75: 2.002750374 | AE75: -0.208271717 | AF75: -4.957918886 | AG75: 5.994890396 | AH75: 2.57549016 | AI75: 0.3515952219 | AJ75: -2.563220227 | AL75: FALSE | AO75: 4.398229715 | AP75: -2.490124187 | AQ75: -12.59284122 | AR75: 0.6597344573
A76: 0 | B76: 36 | C76: 2.645586738 | D76: 0.3142577795 | E76: -2.469392912 | F76: 0.9999928931 | G76: 3.711024234 | H76: -2.008014277 | I76: -3.998512843 | J76: -0.8259599986 | K76: -6.104178514 | L76: -3.998512843 | M76: -0.04364249772 | N76: 0.009533741622 | O76: -2.638590419 | P76: -10.28036337 | Q76: -69.28080157 | R76: 146.2404895 | S76: 14.78138988 | T76: -61.25084629 | U76: -6.325669903 | V76: 4.523893421 | W76: -16.27841015 | X76: -28.1869021 | Y76: 2.610538449 | Z76: 2.540299085 | AA76: 0.3329265007 | AB76: 0.3697504702 | AC76: 1.877380284 | AD76: 1.938341684 | AE76: -0.2268612298 | AF76: -4.993951714 | AG76: 6.03543514 | AH76: 2.645586738 | AI76: 0.3142577795 | AJ76: -2.638590419 | AL76: FALSE | AO76: 4.523893421 | AP76: -0.9284144471 | AQ76: -12.99382013 | AR76: 0.6785840132
A77: 0 | B77: 37 | C77: 2.71538985 | D77: 0.2758956196 | E77: -2.585287173 | F77: 0.8750718054 | G77: 3.695246407 | H77: -2.062317096 | I77: -3.998428302 | J77: -0.8481070259 | K77: -5.954130485 | L77: -3.998428302 | M77: -0.04364249772 | N77: 0.009560277884 | O77: -2.713959016 | P77: -9.505030545 | Q77: -72.94802159 | R77: 154.665435 | S77: 17.31946058 | T77: -56.92926872 | U77: -6.927992871 | V77: 4.649557127 | W77: -13.83173953 | X77: -28.49598848 | Y77: 2.680488294 | Z77: 2.610538449 | AA77: 0.2950766995 | AB77: 0.3329265007 | AC77: 1.819582426 | AD77: 1.877380284 | AE77: -0.2464759104 | AF77: -5.030775929 | AG77: 6.077156803 | AH77: 2.71538985 | AI77: 0.2758956196 | AJ77: -2.713959016 | AL77: FALSE | AO77: 4.649557127 | AP77: 0.6712367288 | AQ77: -13.19590306 | AR77: 0.6974335691
A78: 0 | B78: 38 | C78: 2.784891627 | D78: 0.2365110284 | E78: -2.695482455 | F78: 0.738872909 | G78: 3.679051827 | H78: -2.11649709 | I78: -3.998341389 | J78: -0.8701785407 | K78: -5.81537068 | L78: -3.998341389 | M78: -0.04364249772 | N78: 0.009593622178 | O78: -2.789325976 | P78: -8.63141788 | Q78: -76.67229821 | R78: 163.3418676 | S78: 19.88585888 | T78: -52.02665452 | U78: -7.521560384 | V78: 4.775220833 | W78: -11.36562285 | X78: -28.49598848 | Y78: 2.750140739 | Z78: 2.680488294 | AA78: 0.256203324 | AB78: 0.2950766995 | AC78: 1.764694641 | AD78: 1.819582426 | AE78: -0.2671378561 | AF78: -5.068372042 | AG78: 6.120055745 | AH78: 2.784891627 | AI78: 0.2365110284 | AJ78: -2.789325976 | AL78: FALSE | AO78: 4.775220833 | AP78: 2.283601886 | AQ78: -13.19590306 | AR78: 0.716283125
A79: 0 | B79: 39 | C79: 2.854084227 | D79: 0.19610635 | E79: -2.79897484 | F79: 0.5916031767 | G79: 3.662441932 | H79: -2.170551207 | I79: -3.998252102 | J79: -0.8921730885 | K79: -5.686583311 | L79: -3.998252102 | M79: -0.04364249772 | N79: 0.009633016156 | O79: -2.864691253 | P79: -7.660308851 | Q79: -80.4432442 | R79: 172.2714522 | S79: 22.46097935 | T79: -46.54528321 | U79: -8.101913142 | V79: 4.90088454 | W79: -8.918952239 | X79: -28.1869021 | Y79: 2.819487927 | Z79: 2.750140739 | AA79: 0.2163086892 | AB79: 0.256203324 | AC79: 1.712489804 | AD79: 1.764694641 | AE79: -0.2888686265 | AF79: -5.106720216 | AG79: 6.164132284 | AH79: 2.854084227 | AI79: 0.19610635 | AJ79: -2.864691253 | AL79: FALSE | AO79: 4.90088454 | AP79: 3.883253061 | AQ79: -12.99382013 | AR79: 0.7351326809
A80: 0 | B80: 40 | C80: 2.922959835 | D80: 0.1546839856 | E80: -2.894762888 | F80: 0.4335540985 | G80: 3.645418187 | H80: -2.224476417 | I80: -3.998160434 | J80: -0.9140892121 | K80: -5.566647646 | L80: -3.998160434 | M80: -0.04364249772 | N80: 0.009677815513 | O80: -2.940054801 | P80: -6.593184783 | Q80: -84.250193 | R80: 181.4558967 | S80: 25.02498046 | T80: -40.49172033 | U80: -8.664547365 | V80: 5.026548246 | W80: -6.530313148 | X80: -27.57360382 | Y80: 2.888522031 | Z80: 2.819487927 | AA80: 0.1753951678 | AB80: 0.2163086892 | AC80: 1.662763799 | AD80: 1.712489804 | AE80: -0.3116892383 | AF80: -5.145800281 | AG80: 6.209386689 | AH80: 2.922959835 | AI80: 0.1546839856 | AJ80: -2.940054801 | AL80: FALSE | AO80: 5.026548246 | AP80: 5.444962802 | AQ80: -12.59284122 | AR80: 0.7539822369
A81: 0 | B81: 41 | C81: 2.991510664 | D81: 0.1122463936 | E81: -2.981854473 | F81: 0.2651022558 | G81: 3.627982083 | H81: -2.278269711 | I81: -3.998066382 | J81: -0.9359254549 | K81: -5.454603194 | L81: -3.998066382 | M81: -0.04364249772 | N81: 0.00972746962 | O81: -3.015416577 | P81: -5.432232759 | Q81: -88.08243385 | R81: 190.8969526 | S81: 27.55786919 | T81: -33.87684949 | U81: -9.204942975 | V81: 5.152211952 | W81: -4.237375847 | X81: -26.66576572 | Y81: 2.95723525 | Z81: 2.888522031 | AA81: 0.1334651896 | AB81: 0.1753951678 | AC81: 1.615332676 | AD81: 1.662763799 | AE81: -0.33562016 | AF81: -5.185591751 | AG81: 6.25581918 | AH81: 2.991510664 | AI81: 0.1122463936 | AJ81: -3.015416577 | AL81: FALSE | AO81: 5.152211952 | AP81: 6.944102011 | AQ81: -11.99929002 | AR81: 0.7728317928
A82: 0 | B82: 42 | C82: 3.059728956 | D82: 0.0687960886 | E82: -3.059273717 | F82: 0.08670935827 | G82: 3.61013514 | H82: -2.331928102 | I82: -3.997969941 | J82: -0.9576803641 | K82: -5.349622088 | L82: -3.997969941 | M82: -0.04364249772 | N82: 0.009781505366 | O82: -3.090776535 | P82: -4.180349231 | Q82: -91.92948345 | R82: 200.5964141 | S82: 30.03959443 | T82: -26.71588314 | U82: -9.718592344 | V82: 5.277875658 | W82: -2.076301325 | X82: -25.47770495 | Y82: 3.02561981 | Z82: 2.95723525 | AA82: 0.09052124109 | AB82: 0.1334651896 | AC82: 1.570030218 | AD82: 1.615332676 | AE82: -0.3606813069 | AF82: -5.226073841 | AG82: 6.303429931 | AH82: 3.059728956 | AI82: 0.0687960886 | AJ82: -3.090776535 | AL82: FALSE | AO82: 5.277875658 | AP82: 8.357028369 | AQ82: -11.22252718 | AR82: 0.7916813487
A83: 0 | B83: 43 | C83: 3.127606981 | D83: 0.02433564154 | E83: -3.126067951 | F83: -0.1010782652 | G83: 3.591878904 | H83: -2.385448623 | I83: -3.997871106 | J83: -0.979352493 | K83: -5.250986984 | L83: -3.997871106 | M83: -0.04364249772 | N83: 0.009839514225 | O83: -3.16613463 | P83: -2.841139244 | Q83: -95.78139633 | R83: 210.5561187 | S83: 32.45014709 | T83: -19.02835068 | U83: -10.20102943 | V83: 5.403539364 | W83: -0.08117102034 | X83: -24.02815794 | Y83: 3.093667968 | Z83: 3.02561981 | AA83: 0.04656586507 | AB83: 0.09052124109 | AC83: 1.526705857 | AD83: 1.570030218 | AE83: -0.3868920376 | AF83: -5.26722548 | AG83: 6.352219064 | AH83: 3.127606981 | AI83: 0.02433564154 | AJ83: -3.16613463 | AL83: FALSE | AO83: 5.403539364 | AP83: 9.661459182 | AQ83: -10.27480272 | AR83: 0.8105309046
A84: 0 | B84: 44 | C84: 3.195137039 | D84: -0.02113232105 | E84: -3.1813147 | F84: -0.2976307268 | G84: 3.57321495 | H84: -2.43882833 | I84: -3.997769872 | J84: -1.000940403 | K84: -5.158073229 | L84: -3.997769872 | M84: -0.04364249772 | N84: 0.009901141811 | O84: -3.241490817 | P84: -1.418911205 | Q84: -99.62911537 | R84: 220.7779469 | S84: 34.76966542 | T84: -10.83806272 | U84: -10.64785912 | V84: 5.52920307 | W84: 1.716550672 | X84: -22.3399849 | Y84: 3.16137201 | Z84: 3.093667968 | AA84: 0.001601660242 | AB84: 0.04656586507 | AC84: 1.485222869 | AD84: 1.526705857 | AE84: -0.4142711499 | AF84: -5.309025331 | AG84: 6.402186651 | AH84: 3.195137039 | AI84: -0.02113232105 | AJ84: -3.241490817 | AL84: FALSE | AO84: 5.52920307 | AP84: 10.8368228 | AQ84: -9.171062815 | AR84: 0.8293804605
A85: 0 | B85: 45 | C85: 3.262311459 | D85: -0.06760511732 | E85: -3.224128613 | F85: -0.5022361941 | G85: 3.554144878 | H85: -2.492064302 | I85: -3.997666233 | J85: -1.022442666 | K85: -5.070334386 | L85: -3.997666233 | M85: -0.04364249772 | N85: 0.009966079395 | O85: -3.31684505 | P85: 0.08133281763 | Q85: -103.4648626 | R85: 231.2638219 | S85: 36.97854407 | T85: =IF(Q85<>0,-J85*SIN(O85)+K85*COS(O85)-2*P85*L85+F85*L85^2-E85*N85,0) -> -2.173050622 | U85: -11.0547867 | V85: 5.654866776 | W85: 3.288512606 | X85: -20.43980934 | Y85: 3.228724249 | Z85: 3.16137201 | AA85: -0.04436871919 | AB85: 0.001601660242 | AC85: 1.445456824 | AD85: 1.485222869 | AE85: -0.4428368783 | AF85: -5.351451804 | AG85: 6.453332713 | AH85: 3.262311459 | AI85: -0.06760511732 | AJ85: -3.31684505 | AL85: FALSE | AO85: 5.654866776 | AP85: 11.86458303 | AQ85: -7.928714109 | AR85: 0.8482300165
A86: 0 | B86: 46 | C86: 3.329122603 | D86: -0.1150800106 | E86: -3.253668319 | F86: -0.7141030594 | G86: 3.534670316 | H86: -2.545153641 | I86: -3.997560185 | J86: -1.043857866 | K86: -4.987290369 | L86: -3.997560185 | M86: -0.04364249772 | N86: 0.01003405696 | O86: -3.392197284 | P86: 1.6539113 | Q86: -107.2825672 | R86: 242.0157099 | S86: 39.05754573 | T86: 6.934519169 | U86: -11.41764713 | V86: 5.780530483 | W86: 4.609924003 | X86: -18.35759816 | Y86: 3.295717031 | Z86: 3.228724249 | AA86: -0.09134256394 | AB86: -0.04436871919 | AC86: 1.407294229 | AD86: 1.445456824 | AE86: -0.4726068913 | AF86: -5.394483073 | AG86: 6.505657215 | AH86: 3.329122603 | AI86: -0.1150800106 | AJ86: -3.392197284 | AL86: FALSE | AO86: 5.780530483 | AP86: 12.72853148 | AQ86: -6.567349181 | AR86: 0.8670795724
A87: 0 | B87: 47 | C87: 3.39556286 | D87: -0.1635542097 | E87: -3.269143158 | F87: -0.932362658 | G87: 3.514792919 | H87: -2.59809347 | I87: -3.997451722 | J87: -1.0651846 | K87: -4.908517692 | L87: -3.997451722 | M87: -0.04364249772 | N87: 0.01010483748 | O87: -3.467547474 | P87: 3.292481937 | Q87: -111.0783239 | R87: 253.0356198 | S87: 40.98791419 | T87: 16.44845629 | U87: -11.73243408 | V87: 5.906194189 | W87: 5.659945416 | X87: -16.12618907 | Y87: 3.362342731 | Z87: 3.295717031 | AA87: -0.1393171101 | AB87: -0.09134256394 | AC87: 1.370631355 | AD87: 1.407294229 | AE87: -0.5035982896 | AF87: -5.438097089 | AG87: 6.559160072 | AH87: 3.39556286 | AI87: -0.1635542097 | AJ87: -3.467547474 | AL87: FALSE | AO87: 5.906194189 | AP87: 13.41504318 | AQ87: -5.108437569 | AR87: 0.8859291283
A88: 0 | B88: 48 | C88: 3.461624653 | D88: -0.2130248696 | E88: -3.269819741 | F88: -1.15607253 | G88: 3.494514367 | H88: -2.650880939 | I88: -3.997340838 | J88: -1.08642148 | K88: -4.833641375 | L88: -3.997340838 | M88: -0.04364249772 | N88: 0.01017821217 | O88: -3.542895574 | P88: 4.990064757 | Q88: -114.850866 | R88: 264.325603 | S88: 42.75148793 | T88: 26.32868313 | U88: -11.99532853 | V88: 6.031857895 | W88: 6.422017381 | X88: -13.78077273 | Y88: 3.428593757 | Z88: 3.362342731 | AA88: -0.1882895396 | AB88: -0.1393171101 | AC88: 1.335373205 | AD88: 1.370631355 | AE88: -0.5358276049 | AF88: -5.482271599 | AG88: 6.613841141 | AH88: 3.461624653 | AI88: -0.2130248696 | AJ88: -3.542895574 | AL88: FALSE | AO88: 6.031857895 | AP88: 13.91329141 | AQ88: -3.57498718 | AR88: 0.9047786842
A89: 0 | B89: 49 | C89: 3.527300438 | D89: -0.2634890916 | E89: -3.255028306 | F89: -1.384220217 | G89: 3.473836368 | H89: -2.703513218 | I89: -3.997227529 | J89: -1.107567133 | K89: -4.762328203 | L89: -3.997227529 | M89: -0.04364249772 | N89: 0.01025399653 | O89: -3.618241538 | P89: 6.739069604 | Q89: -118.60203 | R89: 275.8877537 | S89: 44.33081308 | T89: 36.5313969 | U89: -12.2027267 | V89: 6.157521601 | W89: 6.884121567 | X89: -11.35833775 | Y89: 3.494462546 | Z89: 3.428593757 | AA89: -0.2382569806 | AB89: -0.1882895396 | AC89: 1.301432617 | AD89: 1.335373205 | AE89: -0.5693107987 | AF89: -5.526984159 | AG89: 6.669700223 | AH89: 3.527300438 | AI89: -0.2634890916 | AJ89: -3.618241538 | AL89: FALSE | AO89: 6.157521601 | AP89: 14.21541851 | AQ89: -1.991181443 | AR89: 0.9236282402
A90: 0 | B90: 50 | C90: 3.5925827 | D90: -0.314943924 | E90: -3.224168814 | F90: -1.615727574 | G90: 3.452760652 | H90: -2.755987505 | I90: -3.997111788 | J90: -1.128620204 | K90: -4.694281083 | L90: -3.997111788 | M90: -0.04364249772 | N90: 0.01033202705 | O90: -3.69358532 | P90: 8.531327899 | Q90: -122.3371735 | R90: 287.7242084 | S90: 45.70925513 | T90: 47.00925668 | U90: -12.35126723 | V90: 6.283185307 | W90: 7.038970314 | X90: -8.897087392 | Y90: 3.559941569 | Z90: 3.494462546 | AA90: -0.2892165078 | AB90: -0.2382569806 | AC90: 1.268729469 | AD90: 1.301432617 | AE90: -0.6040632623 | AF90: -5.572212148 | AG90: 6.726737064 | AH90: 3.5925827 | AI90: -0.314943924 | AJ90: -3.69358532 | AL90: FALSE | AO90: 6.283185307 | AP90: 14.31665976 | AQ90: -0.3819979207 | AR90: 0.9424777961
A91: 0 | B91: 51 | C91: 3.65746396 | D91: -0.3673863626 | E91: -3.176716762 | F91: -1.849455588 | G91: 3.431288978 | H91: -2.808301021 | I91: -3.996993609 | J91: -1.149579356 | K91: -4.629234288 | L91: -3.996993609 | M91: -0.04364249772 | N91: 0.01041215841 | O91: -3.768926874 | P91: 10.35812856 | Q91: -126.0654956 | R91: 299.8371462 | S91: 46.87110836 | T91: 57.71159486 | U91: -12.43785733 | Y91: 3.62502333 | Z91: 3.559941569 | AA91: -0.3411651433 | AB91: -0.2892165078 | AC91: 1.237189985 | AD91: 1.268729469 | AE91: -0.6400998171 | AF91: -5.617932787 | AG91: 6.784951351 | AH91: 3.65746396 | AI91: -0.3673863626 | AJ91: -3.768926874 | AL91: FALSE | AR91: 0.961327352
A92: 0 | B92: 52 | C92: 3.72193677 | D92: -0.4208133508 | E92: -3.112228655 | F92: -2.084209682 | G92: 3.40942313 | H92: -2.860451009 | I92: -3.996872988 | J92: -1.17044327 | K92: -4.566949429 | L92: -3.996872988 | M92: -0.04364249772 | N92: 0.0104942611 | O92: -3.844266155 | P92: 12.21025792 | Q92: -129.8001999 | R92: 312.2287881 | S92: 47.80170225 | T92: 68.58465243 | U92: -12.45969789 | Y92: 3.689700365 | Z92: 3.62502333 | AA92: -0.3940998567 | AB92: -0.3411651433 | AC92: 1.206746115 | AD92: 1.237189985 | AE92: -0.6774347146 | AF92: -5.664123149 | AG92: 6.844342711 | AH92: 3.72193677 | AI92: -0.4208133508 | AJ92: -3.844266155 | AK92: =AJ92-AK91 -> -3.844266155 | AL92: FALSE | AR92: 0.9801769079
A93: 0 | B93: 53 | C93: 3.785993719 | D93: -0.4752217805 | E93: -3.030347112 | F93: -2.318745471 | G93: 3.387164913 | H93: -2.912434742 | I93: -3.996749917 | J93: -1.191210647 | K93: -4.507212042 | L93: -3.996749917 | M93: -0.04364249772 | N93: 0.01057821943 | O93: -3.919603116 | P93: 14.07804354 | Q93: -133.5584368 | R93: 324.9013978 | S93: 48.48750413 | T93: 79.57183693 | U93: -12.41430719 | Y93: 3.753965244 | Z93: 3.689700365 | AA93: -0.4480175657 | AB93: -0.3940998567 | AC93: 1.177334991 | AD93: 1.206746115 | AE93: -0.7160816382 | AF93: -5.710760173 | AG93: 6.904910715 | AH93: 3.785993719 | AI93: -0.4752217805 | AJ93: -3.919603116 | AK93: =AJ93-AK92 -> -0.07533696106 | AL93: FALSE | AR93: 0.9990264638
A94: 0 | B94: 54 | C94: 3.849627426 | D94: -0.5306084923 | E94: -2.93080556 | F94: -2.551774962 | G94: 3.364516161 | H94: -2.964249516 | I94: -3.996624391 | J94: -1.211880207 | K94: -4.449828663 | L94: -3.996624391 | M94: -0.04364249772 | N94: 0.01066392983 | O94: -3.994937711 | P94: 15.95140161 | Q94: -137.3609774 | R94: 337.8572808 | S94: 48.91621733 | T94: 90.61400224 | U94: -12.29954327 | Y94: 3.817810572 | Z94: 3.753965244 | AA94: -0.5029151364 | AB94: -0.4480175657 | AC94: 1.148898444 | AD94: 1.177334991 | AE94: -0.7560537045 | AF94: -5.757820686 | AG94: 6.966654871 | AH94: 3.849627426 | AI94: -0.5306084923 | AJ94: -3.994937711 | AK94: -3.91960075 | AL94: FALSE | AR94: 1.01787602
A95: 0 | B95: 55 | C95: 3.912830547 | D95: -0.5869702761 | E95: -2.813432489 | F95: -2.781973154 | G95: 3.341478728 | H95: -3.015892652 | I95: -3.996496403 | J95: -1.232450693 | K95: -4.394624332 | L95: -3.996496403 | M95: -0.04364249772 | N95: 0.01075129935 | O95: -4.070269894 | P95: 17.81988784 | Q95: -141.2316025 | R95: 351.0987846 | S95: 49.07687415 | T95: 101.649749 | U95: -12.11362461 | Y95: 3.881228986 | Z95: 3.817810572 | AA95: -0.5587893842 | AB95: -0.5029151364 | AC95: 1.121382569 | AD95: 1.148898444 | AE95: -0.7973634653 | AF95: -5.805281406 | AG95: 7.029574628 | AH95: 3.912830547 | AI95: -0.5869702761 | AJ95: -4.070269894 | AK95: -0.1506691435 | AL95: FALSE | AR95: 1.036725576
A96: 0 | B96: 56 | C96: 3.975595775 | D96: -0.6443038716 | E96: -2.678155224 | F96: -3.007985014 | G96: 3.318054495 | H96: -3.067361498 | I96: -3.996365948 | J96: -1.252920866 | K96: -4.341440434 | L96: -3.996365948 | M96: -0.04364249772 | N96: 0.01084024441 | O96: -4.145599617 | P96: 19.67275155 | Q96: -145.1962373 | R96: 364.6282988 | S96: 48.95992293 | T96: 112.6157439 | U96: -11.85514913 | Y96: 3.944213161 | Z96: 3.881228986 | AA96: -0.6156370739 | AB96: -0.5587893842 | AC96: 1.094737344 | AD96: 1.121382569 | AE96: -0.8400229103 | AF96: -5.853118964 | AG96: 7.093669373 | AH96: 3.975595775 | AI96: -0.6443038716 | AJ96: -4.145599617 | AK96: -3.994930474 | AL96: FALSE | AR96: 1.055575132
A97: 0 | B97: 57 | C97: 4.037915837 | D97: -0.7026059687 | E97: -2.525003196 | F97: -3.228432795 | G97: 3.294245362 | H97: -3.118653429 | I97: -3.996233018 | J97: -1.273289512 | K97: -4.290132847 | L97: -3.996233018 | M97: -0.04364249772 | N97: 0.0109306897 | O97: -4.220926835 | P97: 21.49899263 | Q97: -149.2819098 | R97: 378.4482547 | S97: 48.5573087 | T97: 123.4470574 | U97: -11.52311127 | Y97: 4.006755806 | Z97: 3.944213161 | AA97: -0.6734549202 | AB97: -0.6156370739 | AC97: 1.068916285 | AD97: 1.094737344 | AE97: -0.8840434695 | AF97: -5.901309914 | AG97: 7.158938431 | AH97: 4.037915837 | AI97: -0.7026059687 | AJ97: -4.220926835 | AK97: -0.2259963612 | AL97: FALSE | AR97: 1.074424688
A98: 0 | B98: 58 | C98: 4.099783494 | D98: -0.7618732081 | E98: -2.35411067 | F98: -3.441923653 | G98: 3.270053256 | H98: -3.169765844 | I98: -3.996097607 | J98: -1.293555438 | K98: -4.240570325 | L98: -3.996097607 | M98: -0.04364249772 | N98: 0.01102256727 | O98: -4.2962515 | P98: 23.28742131 | Q98: -153.5156425 | R98: 392.5611253 | S98: 47.86254673 | T98: 134.0775165 | U98: -11.11691714 | Y98: 4.068849665 | Z98: 4.006755806 | AA98: -0.7322395884 | AB98: -0.6734549202 | AC98: 1.043876139 | AD98: 1.068916285 | AE98: -0.9294360172 | AF98: -5.949830747 | AG98: 7.225381068 | AH98: 4.099783494 | AI98: -0.7618732081 | AJ98: -4.2962515 | AK98: -4.070255139 | AL98: FALSE | AR98: 1.093274243
A99: 0 | B99: 59 | C99: 4.161191546 | D99: -0.8221021817 | E99: -2.165718918 | F99: -3.647057533 | G99: 3.245480124 | H99: -3.22069617 | I99: -3.99595971 | J99: -1.313717472 | K99: -4.192633102 | L99: -3.99595971 | M99: -0.04364249772 | N99: 0.01111581565 | O99: -4.371573566 | P99: 25.02672011 | Q99: -157.9233903 | R99: 406.9694253 | S99: 46.87078851 | T99: 144.4400727 | U99: -10.6363974 | Y99: 4.13048752 | Z99: 4.068849665 | AA99: -0.7919876949 | AB99: -0.7322395884 | AC99: 1.019576605 | AD99: 1.043876139 | AE99: -0.9762108751 | AF99: -5.998657905 | AG99: 7.292996486 | AH99: 4.161191546 | AI99: -0.8221021817 | AJ99: -4.371573566 | AK99: -0.3013184273 | AL99: FALSE | AR99: 1.112123799
A100: 0 | B100: 60 | C100: 4.22213283 | D100: -0.8832894331 | E100: -1.960177795 | F100: -3.842435278 | G100: 3.220527934 | H100: -3.271441862 | I100: -3.995819318 | J100: -1.333774467 | K100: -4.146211668 | L100: -3.995819318 | M100: -0.04364249772 | N100: 0.01121037918 | O100: -4.446892986 | P100: 26.70550797 | Q100: -162.5291164 | R100: 421.6757107 | S100: 45.57887956 | T100: 154.4671821 | U100: -10.0818181 | Y100: 4.191662188 | Z100: 4.13048752 | AA100: -0.8526958074 | AB100: -0.7919876949 | AC100: 0.9959800883 | AD100: 1.019576605 | AE100: -1.024377816 | AF100: -6.047767792 | AG100: 7.361783823 | AH100: 4.22213283 | AI100: -0.8832894331 | AJ100: -4.446892986 | AK100: -4.145574559 | AL100: FALSE | AR100: 1.130973355
A101: 0 | B101: 61 | C101: 4.28260022 | D101: -0.9454314584 | E101: -1.737946723 | F101: -4.026666918 | G101: 3.195198678 | H101: -3.322000401 | I101: -3.995676425 | J101: -1.353725299 | K101: -4.101205702 | L101: -3.995676425 | M101: -0.04364249772 | N101: 0.01130620735 | O101: -4.522209712 | P101: 28.31240604 | Q101: -167.3540574 | R101: 436.6825791 | S101: 43.9854087 | T101: 164.0911964 | U101: -9.453889027 | Y101: 4.252366525 | Z101: 4.191662188 | AA101: -0.9143604458 | AB101: -0.8526958074 | AC101: 0.9730514774 | AD101: 0.9959800883 | AE101: -1.073946071 | AF101: -6.097136786 | AG101: 7.431742159 | AH101: 4.28260022 | AI101: -0.9454314584 | AJ101: -4.522209712 | AK101: -0.3766351535 | AL101: FALSE | AR101: 1.149822911
A102: 0 | B102: 62 | C102: 4.342586626 | D102: -1.008524706 | E102: -1.499595037 | F102: -4.198380094 | G102: 3.169494367 | H102: -3.372369295 | I102: -3.995531025 | J102: -1.373568866 | K102: -4.057523131 | L102: -3.995531025 | M102: -0.04364249772 | N102: 0.01140325429 | O102: -4.597523698 | P102: 29.83610485 | Q102: -172.4161891 | R102: 451.9926693 | S102: 42.09074833 | T102: 173.2447614 | U102: -8.753769744 | Y102: 4.312593423 | Z102: 4.252366525 | AA102: -0.9769780823 | AB102: -0.9143604458 | AC102: 0.9507579395 | AD102: 0.9730514774 | AE102: -1.124924328 | AF102: -6.146741255 | AG102: 7.502870507 | AH102: 4.342586626 | AI102: -1.008524706 | AJ102: -4.597523698 | AK102: -4.220888544 | AL102: FALSE | AR102: 1.168672467
A103: 0 | B103: 63 | C103: 4.402084998 | D103: -1.072565579 | E103: -1.245801707 | F103: -4.356228571 | G103: 3.143417033 | H103: -3.422546081 | I103: -3.995383109 | J103: -1.393304091 | K103: -4.015079307 | L103: -3.995383109 | M103: -0.04364249772 | N103: 0.01150147824 | O103: -4.672834895 | P103: 31.26543244 | Q103: -177.729879 | R103: 467.6086613 | S103: 39.8970853 | T103: 181.8612234 | U103: -7.983073089 | Y103: 4.372335812 | Z103: 4.312593423 | AA103: -1.040545142 | AB103: -0.9769780823 | AC103: 0.9290687394 | AD103: 0.9507579395 | AE103: -1.177320745 | AF103: -6.196557564 | AG103: 7.575167823 | AH103: 4.402084998 | AI103: -1.072565579 | AJ103: -4.672834895 | AK103: -0.4519463508 | AL103: FALSE | AR103: 1.187522023
A104: =IF(B104=XRON,1,0) -> 0 | B104: 64 | C104: 4.461088325 | D104: -1.137550431 | E104: -0.9773544022 | F104: -4.498900799 | G104: 3.116968728 | H104: -3.472528322 | I104: =(L0+mazalazo*(D104*G104-C104*H104))/INERTIA -> -3.995232672 | J104: -1.412929921 | K104: -3.973796282 | L104: -3.995232672 | M104: -0.04364249772 | N104: 0.01160084114 | O104: -4.748143257 | P104: 32.58942317 | Q104: -183.3056902 | R104: 483.5332761 | S104: 37.40844206 | T104: 189.8750384 | U104: -7.143866148 | Y104: 4.431586662 | Z104: 4.372335812 | AA104: -1.105058005 | AB104: -1.040545142 | AC104: 0.9079550746 | AD104: 0.9290687394 | AE104: -1.231142949 | AF104: -6.246562092 | AG104: 7.648632996 | AH104: 4.461088325 | AI104: -1.137550431 | AJ104: -4.748143257 | AK104: -4.296196906 | AL104: FALSE | AR104: =B104*DT -> 1.206371579
A105: 0 | B105: 65 | C105: 4.519589633 | D105: -1.203475575 | E105: -0.6951479061 | F105: -4.625128463 | G105: 3.090151523 | H105: -3.522313609 | I105: -3.995079706 | J105: -1.432445327 | K105: -3.933602155 | L105: -3.995079706 | M105: -0.04364249772 | N105: =IF(Q105<>0,mazalazo*(D105*J105-C105*K105)/INERTIA,0) -> 0.01170130829 | O105: -4.823448735 | P105: 33.79738678 | Q105: -189.1503022 | R105: 499.7692757 | S105: 34.63068792 | T105: 197.2221837 | U105: -6.238668628 | Y105: 4.490338979 | Z105: 4.431586662 | AA105: -1.170513003 | AB105: -1.105058005 | AC105: 0.8873899247 | AD105: 0.9079550746 | AE105: -1.286398045 | AF105: -6.296731236 | AG105: 7.723264856 | AH105: 4.519589633 | AI105: -1.203475575 | AJ105: =IF(Q105<>0,O105,AJ104+TEL_OMEGA*DT) -> -4.823448735 | AK105: -0.5272518291 | AL105: FALSE | AR105: 1.225221135
A106: 0 | B106: 66 | C106: 4.577581988 | D106: -1.270337274 | E106: -0.4001818706 | F106: -4.733694975 | G106: 3.062967511 | H106: -3.571899563 | I106: -3.994924203 | J106: -1.451849304 | K106: -3.894430513 | L106: -3.994924203 | M106: -0.04364249772 | N106: 0.01180284795 | O106: -4.898751282 | P106: 34.87897725 | Q106: -195.266516 | R106: 516.3194628 | S106: =IF(Q106<>0,J106*COS(O106)+K106*SIN(O106)+2*U106*L106+E106*L106^2+F106*N106,0) -> 31.57154 | T106: =IF(Q106<>0,-J106*SIN(O106)+K106*COS(O106)-2*P106*L106+F106*L106^2-E106*N106,0) -> 203.8405697 | U106: -5.270448601 | Y106: 4.548585811 | Z106: 4.490338979 | AA106: -1.236906424 | AB106: -1.170513003 | AC106: 0.8673479157 | AD106: 0.8873899247 | AE106: -1.34309262 | AF106: -6.34704143 | AG106: 7.799062173 | AH106: 4.577581988 | AI106: -1.270337274 | AJ106: -4.898751282 | AK106: -4.371499453 | AL106: =AND(ABS(L106)>ABS(exactome)/10,ABS(L107)<ABS(exactome)/10) -> FALSE | AR106: 1.244070691
A107: 0 | B107: 67 | C107: 4.635058496 | D107: -1.338131749 | E107: -0.09355791216 | F107: -4.823443869 | G107: 3.0354188 | H107: -3.621283831 | I107: -3.994766157 | J107: =IF(Q107<>0,-mew*(G107+L107*D107)/SQRT((G107+L107*D107)^2+(H107-L107*C107)^2),-mew*L107^2*AH107) -> -1.471140871 | K107: =IF(Q107<>0,-mew*(G107-C107*L107)/SQRT((G107+D107*L107)^2+(I107-L107*C107)^2),-mew*L107^2*AI107) -> -3.856219912 | L107: -3.994766157 | M107: -0.04364249772 | N107: 0.0119054311 | O107: -4.97405085 | P107: 35.82426121 | Q107: -201.6533169 | R107: 533.1866811 | S107: 28.24055392 | T107: 209.6704479 | U107: =IF(Q107<>0,-G107*SIN(O107)+H107*COS(O107)-E107*L107,0) -> -4.242615595 | Y107: =(C107+C106)/2 -> 4.606320242 | Z107: =(C106+C105)/2 -> 4.548585811 | AA107: =(D107+D106)/2 -> -1.304234511 | AB107: =(D106+D105)/2 -> -1.236906424 | AC107: =-(C106-C107)/(D106-D107) -> 0.8478051957 | AD107: =-(C105-C106)/(D105-D106) -> 0.8673479157 | AE107: =((AA107-AB107)+AD107*Z107-AC107*Y107)/(AD107-AC107) -> -1.401232751 | AF107: =AA107+AC107*(AE107-Y107) -> -6.397469152 | AG107: =SQRT((AE107-Z107)^2+(AF107-AB107)^2) -> 7.876023653 | AH107: 4.635058496 | AI107: -1.338131749 | AJ107: -4.97405085 | AK107: -0.6025513972 | AL107: FALSE | AR107: 1.262920247
A108: 0 | B108: 68 | C108: 4.692012303 | D108: -1.406855176 | E108: 0.2235239456 | F108: -4.893287033 | G108: 3.007507519 | H108: -3.670464089 | I108: -3.994605559 | J108: -1.490319073 | K108: -3.818913433 | L108: -3.994605559 | M108: -0.04364249772 | N108: 0.01200903115 | O108: -5.049347391 | P108: 36.62378533 | Q108: -208.3059769 | R108: 550.3738146 | S108: 24.64910389 | T108: 214.6548147 | U108: -3.159011032 | Y108: 4.6635354 | Z108: 4.606320242 | AA108: -1.372493462 | AB108: -1.304234511 | AC108: 0.8287393227 | AD108: 0.8478051957 | AE108: -1.460824011 | AF108: -6.447990932 | AG108: 7.954147943 | AH108: 4.692012303 | AI108: -1.406855176 | AJ108: -5.049347391 | AK108: -4.446795994 | AL108: FALSE | AM108: =exactome -> -4 | AR108: 1.281769803
A109: 0 | B109: 69 | C109: 4.748436594 | D109: -1.476503689 | E109: 0.5497694773 | F109: -4.942212739 | G109: 2.979235813 | H109: -3.719438042 | I109: -3.994442402 | J109: -1.509382978 | K109: -3.782458275 | L109: -3.994442402 | M109: -0.04364249772 | N109: 0.01211362369 | O109: -5.124640856 | P109: 37.26864247 | Q109: -215.216185 | R109: 567.8837878 | S109: 20.81035239 | T109: 218.7398071 | U109: -2.023896019 | Y109: 4.720224449 | Z109: 4.6635354 | AA109: -1.441679432 | AB109: -1.372493462 | AC109: 0.8101291611 | AD109: 0.8287393227 | AE109: -1.521871475 | AF109: -6.498583366 | AG109: 8.033433631 | AH109: 4.748436594 | AI109: -1.476503689 | AJ109: -5.124640856 | AK109: -0.6778448626 | AL109: FALSE | AR109: 1.300619359
A110: 0 | B110: 70 | C110: 4.804324596 | D110: -1.547073376 | E110: 0.883795096 | F110: -4.969293419 | G110: 2.950605845 | H110: -3.768203424 | I110: -3.994276679 | J110: -1.52833168 | K110: -3.746805394 | L110: -3.994276679 | M110: -0.04364249772 | N110: 0.01221918634 | O110: -5.199931198 | P110: 37.75053599 | Q110: -222.3721966 | R110: 585.7195657 | S110: 16.73920917 | T110: 221.8750891 | U110: -0.8419365135 | Y110: 4.776380595 | Z110: 4.720224449 | AA110: -1.511788532 | AB110: -1.441679432 | AC110: 0.7919547878 | AD110: 0.8101291611 | AE110: -1.584379729 | AF110: -6.549223125 | AG110: 8.113879246 | AH110: 4.804324596 | AI110: -1.547073376 | AJ110: -5.199931198 | AK110: -4.522086335 | AL110: FALSE | AR110: 1.319468915
A111: 0 | B111: 71 | C111: 4.859669577 | D111: -1.618560286 | E111: 1.224133314 | F111: -4.973693137 | G111: 2.921619796 | H111: -3.816757997 | I111: -3.994108381 | J111: -1.547164297 | K111: -3.71190918 | L111: -3.994108381 | M111: -0.04364249772 | N111: 0.01232569848 | O111: -5.275218367 | P111: 38.06184206 | Q111: -229.7589996 | R111: 603.8841534 | S111: 12.45227986 | T111: 224.0142255 | U111: 0.3818141003 | Y111: 4.831997086 | Z111: 4.776380595 | AA111: -1.582816831 | AB111: -1.511788532 | AC111: 0.7741974065 | AD111: 0.7919547878 | AE111: -1.648352873 | AF111: -6.599886963 | AG111: 8.195483255 | AH111: 4.859669577 | AI111: -1.618560286 | AJ111: -5.275218367 | AK111: -0.7531320319 | AL111: FALSE | AR111: 1.33831847
A112: 0 | B112: 72 | C112: 4.914464844 | D112: -1.690960424 | E112: 1.569238807 | F112: -4.954674705 | G112: 2.89227986 | H112: -3.865099551 | I112: -3.993937501 | J112: -1.565879972 | K112: -3.677727166 | L112: -3.993937501 | M112: -0.04364249772 | N112: 0.01243314116 | O112: -5.350502316 | P112: 38.19566937 | Q112: -237.3584947 | R112: 622.380596 | S112: 7.967804183 | T112: =IF(Q112<>0,-J112*SIN(O112)+K112*COS(O112)-2*P112*L112+F112*L112^2-E112*N112,0) -> 225.1150415 | U112: 1.641934962 | Y112: 4.88706721 | Z112: 4.831997086 | AA112: -1.654760355 | AB112: -1.582816831 | AC112: 0.7568392682 | AD112: 0.7741974065 | AE112: -1.713794535 | AF112: -6.650551728 | AG112: 8.278244073 | AH112: =IF(Q112<>0,C112,(E112*COS(AJ112)-F112*SIN(AJ112)+C112)/2) -> 4.914464844 | AI112: =IF(Q112<>0,D112,(E112*SIN(AJ112)+F112*COS(AJ112)+D112)/2) -> -1.690960424 | AJ112: -5.350502316 | AK112: -4.597370284 | AL112: FALSE | AR112: 1.357168026
A113: 0 | B113: 73 | C113: 4.968703749 | D113: -1.764269754 | E113: 1.917495053 | F113: -4.911606401 | G113: 2.862588251 | H113: -3.913225906 | I113: -3.993764031 | J113: -1.584477874 | K113: -3.644219767 | L113: -3.993764031 | M113: -0.04364249772 | N113: 0.01254149688 | O113: -5.425782994 | P113: 38.14591597 | Q113: -245.1496897 | R113: 641.2119789 | S113: 3.305583959 | T113: 225.1399652 | U113: 2.932660159 | Y113: 4.941584297 | Z113: 4.88706721 | AA113: -1.727615089 | AB113: -1.654760355 | AC113: 0.7398635994 | AD113: 0.7568392682 | AE113: -1.78070787 | AF113: -6.701194368 | AG113: 8.362160054 | AH113: 4.968703749 | AI113: -1.764269754 | AJ113: -5.425782994 | AK113: -0.8284127104 | AL113: FALSE | AR113: 1.376017582
A114: 0 | B114: 74 | C114: 5.022379683 | D114: -1.8384842 | E114: 2.267221529 | F114: -4.843968247 | G114: 2.832547197 | H114: -3.961134911 | I114: -3.993587962 | J114: -1.602957194 | K114: -3.611350041 | L114: -3.993587962 | M114: -0.04364249772 | N114: 0.01265074953 | O114: -5.501060354 | P114: 37.90732281 | Q114: -253.1089095 | R114: 660.3814269 | S114: -1.513098854 | T114: 224.0563515 | U114: 4.247903529 | Y114: 4.995541716 | Z114: 4.941584297 | AA114: -1.801376977 | AB114: -1.727615089 | AC114: 0.7232545354 | AD114: 0.7398635994 | AE114: -1.849095577 | AF114: -6.751791942 | AG114: 8.447229498 | AH114: 5.022379683 | AI114: -1.8384842 | AJ114: -5.501060354 | AK114: -4.672647643 | AL114: FALSE | AR114: 1.394867138
A115: 0 | B115: 75 | C115: 5.075486081 | D115: -1.913599643 | E115: 2.616681431 | F115: -4.75135779 | G115: 2.802158939 | H115: -4.008824444 | I115: -3.993409287 | J115: -1.62131715 | K115: -3.579083481 | L115: -3.993409287 | M115: -0.04364249772 | N115: 0.01276088418 | O115: -5.576334345 | P115: 37.47552376 | Q115: -261.2100218 | R115: 679.8921047 | S115: -6.465573795 | T115: 221.8367842 | U115: 5.581285758 | Y115: 5.048932882 | Z115: 4.995541716 | AA115: -1.876041922 | AB115: -1.801376977 | AC115: 0.7069970597 | AD115: 0.7232545354 | AE115: -1.918959898 | AF115: -6.80232163 | AG115: 8.53345065 | AH115: 5.075486081 | AI115: -1.913599643 | AJ115: -5.576334345 | AK115: -0.903686702 | AL115: FALSE | AR115: 1.413716694
A116: 0 | B116: 76 | C116: 5.128016419 | D116: -1.989611929 | E116: 2.964089879 | F116: -4.633495356 | G116: 2.771425735 | H116: -4.056292412 | I116: -3.993227997 | J116: -1.639556984 | K116: -3.547387817 | L116: -3.993227997 | M116: -0.04364249772 | N116: 0.01287188706 | O116: -5.65160492 | P116: 36.84709148 | Q116: -269.4246819 | R116: 699.7472167 | S116: -11.52788286 | T116: 218.4593558 | U116: 6.926163644 | Y116: 5.10175125 | Z116: 5.048932882 | AA116: -1.951605786 | AB116: -1.876041922 | AC116: 0.6910769473 | AD116: 0.7069970597 | AE116: -1.990302634 | AF116: -6.852760734 | AG116: 8.6208217 | AH116: 5.128016419 | AI116: -1.989611929 | AJ116: -5.65160492 | AK116: -4.747918218 | AL116: FALSE | AR116: 1.43256625
A117: 0 | B117: 77 | C117: 5.179964217 | D117: -2.06651686 | E117: 3.307622582 | F117: -4.490228732 | G117: 2.740349856 | H117: -4.103536752 | I117: -3.993044083 | J117: -1.657675963 | K117: -3.516232848 | L117: -3.993044083 | M117: -0.04364249772 | N117: 0.01298374539 | O117: -5.726872028 | P117: 36.01957918 | Q117: -277.7225968 | R117: 719.9500064 | S117: -16.67489041 | T117: 213.9079207 | U117: 8.275661431 | Y117: 5.153990318 | Z117: 5.10175125 | AA117: -2.028064394 | AB117: -1.951605786 | AC117: 0.675480713 | AD117: 0.6910769473 | AE117: -2.063125146 | AF117: -6.903086694 | AG117: 8.709340787 | AH117: 5.179964217 | AI117: -2.06651686 | AJ117: -5.726872028 | AK117: -0.9789538098 | AL117: FALSE | AR117: 1.451415806
A118: 0 | B118: 78 | C118: 5.231323036 | D118: -2.144310202 | E118: 3.645424918 | F118: -4.32153724 | G118: 2.708933587 | H118: -4.150555429 | I118: -3.992857539 | J118: -1.67567338 | K118: -3.485590274 | L118: -3.992857539 | M118: -0.04364249772 | N118: 0.01309644733 | O118: -5.802135619 | P118: 34.99155757 | Q118: -286.071813 | R118: 740.503757 | S118: -21.88040151 | T118: 208.1723229 | U118: 9.622704044 | Y118: 5.205643626 | Z118: 5.153990318 | AA118: -2.105413531 | AB118: -2.028064394 | AC118: 0.6601955639 | AD118: 0.675480713 | AE118: -2.13742837 | AF118: -6.953277088 | AG118: 8.799005998 | AH118: 5.231323036 | AI118: -2.144310202 | AJ118: -5.802135619 | AL118: FALSE | AR118: 1.470265362
A119: 0 | B119: 79 | C119: 5.282086483 | D119: -2.222987683 | E119: 3.975621376 | F119: -4.127535163 | G119: 2.677179226 | H119: -4.197346439 | I119: -3.992668354 | J119: -1.693548549 | K119: -3.455433562 | L119: -3.992668354 | M119: -0.04364249772 | N119: 0.01320998188 | O119: -5.877395644 | P119: 33.76264706 | Q119: -294.439029 | R119: 761.4117905 | S119: -27.1172883 | T119: 201.2485933 | U119: 10.9600521 | Y119: 5.256704759 | Z119: 5.205643626 | AA119: -2.183648942 | AB119: -2.105413531 | AC119: 0.6452093551 | AD119: 0.6601955639 | AE119: -2.213212819 | AF119: -7.003309645 | AG119: 8.889815369 | AH119: 5.282086483 | AI119: -2.222987683 | AJ119: -5.877395644 | AL119: FALSE | AR119: 1.489114918
A120: 0 | B120: 80 | C120: 5.332248205 | D120: -2.302544992 | E120: 4.29632534 | F120: -3.908474502 | G120: 2.645089083 | H120: -4.243907805 | I120: -3.99247652 | J120: -1.711300812 | K120: -3.425737806 | L120: -3.99247652 | M120: -0.04364249772 | N120: 0.01332433883 | O120: -5.952652054 | P120: 32.3335447 | Q120: -302.789938 | R120: 782.6774681 | S120: -32.3576237 | T120: 193.1391175 | U120: 12.28033851 | Y120: 5.307167344 | Z120: 5.256704759 | AA120: -2.262766337 | AB120: -2.183648942 | AC120: 0.6305105487 | AD120: 0.6452093551 | AE120: -2.290478595 | AF120: -7.053162247 | AG120: 8.981766887 | AH120: 5.332248205 | AI120: -2.302544992 | AJ120: -5.952652054 | AL120: FALSE | AR120: 1.507964474
A121: 0 | B121: 81 | C121: 5.381801897 | D121: -2.382977782 | E121: 4.605649139 | F121: -3.664747028 | G121: 2.612665482 | H121: -4.290237581 | I121: -3.992282029 | J121: -1.728929534 | K121: -3.396479616 | L121: -3.992282029 | M121: -0.04364249772 | N121: 0.01343950866 | O121: -6.027904797 | P121: 30.7060457 | Q121: -311.0896037 | R121: 804.3041899 | S121: -37.57282195 | T121: 183.8527713 | U121: 13.57610655 | Y121: 5.357025051 | Z121: 5.307167344 | AA121: -2.342761387 | AB121: -2.262766337 | AC121: 0.6160881764 | AD121: 0.6305105487 | AE121: -2.369225399 | AF121: -7.102812938 | AG121: 9.074858492 | AH121: 5.381801897 | AI121: -2.382977782 | AJ121: -6.027904797 | AL121: FALSE | AR121: 1.52681403
A122: 0 | B122: 82 | C122: 5.430741293 | D122: -2.464281671 | E122: 4.90171433 | F122: -3.396885598 | G122: 2.579910755 | H122: -4.336333851 | I122: -3.992084872 | J122: -1.746434103 | K122: -3.367637 | L122: -3.992084872 | M122: -0.04364249772 | N122: 0.01355548252 | O122: -6.103153824 | P122: 28.88305928 | Q122: -319.3028771 | R122: 826.2953945 | S122: -42.73378527 | T122: 173.4050228 | U122: 14.83984913 | Y122: 5.406271595 | Z122: 5.357025051 | AA122: -2.423629727 | AB122: -2.342761387 | AC122: 0.6019318044 | AD122: 0.6160881764 | AE122: -2.449452535 | AF122: -7.152239927 | AG122: 9.169088075 | AH122: 5.430741293 | AI122: -2.464281671 | AJ122: -6.103153824 | AL122: FALSE | AR122: 1.545663586
A123: 0 | B123: 83 | C123: 5.479060175 | D123: -2.546452238 | E123: 5.182662163 | F123: -3.105564732 | G123: 2.546827251 | H123: -4.382194727 | I123: -3.991885039 | J123: -1.763813935 | K123: -3.339189271 | L123: -3.991885039 | M123: -0.04364249772 | N123: 0.01367225213 | O123: -6.178399085 | P123: 26.86861879 | Q123: -327.3948605 | R123: 848.6545593 | S123: -47.81105596 | T123: =IF(Q123<>0,-J123*SIN(O123)+K123*COS(O123)-2*P123*L123+F123*L123^2-E123*N123,0) -> 161.8179999 | U123: 16.06404911 | Y123: 5.454900734 | Z123: 5.406271595 | AA123: -2.505366955 | AB123: -2.423629727 | AC123: 0.5880315009 | AD123: 0.6019318044 | AE123: -2.531158921 | AF123: -7.2014216 | AG123: 9.264453486 | AH123: 5.479060175 | AI123: -2.546452238 | AJ123: -6.178399085 | AL123: FALSE | AR123: 1.564513141
A124: 0 | B124: 84 | C124: 5.526752367 | D124: -2.629485029 | E124: 5.446664154 | F124: -2.791600409 | G124: 2.513417324 | H124: -4.427818351 | I124: -3.991682523 | J124: -1.781068465 | K124: -3.311116951 | L124: -3.991682523 | M124: -0.04364249772 | N124: 0.01378980979 | O124: -6.253640527 | P124: 24.66788567 | Q124: -335.331432 | R124: 871.3852002 | S124: -52.77497321 | T124: 149.1205223 | U124: 17.24122057 | Y124: 5.502906271 | Z124: 5.454900734 | AA124: -2.587968634 | AB124: -2.505366955 | AC124: 0.5743778059 | AD124: 0.5880315009 | AE124: -2.614343099 | AF124: -7.250336517 | AG124: 9.360952526 | AH124: 5.526752367 | AI124: -2.629485029 | AJ124: -6.253640527 | AL124: FALSE | AR124: 1.583362697
A125: 0 | B125: 85 | C125: 5.57381174 | D125: -2.713375555 | E125: 5.691932738 | F125: -2.455949088 | G125: 2.479683342 | H125: -4.473202895 | I125: -3.991477313 | J125: -1.798197156 | K125: -3.283401692 | L125: -3.991477313 | M125: -0.04364249772 | N125: 0.01390814826 | O125: -6.328878102 | P125: 22.28714737 | Q125: -343.0798435 | R125: 894.4908711 | S125: -57.59583381 | T125: 135.3480977 | U125: 18.36395057 | Y125: 5.550282054 | Z125: 5.502906271 | AA125: -2.671430292 | AB125: -2.587968634 | AC125: 0.5609617034 | AD125: 0.5743778059 | AE125: -2.699003241 | AF125: -7.298963424 | AG125: 9.458582957 | AH125: 5.57381174 | AI125: -2.713375555 | AJ125: -6.328878102 | AL125: FALSE | AR125: 1.602212253
A126: 0 | B126: 86 | C126: 5.620232206 | D126: -2.798119292 | E126: 5.916731919 | F126: -2.099705935 | G126: 2.445627682 | H126: -4.518346559 | I126: -3.991269401 | J126: -1.815199492 | K126: -3.256026194 | L126: -3.991269401 | M126: -0.04364249772 | N126: 0.0140272608 | O126: -6.404111758 | P126: 19.73380903 | Q126: -350.6094144 | R126: 917.9751644 | S126: -62.24405601 | T126: 120.5428798 | U126: 19.42494144 | Y126: 5.597021973 | Z126: 5.550282054 | AA126: -2.755747424 | AB126: -2.671430292 | AC126: 0.5477745956 | AD126: 0.5609617034 | AE126: -2.78513716 | AF126: -7.347281253 | AG126: 9.5573425 | AH126: 5.620232206 | AI126: -2.798119292 | AJ126: -6.404111758 | AL126: FALSE | AR126: 1.621061809
A127: 0 | B127: 87 | C127: 5.666007725 | D127: -2.883711683 | E127: 6.119387882 | F127: -1.724102249 | G127: 2.41125273 | H127: -4.563247574 | I127: -3.991058777 | J127: -1.832074984 | K127: -3.228974137 | L127: -3.991058777 | M127: -0.04364249772 | N127: 0.01414714106 | O127: -6.479341444 | P127: 17.01637877 | Q127: -357.8923462 | R127: 941.8417101 | S127: -66.69034558 | T127: 104.7535901 | U127: 20.41705325 | Y127: 5.643119965 | Z127: 5.597021973 | AA127: -2.840915487 | AB127: -2.755747424 | AC127: 0.5348082783 | AD127: 0.5477745956 | AE127: -2.872742315 | AF127: -7.395269131 | AG127: 9.657228835 | AH127: 5.666007725 | AI127: -2.883711683 | AJ127: -6.479341444 | AL127: FALSE | AR127: 1.639911365
A128: 0 | B128: 88 | C128: 5.711132301 | D128: -2.970148137 | E128: 6.298299478 | F128: -1.330502088 | G128: 2.376560882 | H128: -4.607904199 | I128: -3.990845432 | J128: -1.848823162 | K128: -3.202230116 | L128: -3.990845432 | M128: -0.04364249772 | N128: 0.01426778311 | O128: -6.554567108 | P128: 14.14444672 | Q128: -364.9046964 | R128: 966.0941763 | S128: -70.90586339 | T128: 88.03540089 | U128: 21.33334617 | Y128: 5.688570013 | Z128: 5.643119965 | AA128: -2.92692991 | AB128: -2.840915487 | AC128: 0.5220549183 | AD128: 0.5348082783 | AE128: -2.961815825 | AF128: -7.442906382 | AG128: 9.758239603 | AH128: 5.711132301 | AI128: -2.970148137 | AJ128: -6.554567108 | AL128: FALSE | AR128: 1.658760921
A129: 0 | B129: 89 | C129: 5.755599983 | D129: -3.057424032 | E129: 6.45194856 | F129: -0.9203981009 | G129: 2.341554542 | H129: -4.652314724 | I129: -3.990629358 | J129: -1.865443582 | K129: -3.175779581 | L129: -3.990629358 | M129: -0.04364249772 | N129: 0.01438918137 | O129: -6.629788699 | P129: 11.12865759 | Q129: -371.627554 | R129: 990.7362688 | S129: -74.86239339 | T129: 70.44978139 | U129: 22.1671227 | Y129: 5.733366142 | Z129: 5.688570013 | AA129: -3.013786085 | AB129: -2.92692991 | AC129: 0.509507033 | AD129: 0.5220549183 | AE129: -3.052354473 | AF129: -7.490172529 | AG129: 9.860372411 | AH129: 5.755599983 | AI129: -3.057424032 | AJ129: -6.629788699 | AL129: FALSE | AR129: 1.677610477
A130: 0 | B130: 90 | C130: 5.799404867 | D130: -3.145534713 | E130: 6.578910075 | F130: -0.4954065657 | G130: 2.306236122 | H130: -4.696477466 | I130: -3.990410543 | J130: -1.881935824 | K130: -3.149608781 | L130: -3.990410543 | M130: -0.04364249772 | N130: 0.01451133057 | O130: -6.705006166 | P130: 7.980677042 | Q130: -378.0484698 | R130: 1015.771731 | S130: -78.53251025 | T130: 52.06430539 | U130: 22.9119693 | Y130: 5.777502425 | Z130: 5.733366142 | AA130: -3.101479373 | AB130: -3.013786085 | AC130: 0.4971574703 | AD130: 0.509507033 | AE130: -3.144354719 | AF130: -7.537047301 | AG130: 9.963624828 | AH130: 5.799404867 | AI130: -3.145534713 | AJ130: -6.705006166 | AL130: FALSE | AR130: 1.696460033
A131: 0 | B131: 91 | C131: 5.842541091 | D131: -3.234475494 | E131: 6.677861876 | F131: -0.05726164857 | G131: 2.270608041 | H131: -4.740390773 | I131: -3.990188979 | J131: -1.898299487 | K131: -3.123704715 | L131: -3.990188979 | M131: -0.04364249772 | N131: 0.0146342258 | O131: -6.780219456 | P131: 4.713151671 | Q131: -384.163191 | R131: 1041.204343 | S131: -81.88974574 | T131: 32.9524221 | U131: 23.56179731 | Y131: 5.820972979 | Z131: 5.777502425 | AA131: -3.190005104 | AB131: -3.101479373 | AC131: 0.4849993902 | AD131: 0.4971574703 | AE131: -3.237812702 | AF131: -7.583510635 | AG131: 10.06799439 | AH131: 5.842541091 | AI131: -3.234475494 | AJ131: -6.780219456 | AL131: FALSE | AR131: 1.715309589
A132: 0 | B132: 92 | C132: 5.885002843 | D132: -3.324241658 | E132: 6.747594179 | F132: 0.3921910971 | G132: 2.234672727 | H132: -4.784053022 | I132: -3.989964656 | J132: -1.914534198 | K132: -3.098055081 | L132: -3.989964656 | M132: -0.04364249772 | N132: 0.01475786238 | O132: -6.855428518 | P132: 1.339662903 | Q132: -389.9777235 | R132: 1067.037923 | S132: -84.90875283 | T132: 13.19319014 | U132: 24.11088295 | Y132: 5.863771967 | Z132: 5.820972979 | AA132: -3.279358576 | AB132: -3.190005104 | AC132: 0.4730262482 | AD132: 0.4849993902 | AE132: -3.332724256 | AF132: -7.629542681 | AG132: 10.17347861 | AH132: 5.885002843 | AI132: -3.324241658 | AJ132: -6.855428518 | AL132: FALSE | AR132: 1.734159145
A133: 0 | B133: 93 | C133: 5.926784353 | D133: -3.414828457 | E133: 6.787018624 | F133: 0.8510019755 | G133: 2.198432614 | H133: -4.827462618 | I133: -3.989737564 | J133: -1.930639601 | K133: -3.072648237 | L133: -3.989737564 | M133: -0.04364249772 | N133: 0.01488223593 | O133: -6.930633299 | P133: -2.12532515 | Q133: -395.5106661 | R133: 1093.276326 | S133: -87.56546666 | T133: -7.129024538 | U133: 24.55390601 | Y133: 5.905893598 | Z133: 5.863771967 | AA133: -3.369535057 | AB133: -3.279358576 | AC133: 0.4612317788 | AD133: 0.4730262482 | AE133: -3.429084913 | AF133: -7.675123801 | AG133: 10.28007495 | AH133: 5.926784353 | AI133: -3.414828457 | AJ133: -6.930633299 | AL133: FALSE | AR133: 1.753008701
A134: 0 | B134: 94 | C134: 5.9678799 | D134: -3.506231114 | E134: 6.795176861 | F134: 1.317125111 | G134: 2.161890143 | H134: -4.870617996 | I134: -3.989507694 | J134: -1.946615367 | K134: -3.047473157 | L134: -3.989507694 | M134: -0.04364249772 | N134: 0.0150073423 | O134: -7.005833748 | P134: -5.666523699 | Q134: -400.7955957 | R134: 1119.923443 | S134: -89.83726138 | T134: -27.92488559 | U134: 24.88598723 | Y134: 5.947332127 | Z134: 5.905893598 | AA134: -3.460529785 | AB134: -3.369535057 | AC134: 0.4496099809 | AD134: 0.4612317788 | AE134: -3.526889915 | AF134: -7.720234576 | AG134: 10.38778086 | AH134: 5.9678799 | AI134: -3.506231114 | AJ134: -7.005833748 | AL134: FALSE | AR134: 1.771858257
A135: 0 | B135: 95 | C135: 6.008283807 | D135: -3.598444822 | E135: 6.771248627 | F135: 1.788427096 | G135: 2.125047761 | H135: -4.91351762 | I135: -3.989275035 | J135: -1.962461185 | K135: -3.022519396 | L135: -3.989275035 | M135: -0.04364249772 | N135: 0.01513317758 | O135: -7.08102981 | P135: -9.267882927 | Q135: -405.8829927 | R135: 1146.983204 | S135: -91.70310209 | T135: -49.10045712 | U135: 25.10272393 | Y135: 5.988081854 | Z135: 5.947332127 | AA135: -3.552337968 | AB135: -3.460529785 | AC135: 0.4381551034 | AD135: 0.4496099809 | AE135: -3.626134219 | AF135: -7.764855806 | AG135: 10.49659375 | AH135: 6.008283807 | AI135: -3.598444822 | AJ135: -7.08102981 | AL135: FALSE | AR135: 1.790707813
A136: 0 | B136: 96 | C136: 6.047990444 | D136: -3.691464748 | E136: 6.714559245 | F136: 2.262696298 | G136: 2.087907918 | H136: -4.956159982 | I136: -3.989039578 | J136: -1.978176769 | K136: -2.997777055 | L136: -3.989039578 | M136: -0.04364249772 | N136: 0.01525973807 | O136: -7.156221435 | P136: -12.91266105 | Q136: -410.8408566 | R136: 1174.459572 | S136: -93.14369076 | T136: -70.55760694 | U136: 25.20022376 | Y136: 6.028137126 | Z136: 5.988081854 | AA136: -3.644954785 | AB136: -3.552337968 | AC136: 0.4268616326 | AD136: 0.4381551034 | AE136: -3.72681251 | AF136: -7.808968513 | AG136: 10.60651102 | AH136: 6.047990444 | AI136: -3.691464748 | AJ136: -7.156221435 | AL136: FALSE | AR136: 1.809557368
A137: 0 | B137: 97 | C137: 6.086994228 | D137: -3.785286026 | E137: 6.624586499 | F137: 2.73765278 | G137: 2.050473073 | H137: -4.998543604 | I137: -3.988801313 | J137: -1.993761853 | K137: -2.973236747 | L137: -3.988801313 | M137: -0.04364249772 | N137: 0.01538702028 | O137: -7.231408568 | P137: -16.58349851 | Q137: -415.7529948 | R137: 1202.35655 | S137: -94.14160544 | T137: -92.19444056 | U137: 25.1751364 | Y137: 6.067492336 | Z137: 6.028137126 | AA137: -3.738375387 | AB137: -3.644954785 | AC137: 0.4157242794 | AD137: 0.4268616326 | AE137: -3.828919202 | AF137: -7.852553942 | AG137: 10.71753004 | AH137: 6.086994228 | AI137: -3.785286026 | AJ137: -7.231408568 | AL137: FALSE | AR137: 1.828406924
A138: 0 | B138: 98 | C138: 6.12528962 | D138: -3.879903767 | E138: 6.500966834 | F138: 3.210958797 | G138: 2.012745688 | H138: -5.040667036 | I138: -3.988560228 | J138: -2.009216193 | K138: -2.948889569 | L138: -3.988560228 | M138: -0.04364249772 | N138: 0.01551502089 | O138: -7.306591158 | P138: -20.26249703 | Q138: -420.7143875 | R138: 1230.678176 | S138: -94.68143175 | T138: -113.9057644 | U138: 25.02468284 | Y138: 6.106141924 | Z138: 6.067492336 | AA138: -3.832594897 | AB138: -3.738375387 | AC138: 0.4047379678 | AD138: 0.4157242794 | AE138: -3.932448456 | AF138: -7.895593567 | AG138: 10.82964814 | AH138: 6.12528962 | AI138: -3.879903767 | AJ138: -7.306591158 | AL138: FALSE | AR138: 1.84725648
A139: 0 | B139: 99 | C139: 6.16287113 | D139: -3.975313053 | E139: 6.34350084 | F139: 3.68022982 | G139: 1.97472823 | H139: -5.082528857 | I139: -3.988316316 | J139: -2.024539565 | K139: -2.924727073 | L139: -3.988316316 | M139: -0.04364249772 | N139: 0.01564373676 | O139: -7.381769149 | P139: -23.93130307 | Q139: -425.824161 | R139: 1259.428522 | S139: -94.74988587 | T139: -135.5835757 | U139: 24.7466823 | Y139: 6.144080375 | Z139: 6.106141924 | AA139: -3.92760841 | AB139: -3.832594897 | AC139: 0.3938978243 | AD139: 0.4047379678 | AE139: -4.037394178 | AF139: -7.938069085 | AG139: 10.94286265 | AH139: 6.16287113 | AI139: -3.975313053 | AJ139: -7.381769149 | AL139: FALSE | AR139: 1.866106036
A140: 0 | B140: 100 | C140: 6.199733313 | D140: -4.071508939 | E140: 6.152157965 | F140: 4.143046049 | G140: 1.936423169 | H140: -5.124127673 | I140: -3.988069564 | J140: -2.039731768 | K140: -2.900741241 | L140: -3.988069564 | M140: -0.04364249772 | N140: 0.01577316494 | O140: -7.456942489 | P140: -27.57119556 | Q140: -431.1779174 | R140: 1288.611699 | S140: -94.33592825 | T140: -157.1175782 | U140: 24.33957625 | Y140: 6.181302222 | Z140: 6.144080375 | AA140: -4.023410996 | AB140: -3.92760841 | AC140: 0.3831991676 | AD140: 0.3938978243 | AE140: -4.143750034 | AF140: -7.979962425 | AG140: 11.05717087 | AH140: 6.199733313 | AI140: -4.071508939 | AJ140: -7.456942489 | AL140: FALSE | AR140: 1.884955592
A141: 0 | B141: 101 | C141: 6.235870772 | D141: -4.168486454 | E141: 5.927080432 | F141: 4.596964342 | G141: 1.897832979 | H141: -5.16546212 | I141: -3.987819962 | J141: -2.054792619 | K141: -2.876924458 | L141: -3.987819962 | M141: -0.04364249772 | N141: 0.01590330261 | O141: -7.532111125 | P141: -31.16317722 | Q141: -436.8614515 | R141: 1318.231852 | S141: -93.43086717 | T141: -178.395719 | U141: 23.80244975 | Y141: 6.217802043 | Z141: 6.181302222 | AA141: -4.119997696 | AB141: -4.023410996 | AC141: 0.3726374987 | AD141: 0.3831991676 | AE141: -4.251509454 | AF141: -8.021255745 | AG141: 11.17257008 | AH141: 6.235870772 | AI141: -4.168486454 | AJ141: -7.532111125 | AL141: FALSE | AR141: 1.903805148
A142: 0 | B142: 102 | C142: 6.271278155 | D142: -4.266240603 | E142: 5.668586306 | F142: 5.039530521 | G142: 1.858960139 | H142: -5.206530862 | I142: -3.987567501 | J142: -2.069721958 | K142: -2.853269496 | L142: -3.987567501 | M142: -0.04364249772 | N142: 0.01603414711 | O142: -7.607275001 | P142: -34.68806924 | Q142: -442.9469919 | R142: 1348.293161 | S142: -92.02845153 | T142: -199.304747 | U142: 23.13504956 | Y142: 6.253574464 | Z142: 6.217802043 | AA142: -4.217363529 | AB142: -4.119997696 | AC142: 0.3622084923 | AD142: 0.3726374987 | AE142: -4.360665643 | AF142: -8.061931434 | AG142: 11.28905754 | AH142: 6.271278155 | AI142: -4.266240603 | AJ142: -7.607275001 | AL142: FALSE | AR142: 1.922654704
A143: 0 | B143: 103 | C143: 6.305950158 | D143: -4.364766366 | E143: 5.377171697 | F143: 5.468291997 | G143: 1.819807127 | H143: -5.24733259 | I143: -3.987312169 | J143: -2.084519642 | K143: -2.829769484 | L143: -3.987312169 | M143: -0.04364249772 | N143: 0.01616569593 | O143: -7.682434065 | P143: -38.12660888 | Q143: -449.491891 | R143: 1378.799844 | S143: -90.1249521 | T143: -219.7307879 | U143: 22.33779918 | Y143: 6.288614157 | Z143: 6.253574464 | AA143: -4.315503484 | AB143: -4.217363529 | AC143: 0.3519079881 | AD143: 0.3622084923 | AE143: -4.471211585 | AF143: -8.101972113 | AG143: 11.40663051 | AH143: 6.305950158 | AI143: -4.364766366 | AJ143: -7.682434065 | AL143: FALSE | AR143: 1.94150426
A144: 0 | B144: 104 | C144: 6.339881523 | D144: -4.464058696 | E144: 5.05351205 | F144: 5.880810635 | G144: 1.780376427 | H144: -5.287866025 | I144: -3.987053956 | J144: -2.099185552 | K144: -2.806417895 | L144: -3.987053956 | M144: -0.04364249772 | N144: 0.01629794668 | O144: -7.757588261 | P144: -41.45954932 | Q144: -456.5389914 | R144: 1409.75615 | S144: -87.71923062 | T144: -239.5599342 | U144: 21.41181044 | Y144: 6.32291584 | Z144: 6.288614157 | AA144: -4.414412531 | AB144: -4.315503484 | AC144: 0.3417319828 | AD144: 0.3519079881 | AE144: -4.583140054 | AF144: -8.141360636 | AG144: 11.52528622 | AH144: 6.339881523 | AI144: -4.464058696 | AJ144: -7.757588261 | AL144: FALSE | AR144: 1.960353816
A145: 0 | B145: 105 | C145: 6.373067039 | D145: -4.564112525 | E145: 4.69846252 | F145: 6.274675814 | G145: 1.740670525 | H145: -5.328129915 | I145: -3.986792852 | J145: -2.113719584 | K145: -2.783208526 | L145: -3.986792852 | M145: -0.04364249772 | N145: 0.01643089713 | O145: -7.832737536 | P145: -44.66776154 | Q145: -464.1178362 | R145: 1441.166368 | S145: -84.81279621 | T145: -258.6788468 | U145: 20.35889174 | Y145: 6.356474281 | Z145: 6.32291584 | AA145: -4.51408561 | AB145: -4.414412531 | AC145: 0.3316766225 | AD145: 0.3417319828 | AE145: -4.696443618 | AF145: -8.180080087 | AG145: 11.6450219 | AH145: 6.373067039 | AI145: -4.564112525 | AJ145: -7.832737536 | AL145: FALSE | AR145: 1.979203372
A146: 0 | B146: 106 | C146: 6.405501542 | D146: -4.66492276 | E146: 4.313057393 | F146: 6.647517604 | G146: 1.700691906 | H146: -5.368123034 | I146: -3.986528846 | J146: -2.128121657 | K146: -2.760135478 | L146: -3.986528846 | M146: -0.04364249772 | N146: 0.01656454513 | O146: -7.907881835 | P146: -47.73233751 | Q146: -472.2461379 | R146: 1473.034817 | S146: -81.40984852 | T146: -276.9753657 | U146: 19.18155259 | Y146: 6.38928429 | Z146: 6.356474281 | AA146: -4.614517642 | AB146: -4.51408561 | AC146: 0.3217381957 | AD146: 0.3316766225 | AE146: -4.81111465 | AF146: -8.218113788 | AG146: 11.76583475 | AH146: 6.405501542 | AI146: -4.66492276 | AJ146: -7.907881835 | AL146: FALSE | AR146: 1.998052928
A147: 0 | B147: 107 | C147: 6.437179915 | D147: -4.766484286 | E147: 3.898508547 | F147: 6.997019996 | G147: 1.660443058 | H147: -5.407844185 | I147: -3.986261926 | J147: -2.142391707 | K147: -2.737193146 | L147: -3.986261926 | M147: -0.04364249772 | N147: 0.01669888869 | O147: -7.983021102 | P147: -50.63469425 | Q147: -480.931196 | R147: 1505.365855 | S147: -77.51730713 | T147: -294.3391257 | U147: 17.88300459 | Y147: 6.421340729 | Z147: 6.38928429 | AA147: -4.715703523 | AB147: -4.614517642 | AC147: 0.3119131264 | AD147: 0.3217381957 | AE147: -4.927145333 | AF147: -8.255445291 | AG147: 11.88772197 | AH147: 6.437179915 | AI147: -4.766484286 | AJ147: -7.983021102 | AL147: FALSE | AR147: 2.016902484
A148: 0 | B148: 108 | C148: 6.468097088 | D148: -4.868791967 | E148: 3.456202947 | F148: 7.320934117 | G148: 1.619926471 | H148: -5.447292199 | I148: -3.985992082 | J148: -2.15652969 | K148: -2.714376195 | L148: -3.985992082 | M148: -0.04364249772 | N148: 0.01683392591 | O148: -8.058155282 | P148: -53.35667819 | Q148: -490.1711381 | R148: 1538.16387 | S148: -73.14482694 | T148: -310.6621756 | U148: 16.46715864 | Y148: 6.452638502 | Z148: 6.421340729 | AA148: -4.817638126 | AB148: -4.715703523 | AC148: 0.3021979681 | AD148: 0.3119131264 | AE148: -5.044527667 | AF148: -8.292058381 | AG148: 12.01068075 | AH148: 6.468097088 | AI148: -4.868791967 | AJ148: -8.058155282 | AL148: FALSE | AR148: 2.03575204
A149: 0 | B149: 109 | C149: 6.498248038 | D149: -4.971840641 | E149: 2.987699156 | F149: 7.617091353 | G149: 1.579144634 | H149: -5.486465934 | I149: -3.985719303 | J149: -2.170535579 | K149: -2.691679554 | L149: -3.985719303 | M149: -0.04364249772 | N149: 0.01696965503 | O149: -8.133284321 | P149: -55.88066932 | Q149: -499.9559626 | R149: 1571.433289 | S149: -68.30479905 | T149: -325.8395949 | U149: 14.93861837 | Y149: 6.483172563 | Z149: 6.452638502 | AA149: -4.920316304 | AB149: -4.817638126 | AC149: 0.2925893973 | AD149: 0.3021979681 | AE149: -5.163253476 | AF149: -8.32793708 | AG149: 12.13470829 | AH149: 6.498248038 | AI149: -4.971840641 | AJ149: -8.133284321 | AL149: FALSE | AR149: 2.054601595 | AU149: End If
A150: 0 | B150: 110 | C150: 6.527627788 | D150: -5.075625129 | E150: 2.494722875 | F150: 7.883416313 | G150: 1.538100037 | H150: -5.525364274 | I150: -3.985443579 | J150: -2.184409367 | K150: -2.669098398 | L150: -3.985443579 | M150: -0.04364249772 | N150: 0.01710607437 | O150: -8.208408163 | P150: -58.18968451 | Q150: -510.2684026 | R150: 1605.178568 | S150: -63.01233698 | T150: -339.7701084 | U150: 13.30266973 | Y150: 6.512937913 | Z150: 6.483172563 | AA150: -5.023732885 | AB150: -4.920316304 | AC150: 0.2830842084 | AD150: 0.2925893973 | AE150: -5.283314417 | AF150: -8.363065638 | AG150: 12.25980175 | AH150: 6.527627788 | AI150: -5.075625129 | AJ150: -8.208408163 | AL150: FALSE | AR150: 2.073451151 | AU150: 'èÝëù íá âñù ôçí ôïìÞ ôçò êáèÝôïõ ðÜíù óôá xmes1,ymes1, xmes2,ymes2
A151: 0 | B151: 111 | C151: 6.556231408 | D151: -5.180140229 | E151: 1.979161512 | F151: 8.117939565 | G151: 1.496795171 | H151: -5.563986131 | I151: -3.985164897 | J151: -2.198151064 | K151: -2.646628139 | L151: -3.985164897 | M151: -0.04364249772 | N151: 0.01724318237 | O151: -8.283526751 | P151: -60.26747945 | Q151: -521.0846479 | R151: 1639.404202 | S151: -57.28524812 | T151: -352.3566913 | U151: 11.56526679 | Y151: 6.541929598 | Z151: 6.512937913 | AA151: -5.127882679 | AB151: -5.023732885 | AC151: 0.2736793078 | AD151: 0.2830842084 | AE151: -5.404701983 | AF151: -8.397428541 | AG151: 12.3859583 | AH151: 6.556231408 | AI151: -5.180140229 | AJ151: -8.283526751 | AL151: FALSE | AR151: 2.092300707 | AU151: If ya2 - Ya1 <> 0 Then
A152: 0 | B152: 112 | C152: 6.584054016 | D152: -5.285380721 | E152: 1.443057787 | F152: 8.318810064 | G152: 1.455232524 | H152: -5.602330444 | I152: -3.984883247 | J152: -2.211760697 | K152: -2.62426441 | L152: -3.984883247 | M152: -0.04364249772 | N152: 0.01738097758 | O152: -8.358640031 | P152: -62.09864872 | Q152: -532.3749583 | R152: 1674.114717 | S152: -51.14399007 | T152: -363.5071648 | U152: 9.733013702 | Y152: 6.570142712 | Z152: 6.541929598 | AA152: -5.232760475 | AB152: -5.127882679 | AC152: 0.2643717092 | AD152: 0.2736793078 | AE152: -5.527407513 | AF152: -8.431010506 | AG152: 12.51317513 | AH152: 6.584054016 | AI152: -5.285380721 | AJ152: -8.358640031 | AL152: FALSE | AR152: 2.111150263 | AU152: klisia1 = -(xa2 - xA1) / (ya2 - Ya1): klisia2 = -(xa3 - xa2) / (ya3 - ya2)
A153: 0 | B153: 113 | C153: 6.611090778 | D153: -5.391341361 | E153: 0.8886023958 | F153: 8.484307203 | G153: 1.413414586 | H153: -5.640396177 | I153: -3.984598618 | J153: -2.225238312 | K153: -2.602003055 | L153: -3.984598618 | M153: -0.04364249772 | N153: 0.01751945865 | O153: -8.433747946 | P153: -63.66872328 | Q153: -544.1041992 | R153: 1709.314671 | S153: -44.61161217 | T153: -373.1347764 | U153: 7.813142864 | Y153: 6.597572397 | Z153: 6.570142712 | AA153: -5.338361041 | AB153: -5.232760475 | AC153: 0.2551585287 | AD153: 0.2643717092 | AE153: -5.651422197 | AF153: -8.46379648 | AG153: 12.64144938 | AH153: 6.611090778 | AI153: -5.391341361 | AJ153: -8.433747946 | AL153: FALSE | AR153: 2.129999819 | AU153: klisiAA = (klisia1 + klisia2) / 2
A154: 0 | B154: 114 | C154: 6.637336903 | D154: -5.49801689 | E154: 0.3181257481 | F154: 8.612852425 | G154: 1.371343845 | H154: -5.678182322 | I154: -3.984310998 | J154: -2.238583971 | K154: -2.579840124 | L154: -3.984310998 | M154: -0.04364249772 | N154: 0.01765862432 | O154: -8.508850439 | P154: -64.96426488 | Q154: -556.232324 | R154: 1745.008659 | S154: -37.71368196 | T154: -381.1587636 | U154: 5.813489334 | Y154: 6.62421384 | Z154: 6.597572397 | AA154: -5.444679126 | AB154: -5.338361041 | AC154: 0.2460369801 | AD154: 0.2551585287 | AE154: -5.776737081 | AF154: -8.495771641 | AG154: 12.77077824 | AH154: 6.637336903 | AI154: -5.49801689 | AJ154: -8.508850439 | AL154: FALSE | AR154: 2.148849375 | AU154: atnklisia1 = Pi / 2
A155: 0 | B155: 115 | C155: 6.66278765 | D155: -5.605402029 | E155: -0.2659111871 | F155: 8.703020304 | G155: 1.329022788 | H155: -5.715687897 | I155: -3.984020375 | J155: -2.251797753 | K155: -2.557771855 | L155: -3.984020375 | M155: -0.04364249772 | N155: 0.01779847345 | O155: -8.583947453 | P155: -65.97295693 | Q155: -568.7148216 | R155: 1781.201307 | S155: -30.47819694 | T155: -387.5048954 | U155: 3.742461585 | Y155: 6.650062276 | Z155: 6.62421384 | AA155: -5.551709459 | AB155: -5.444679126 | AC155: 0.2370043709 | AD155: 0.2460369801 | AE155: -5.903343076 | AF155: -8.526921398 | AG155: 12.90115885 | AH155: 6.66278765 | AI155: -5.605402029 | AJ155: -8.583947453 | AL155: FALSE | AR155: 2.167698931 | AU155: End If
A156: 0 | B156: 116 | C156: 6.687438324 | D156: -5.713491479 | E156: -0.8609269062 | F156: 8.753549056 | G156: 1.286453898 | H156: -5.752911945 | I156: -3.98372674 | J156: -2.264879753 | K156: -2.535794669 | L156: -3.98372674 | M156: -0.04364249772 | N156: 0.01793900497 | O156: -8.659038933 | P156: -66.68369108 | Q156: -581.503143 | R156: 1817.897274 | S156: -22.93548178 | T156: -392.1059905 | U156: 1.609008663 | Y156: 6.675112987 | Z156: 6.650062276 | AA156: -5.659446754 | AB156: -5.551709459 | AC156: 0.2280580979 | AD156: 0.2370043709 | AE156: -6.031230961 | AF156: -8.557231385 | AG156: 13.03258839 | AH156: 6.687438324 | AI156: -5.713491479 | AJ156: -8.659038933 | AL156: FALSE | AR156: 2.186548487 | AU156: Dim PoINTPOINT1 As POIntApi2
A157: 0 | B157: 117 | C157: 6.711284278 | D157: -5.822279925 | E157: -1.46423022 | F157: 8.763350389 | G157: 1.24363966 | H157: -5.789853537 | I157: -3.983430079 | J157: -2.277830084 | K157: -2.513905163 | L157: -3.983430079 | M157: -0.04364249772 | N157: 0.01808021794 | O157: -8.734124821 | P157: -67.08664915 | Q157: -594.5451174 | R157: 1855.101252 | S157: -15.11807119 | T157: -394.9024074 | U157: -0.5774161284 | Y157: 6.699361301 | Z157: 6.675112987 | AA157: -5.767885702 | AB157: -5.659446754 | AC157: 0.2191956434 | AD157: 0.2280580979 | AE157: -6.160391393 | AF157: -8.586687468 | AG157: 13.16506403 | AH157: 6.711284278 | AI157: -5.822279925 | AJ157: -8.734124821 | AL157: FALSE | AR157: 2.205398043 | AU157: Dim pointpoINT2 As POIntApi2
A158: 0 | B158: 118 | C158: 6.734320909 | D158: -5.931762034 | E158: -2.073031892 | F158: 8.731518637 | G158: 1.200582553 | H158: -5.826511767 | I158: -3.983130382 | J158: -2.290648873 | K158: -2.492100097 | L158: -3.983130382 | M158: -0.04364249772 | N158: 0.01822211149 | O158: -8.80920506 | P158: -67.17337981 | Q158: -607.7853668 | R158: 1892.817966 | S158: -7.060578941 | T158: -395.8425049 | U158: -2.806894877 | Y158: 6.722802593 | Z158: 6.699361301 | AA158: -5.87702098 | AB158: -5.767885702 | AC158: 0.2104145718 | AD158: 0.2191956434 | AE158: -6.290814909 | AF158: -8.615275734 | AG158: 13.29858293 | AH158: 6.734320909 | AI158: -5.931762034 | AJ158: -8.80920506 | AL158: FALSE | AR158: 2.224247599 | AU158: If omEGa < omega0 / 5 And foreSxtypo > 10 Then
A159: 0 | B159: 119 | C159: 6.756543663 | D159: -6.041932458 | E159: -2.684457011 | F159: 8.657339121 | G159: 1.157285057 | H159: -5.862885757 | I159: -3.982827637 | J159: -2.303336264 | K159: -2.470376391 | L159: -3.982827637 | M159: -0.04364249772 | N159: 0.01836468485 | O159: -8.884279593 | P159: -66.93686948 | Q159: -621.1657235 | R159: 1931.052172 | S159: 1.20044646 | T159: -394.8830675 | U159: -5.069087913 | Y159: 6.745432286 | Z159: 6.722802593 | AA159: -5.986847246 | AB159: -5.87702098 | AC159: 0.2017125257 | AD159: 0.2104145718 | AE159: -6.422491932 | AF159: -8.642982499 | AG159: 13.43314227 | AH159: 6.756543663 | AI159: -6.041932458 | AJ159: -8.884279593 | AL159: FALSE | AR159: 2.243097155 | AU159: PoINTPOINT1 = PolyRegMnu2()
A160: 0 | B160: 120 | C160: 6.777948033 | D160: -6.152785829 | E160: -3.295558055 | F160: 8.540295668 | G160: 1.113749647 | H160: -5.898974653 | I160: -3.982521832 | J160: -2.315892415 | K160: -2.448731114 | L160: -3.982521832 | M160: -0.04364249772 | N160: 0.01850793736 | O160: -8.95934836 | P160: -66.37160708 | Q160: -634.6256551 | R160: 1969.808659 | S160: 9.626679091 | T160: -391.989696 | U160: -7.353279667 | Y160: 6.767245848 | Z160: 6.745432286 | AA160: -6.097359143 | AB160: -5.986847246 | AC160: 0.1930872229 | AD160: 0.2017125257 | AE160: -6.555412778 | AF160: -8.669794298 | AG160: 13.56873923 | AH160: 6.777948033 | AI160: -6.152785829 | AJ160: -8.95934836 | AK160: =(AJ160-AJ159)/DT -> -3.982521832 | AL160: FALSE | AR160: 2.261946711 | AU160: protip1 = PoINTPOINT1.x
A161: 0 | B161: 121 | C161: 6.798529556 | D161: -6.264316766 | E161: -3.903328586 | F161: 8.380077244 | G161: 1.069978794 | H161: -5.934777625 | I161: -3.982212955 | J161: -2.328317501 | K161: -2.42716148 | L161: -3.982212955 | M161: -0.04364249772 | N161: 0.01865186845 | O161: -9.034411306 | P161: -65.47364203 | Q161: -648.1027019 | R161: 2009.092249 | S161: 18.17818511 | T161: -387.1371577 | U161: -9.648427367 | Y161: 6.788238794 | Z161: 6.767245848 | AA161: -6.208551298 | AB161: -6.097359143 | AC161: 0.1845364528 | AD161: 0.1930872229 | AE161: -6.689567663 | AF161: -8.695697892 | AG161: 13.705371 | AH161: 6.798529556 | AI161: -6.264316766 | AJ161: -9.034411306 | AK161: -3.982212955 | AL161: FALSE | AR161: 2.280796267 | AU161: defter1 = PoINTPOINT1.z
A162: 0 | B162: 122 | C162: 6.818283819 | D162: -6.376519873 | E162: -4.504717515 | F162: 8.176583641 | G162: 1.025974967 | H162: -5.970293871 | I162: -3.981900995 | J162: -2.34061171 | K162: -2.405664838 | L162: -3.981900995 | M162: -0.04364249772 | N162: 0.01879647763 | O162: -9.109468372 | P162: -64.24063522 | Q162: -661.532928 | R162: 2048.907794 | S162: 26.81360382 | T162: -380.3096957 | U162: -11.94321235 | Y162: 6.808406688 | Z162: 6.788238794 | AA162: -6.32041832 | AB162: -6.208551298 | AC162: 0.1760580741 | AD162: 0.1845364528 | AE162: -6.824946704 | AF162: -8.72068026 | AG162: 13.84303476 | AH162: 6.818283819 | AI162: -6.376519873 | AJ162: -9.109468372 | AK162: -3.981900995 | AL162: FALSE | AR162: 2.299645822 | AU162: pointpoINT2 = PolyRegMnu3()
A163: 0 | B163: 123 | C163: 6.837206453 | D163: -6.489389736 | E163: -5.096643869 | F163: 7.92993017 | G163: 0.981740632 | H163: -6.005522611 | I163: -3.98158594 | J163: -2.352775245 | K163: -2.384238669 | L163: -3.98158594 | M163: -0.04364249772 | N163: 0.01894176453 | O163: -9.184519499 | P163: -62.67190239 | Q163: -674.8513904 | R163: 2089.260179 | S163: 35.49033955 | T163: -371.5012939 | U163: -14.22609376 | Y163: 6.827745136 | Z163: 6.808406688 | AA163: -6.432954804 | AB163: -6.32041832 | AC163: 0.1676500112 | AD163: 0.1760580741 | AE163: -6.961539926 | AF163: -8.7447286 | AG163: 13.98172772 | AH163: 6.837206453 | AI163: -6.489389736 | AJ163: -9.184519499 | AK163: -3.98158594 | AL163: FALSE | AR163: 2.318495378 | AU163: protip2 = pointpoINT2.x
A164: 0 | B164: 124 | C164: 6.855293136 | D164: -6.60292093 | E164: -5.676011999 | F164: 7.640451334 | G164: 0.9372782496 | H164: -6.040463092 | I164: -3.981267777 | J164: -2.364808325 | K164: -2.36288058 | L164: -3.981267777 | M164: -0.04364249772 | N164: 0.01908772884 | O164: -9.259564628 | P164: -60.76844976 | Q164: -687.9926289 | R164: 2130.154319 | S164: 44.16476346 | T164: -360.7158954 | U164: -16.48536443 | Y164: 6.846249795 | Z164: 6.827745136 | AA164: -6.546155333 | AB164: -6.432954804 | AC164: 0.1593102523 | AD164: 0.1676500112 | AE164: -7.099337268 | AF164: -8.767830326 | AG164: 14.12144709 | AH164: 6.855293136 | AI164: -6.60292093 | AJ164: -9.259564628 | AK164: -3.981267777 | AL164: FALSE | AR164: 2.337344934 | AU164: defter2 = pointpoINT2.z
A165: 0 | B165: 125 | C165: 6.872539593 | D165: -6.717108014 | E165: -6.239727155 | F165: 7.308703412 | G165: 0.8925902767 | H165: -6.075114581 | I165: -3.980946496 | J165: -2.376711179 | K165: -2.341588294 | L165: -3.980946496 | M165: -0.04364249772 | N165: 0.01923437038 | O165: -9.334603702 | P165: -58.53300137 | Q165: -700.891182 | R165: 2171.595161 | S165: 52.79242438 | T165: -347.9675728 | U165: -18.70920859 | Y165: 6.863916365 | Z165: 6.846249795 | AA165: -6.660014472 | AB165: -6.546155333 | AC165: 0.1510368458 | AD165: 0.1593102523 | AE165: -7.23832859 | AF165: -8.789973069 | AG165: 14.26219009 | AH165: 6.872539593 | AI165: -6.717108014 | AJ165: -9.334603702 | AK165: -3.980946496 | AL165: FALSE | AR165: 2.35619449 | AU165: defdt = Abs((defter1 * protip2 - defter2 * protip1) / (protip2) ^ 3)
A166: 0 | B166: 126 | C166: 6.888941595 | D166: -6.831945534 | E166: -6.784711347 | F166: 6.935465955 | G166: 0.8476791658 | H166: -6.109476374 | I166: -3.980622083 | J166: -2.388484054 | K166: -2.320359651 | L166: -3.980622083 | M166: -0.04364249772 | N166: 0.01938168905 | O166: -9.40963666 | P166: -55.97001799 | Q166: -713.4821347 | R166: 2213.587682 | S166: 61.32826772 | T166: -333.2806493 | U166: -20.88576128 | Y166: 6.880740594 | Z166: 6.863916365 | AA166: -6.774526774 | AB166: -6.660014472 | AC166: 0.1428278988 | AD166: 0.1510368458 | AE166: -7.378503669 | AF166: -8.81114467 | AG166: 14.40395396 | AH166: 6.888941595 | AI166: -6.831945534 | AJ166: -9.40963666 | AK166: -3.980622083 | AL166: FALSE | AR166: 2.375044046 | AU166: aktinakamp = (1 + (protip1 / protip2) ^ 2) ^ (1.5) / Abs(defdt)
A167: 0 | B167: 127 | C167: 6.904494958 | D167: -6.947428023 | E167: -7.307919417 | F167: 6.521742141 | G167: 0.8025473643 | H167: -6.143547788 | I167: -3.980294527 | J167: -2.400127208 | K167: -2.299192599 | L167: -3.980294527 | M167: -0.04364249772 | N167: 0.01952968484 | O167: -9.484663445 | P167: -53.08570729 | Q167: -725.7017086 | R167: 2256.136891 | S167: 69.72686145 | T167: -316.6897665 | U167: -23.00316901 | Y167: 6.896718276 | Z167: 6.880740594 | AA167: -6.889686778 | AB167: -6.774526774 | AC167: 0.1346815742 | AD167: 0.1428278988 | AE167: -7.519852215 | AF167: -8.831333186 | AG167: 14.54673592 | AH167: 6.904494958 | AI167: -6.947428023 | AJ167: -9.484663445 | AK167: -3.980294527 | AL167: FALSE | AR167: 2.393893602 | AU167: AKTINA_RELATIVE1 = aktinakamp
A168: =IF(B168=XRON,1,0) -> 0 | B168: 128 | C168: 6.919195546 | D168: -7.063550001 | E168: -7.806355249 | F168: 6.068757974 | G168: 0.7571973151 | H168: -6.177328165 | I168: =(L0+mazalazo*(D168*G168-C168*H168))/INERTIA -> -3.979963816 | J168: -2.411640912 | K168: -2.278085189 | L168: -3.979963816 | M168: -0.04364249772 | N168: 0.01967835784 | O168: -9.559683995 | P168: -49.88802503 | Q168: -737.487908 | R168: 2299.247827 | S168: 77.94262801 | T168: -298.2399014 | U168: -25.04965154 | Y168: 6.911845252 | Z168: 6.896718276 | AA168: -7.005489012 | AB168: -6.889686778 | AC168: 0.1265960886 | AD168: 0.1346815742 | AE168: -7.662363867 | AF168: -8.85052688 | AG168: 14.69053324 | AH168: 6.919195546 | AI168: -7.063550001 | AJ168: -9.559683995 | AK168: -3.979963816 | AL168: FALSE | AR168: =B168*DT -> 2.412743158 | AU168: End If
A169: 0 | B169: 129 | C169: 6.933039268 | D169: -7.180305975 | E169: -8.277088017 | F169: 5.577960323 | G169: 0.7116314554 | H169: -6.21081687 | I169: -3.979629937 | J169: -2.423025451 | K169: -2.257035573 | L169: -3.979629937 | M169: -0.04364249772 | N169: =IF(Q169<>0,mazalazo*(D169*J169-C169*K169)/INERTIA,0) -> 0.01982770823 | O169: -9.634698252 | P169: -46.38666723 | Q169: -748.7812457 | R169: 2342.925559 | S169: 85.93008099 | T169: -277.9863282 | U169: -27.01356432 | Y169: 6.926117407 | Z169: 6.911845252 | AA169: -7.121927988 | AB169: -7.005489012 | AC169: 0.1185697101 | AD169: 0.1265960886 | AE169: -7.806028202 | AF169: -8.868714223 | AG169: 14.83534318 | AH169: 6.933039268 | AI169: -7.180305975 | AJ169: =IF(Q169<>0,O169,AJ168+TEL_OMEGA*DT) -> -9.634698252 | AK169: -3.979629937 | AL169: FALSE | AR169: 2.431592714
A170: 0 | B170: 130 | C170: 6.946022079 | D170: -7.297690444 | E170: -8.717268408 | F170: 5.051013764 | G170: 0.6658522173 | H170: -6.24401329 | I170: -3.979292878 | J170: -2.434281122 | K170: -2.236041998 | L170: -3.979292878 | M170: -0.04364249772 | N170: 0.0199777363 | O170: -9.709706156 | P170: -42.59305306 | Q170: -759.5255825 | R170: 2387.175185 | S170: =IF(Q170<>0,J170*COS(O170)+K170*SIN(O170)+2*U170*L170+E170*L170^2+F170*N170,0) -> 93.64406557 | T170: =IF(Q170<>0,-J170*SIN(O170)+K170*COS(O170)-2*P170*L170+F170*L170^2-E170*N170,0) -> -255.9945263 | U170: -28.88346136 | Y170: 6.939530674 | Z170: 6.926117407 | AA170: -7.23899821 | AB170: -7.121927988 | AC170: 0.1106007567 | AD170: 0.1185697101 | AE170: -7.950834737 | AF170: -8.885883892 | AG170: 14.98116302 | AH170: 6.946022079 | AI170: -7.297690444 | AJ170: -9.709706156 | AK170: -3.979292878 | AL170: =AND(ABS(L170)>ABS(exactome)/10,ABS(L171)<ABS(exactome)/10) -> FALSE | AR170: 2.45044227 | AU170: 'Ý÷ù ø=ø1+ê1(÷-÷1), ø=ø2+ê2(÷-÷2) ø1+ê1(÷-÷1)=ø2+ê2(÷-÷2) ÷(ê2-ê1)=((ø1-ø2)+ê2 ÷2-ê1 ÷1)/(ê2-ê1)
A171: 0 | B171: 131 | C171: 6.95813998 | D171: -7.415697891 | E171: -9.124144718 | F171: 4.48979625 | G171: 0.6198620269 | H171: -6.276916836 | I171: -3.978952626 | J171: =IF(Q171<>0,-mew*(G171+L171*D171)/SQRT((G171+L171*D171)^2+(H171-L171*C171)^2),-mew*L171^2*AH171) -> -2.445408233 | K171: =IF(Q171<>0,-mew*(G171-C171*L171)/SQRT((G171+D171*L171)^2+(I171-L171*C171)^2),-mew*L171^2*AI171) -> -2.215102802 | L171: -3.978952626 | M171: -0.04364249772 | N171: 0.02012844243 | O171: -9.784707646 | P171: -38.5202984 | Q171: -769.6691379 | R171: 2432.001836 | S171: 101.0400012 | T171: -232.3400327 | U171: =IF(Q171<>0,-G171*SIN(O171)+H171*COS(O171)-E171*L171,0) -> -30.64815822 | Y171: =(C171+C170)/2 -> 6.95208103 | Z171: =(C170+C169)/2 -> 6.939530674 | AA171: =(D171+D170)/2 -> -7.356694167 | AB171: =(D170+D169)/2 -> -7.23899821 | AC171: =-(C170-C171)/(D170-D171) -> 0.1026875936 | AD171: =-(C169-C170)/(D169-D170) -> 0.1106007567 | AE171: =((AA171-AB171)+AD171*Z171-AC171*Y171)/(AD171-AC171) -> -8.096772933 | AF171: =AA171+AC171*(AE171-Y171) -> -8.902024767 | AG171: =SQRT((AE171-Z171)^2+(AF171-AB171)^2) -> 15.12799007 | AH171: 6.95813998 | AI171: -7.415697891 | AJ171: -9.784707646 | AK171: -3.978952626 | AL171: FALSE | AR171: 2.469291826 | AU171: If Abs(klisia2 - klisia1) > 0.000001 Then
A172: 0 | B172: 132 | C172: 6.969389017 | D172: -7.53432279 | E172: -9.495078736 | F172: 3.896393584 | G172: 0.5736633046 | H172: -6.309526944 | I172: -3.97860917 | J172: -2.456407107 | K172: -2.19421641 | L172: -3.97860917 | M172: -0.04364249772 | N172: 0.02027982708 | O172: -9.859702662 | P172: -34.18318018 | Q172: -779.1657604 | R172: 2477.410669 | S172: 108.0741258 | T172: -207.1082397 | U172: -32.29679468 | Y172: 6.963764499 | Z172: 6.95208103 | AA172: -7.47501034 | AB172: -7.356694167 | AC172: 0.09482863184 | AD172: 0.1026875936 | AE172: -8.243832202 | AF172: -8.917125929 | AG172: 15.27582162 | AH172: 6.969389017 | AI172: -7.53432279 | AJ172: -9.859702662 | AK172: -3.97860917 | AL172: FALSE | AR172: 2.488141382 | AU172: xtomi11 = ((ymes1 - ymes2) + klisia2 * xmes2 - klisia1 * xmes1) / (klisia2 - klisia1)
A173: 0 | B173: 133 | C173: 6.979765282 | D173: -7.653559605 | E173: -9.827561347 | F173: 3.273092727 | G173: 0.5272584643 | H173: -6.341843068 | I173: -3.978262497 | J173: -2.467278075 | K173: -2.173381331 | L173: -3.978262497 | M173: -0.04364249772 | N173: 0.02043189082 | O173: -9.934691143 | P173: -29.59809132 | Q173: -787.9766069 | R173: 2523.406872 | S173: 114.7037392 | T173: -180.3941376 | U173: -33.81889691 | Y173: 6.97457715 | Z173: 6.963764499 | AA173: -7.593941198 | AB173: -7.47501034 | AC173: 0.08702232662 | AD173: 0.09482863184 | AE173: -8.392001906 | AF173: -8.931176659 | AG173: 15.42465501 | AH173: 6.979765282 | AI173: -7.653559605 | AJ173: -9.934691143 | AK173: -3.978262497 | AL173: FALSE | AR173: 2.506990938 | AU173: ytomi11 = ymes1 + klisia1 * (xtomi11 - xmes1) 'âñßóêù ôá óçìåßá ôïìÞò ôùí êáèÝôùí
A174: 0 | B174: 134 | C174: 6.989264913 | D174: -7.773402791 | E174: -10.11922773 | F174: 2.622373929 | G174: 0.480649914 | H174: -6.373864689 | I174: -3.977912594 | J174: -2.478021482 | K174: -2.152596154 | L174: -3.977912594 | M174: -0.04364249772 | N174: 0.02058463432 | O174: -10.00967303 | P174: -24.78298657 | Q174: -796.0724707 | R174: 2569.995664 | S174: 120.887446 | T174: -152.3020022 | U174: -35.20443866 | Y174: 6.984515098 | Z174: 6.97457715 | AA174: -7.713481198 | AB174: -7.593941198 | AC174: 0.07926717528 | AD174: 0.08702232662 | AE174: -8.541271366 | AF174: -8.944166435 | AG174: 15.57448758 | AH174: 6.989264913 | AI174: -7.773402791 | AJ174: -10.00967303 | AK174: -3.977912594 | AL174: FALSE | AR174: 2.525840493 | AU174: aktistomon = Sqr((xtomi11 - xmes2) ^ 2 + (ytomi11 - ymes2) ^ 2) 'õðïëïãßóù ôçíáôêßíáêáìðõëïôçôáò
A175: 0 | B175: 135 | C175: 6.997884092 | D175: -7.89384679 | E175: -10.36787213 | F175: 1.946901729 | G175: 0.4338400546 | H175: -6.405591307 | I175: -3.977559449 | J175: -2.488637683 | K175: -2.131859544 | L175: -3.977559449 | M175: -0.04364249772 | N175: 0.02073805835 | O175: -10.08464826 | P175: -19.75731911 | Q175: -803.4371651 | R175: 2617.182289 | S175: 126.5853952 | T175: -122.9450287 | U175: -36.44390124 | Y175: 6.993574503 | Z175: 6.984515098 | AA175: -7.83362479 | AB175: -7.713481198 | AC175: 0.07156171587 | AD175: 0.07926717528 | AE175: -8.691629862 | AF175: -8.956084928 | AG175: 15.72531668 | AH175: 6.997884092 | AI175: -7.89384679 | AJ175: -10.08464826 | AK175: -3.977559449 | AL175: FALSE | AR175: 2.544690049 | AU175: Else
A176: 0 | B176: 136 | C176: 7.005619048 | D176: -8.014886037 | E176: -10.57146201 | F176: 1.249514838 | G176: 0.3868312806 | H176: -6.437022445 | I176: -3.977203049 | J176: -2.499127045 | K176: -2.111170241 | L176: -3.977203049 | M176: -0.04364249772 | N176: 0.02089216375 | O176: -10.15961677 | P176: -14.5419684 | Q176: -810.0726092 | R176: 2664.972023 | S176: 131.7595155 | T176: -92.4449128 | U176: -37.52833184 | Y176: 7.00175157 | Z176: 6.993574503 | AA176: -7.954366413 | AB176: -7.83362479 | AC176: 0.06390452557 | AD176: 0.07156171587 | AE176: -8.843066636 | AF176: -8.966922004 | AG176: 15.8771397 | AH176: =IF(Q176<>0,C176,(E176*COS(AJ176)-F176*SIN(AJ176)+C176)/2) -> 7.005619048 | AI176: =IF(Q176<>0,D176,(E176*SIN(AJ176)+F176*COS(AJ176)+D176)/2) -> -8.014886037 | AJ176: -10.15961677 | AK176: -3.977203049 | AL176: FALSE | AR176: 2.563539605 | AU176: aktistomon = 10000 'õðïëïãßóù ôçíáôêßíáêáìðõëïôçôáò
A177: 0 | B177: 137 | C177: 7.012466053 | D177: -8.136514959 | E177: -10.72815164 | F177: 0.5332149321 | G177: 0.3396259792 | H177: -6.468157648 | I177: -3.976843382 | J177: -2.509489944 | K177: -2.090527053 | L177: -3.976843382 | M177: -0.04364249772 | N177: 0.02104695148 | O177: -10.2345785 | P177: -9.159159175 | Q177: -816.006589 | R177: 2713.37017 | S177: 136.3737464 | T177: -60.93137967 | U177: -38.44939998 | Y177: 7.00904255 | Z177: 7.00175157 | AA177: -8.075700498 | AB177: -7.954366413 | AC177: 0.05629421921 | AD177: 0.06390452557 | AE177: -8.995570901 | AF177: -8.976667716 | AG177: 16.02995403 | AH177: 7.012466053 | AI177: -8.136514959 | AJ177: -10.2345785 | AK177: -3.976843382 | AL177: FALSE | AR177: 2.582389161 | AU177: End If
A178: 0 | B178: 138 | C178: 7.018421426 | D178: -8.258727974 | E178: -10.83629491 | F178: -0.1988455896 | G178: 0.2922265307 | H178: -6.498996482 | I178: -3.976480434 | J178: -2.519726767 | K178: -2.069928858 | L178: -3.976480434 | M178: -0.04364249772 | N178: 0.02120242259 | O178: -10.30953339 | P178: -3.632372151 | Q178: -821.30428 | R178: 2762.38206 | S178: 140.3942612 | T178: -28.54166325 | U178: -39.19945171 | Y178: 7.015443739 | Z178: 7.00904255 | AA178: -8.197621467 | AB178: -8.075700498 | AC178: 0.04872944786 | AD178: 0.05629421921 | AE178: -9.149131836 | AF178: -8.985312309 | AG178: 16.18375708 | AH178: 7.018421426 | AI178: -8.258727974 | AJ178: -10.30953339 | AK178: -3.976480434 | AL178: FALSE | AR178: 2.601238717 | AU178: End If
A179: 0 | B179: 139 | C179: 7.023481529 | D179: -8.38151949 | E179: -10.89445739 | F179: -0.9433768467 | G179: 0.2446353077 | H179: -6.529538534 | I179: -3.976114193 | J179: -2.529837913 | K179: -2.049374597 | L179: -3.976114193 | M179: -0.04364249772 | N179: 0.02135857824 | O179: -10.38448138 | P179: 2.013753442 | Q179: -826.0834273 | R179: 2812.013055 | S179: 143.7896831 | T179: 4.580062796 | U179: -39.77156114 | Y179: 7.020951477 | Z179: 7.015443739 | AA179: -8.320123732 | AB179: -8.197621467 | AC179: 0.04120889748 | AD179: 0.04872944786 | AE179: -9.303738597 | AF179: -8.992846211 | AG179: 16.33854628 | AH179: 7.023481529 | AI179: -8.38151949 | AJ179: -10.38448138 | AK179: -3.976114193 | AL179: FALSE | AR179: 2.620088273 | AU179: metaypo:
A180: 0 | B180: 140 | C180: 7.02764277 | D180: -8.50488391 | E180: -10.90142746 | F180: -1.696965665 | G180: 0.1968546754 | H180: -6.559783413 | I180: -3.975744647 | J180: -2.539823787 | K180: -2.028863272 | L180: -3.975744647 | M180: -0.04364249772 | N180: 0.02151541966 | O180: -10.4594224 | P180: 7.753525009 | Q180: -830.5279528 | R180: 2862.26854 | S180: 146.5312914 | T180: 38.28330012 | U180: -40.15957919 | Y180: 7.025562149 | Z180: 7.020951477 | AA180: -8.4432017 | AB180: -8.320123732 | AC180: 0.03373128758 | AD180: 0.04120889748 | AE180: -9.459380315 | AF180: -8.999260035 | AG180: 16.49431909 | AH180: 7.02764277 | AI180: -8.50488391 | AJ180: -10.4594224 | AK180: -3.975744647 | AL180: FALSE | AR180: 2.638937829 | AU180: If AKTISTOMON1 = 0 Then
A181: 0 | B181: 141 | C181: 7.0309016 | D181: -8.628815629 | E181: -10.85622656 | F181: -2.456090653 | G181: 0.1488869912 | H181: -6.589730747 | I181: -3.975371782 | J181: -2.549684806 | K181: -2.008393948 | L181: -3.975371782 | M181: -0.04364249772 | N181: 0.0216729482 | O181: -10.53435639 | P181: 13.56030906 | Q181: -834.8850757 | R181: 2913.153932 | S181: 148.5932178 | T181: 72.41188425 | U181: -40.35817902 | Y181: 7.029272185 | Z181: 7.025562149 | AA181: -8.566849769 | AB181: -8.4432017 | AC181: 0.02629537007 | AD181: 0.03373128758 | AE181: -9.616046102 | AF181: -9.004544574 | AG181: 16.65107297 | AH181: 7.0309016 | AI181: -8.628815629 | AJ181: -10.53435639 | AK181: -3.975371782 | AL181: FALSE | AR181: 2.657787385 | AU181: AKTINA_RELATIVE1 = aktistomon
A182: 0 | B182: 142 | C182: 7.033254516 | D182: -8.753309035 | E182: -10.75811836 | F182: -3.2171381 | G182: 0.1007346045 | H182: -6.619380187 | I182: -3.974995585 | J182: -2.559421397 | K182: -1.987965743 | L182: -3.974995585 | M182: -0.04364249772 | N182: 0.02183116529 | O182: -10.60928329 | P182: 19.40665049 | Q182: -839.4310971 | R182: 2964.674673 | S182: 149.9526306 | T182: 106.804684 | U182: -40.36289807 | Y182: 7.032078058 | Z182: 7.029272185 | AA182: -8.691062332 | AB182: -8.566849769 | AC182: 0.01889992797 | AD182: 0.02629537007 | AE182: -9.773725051 | AF182: -9.0086908 | AG182: 16.80880542 | AH182: 7.033254516 | AI182: -8.753309035 | AJ182: -10.60928329 | AK182: -3.974995585 | AL182: FALSE | AR182: 2.676636941 | AU182: Else
A183: 0 | B183: 143 | C183: 7.034698059 | D183: -8.878358509 | E183: -10.60661687 | F183: -3.976418634 | G183: 0.05239985674 | H183: -6.648731402 | I183: -3.974616044 | J183: -2.569033994 | K183: -1.967577833 | L183: -3.974616044 | M183: -0.04364249772 | N183: 0.02199007247 | O183: -10.68420304 | P183: 25.26439824 | Q183: -844.419521 | R183: 3016.836233 | S183: 150.5899059 | T183: 141.2963388 | U183: -40.17017627 | Y183: 7.033976288 | Z183: 7.032078058 | AA183: -8.815833772 | AB183: -8.691062332 | AC183: 0.01154377433 | AD183: 0.01889992797 | AE183: -9.932406242 | AF183: -9.011689863 | AG183: 16.96751395 | AH183: 7.034698059 | AI183: -8.878358509 | AJ183: -10.68420304 | AK183: -3.974616044 | AL183: FALSE | AR183: 2.695486497 | AU183: AKTINA_RELATIVE1 = (aktistomon + AKTISTOMON1) * 0.5
A184: 0 | B184: 144 | C184: 7.035228813 | D184: -9.003958428 | E184: -10.40149344 | F184: -4.730184563 | G184: 0.003885080921 | H184: -6.677784083 | I184: -3.974233145 | J184: -2.578523042 | K184: -1.947229443 | L184: -3.974233145 | M184: -0.04364249772 | N184: 0.02214967137 | O184: -10.75911557 | P184: 31.10483666 | Q184: -850.0472922 | R184: 3069.644107 | S184: 150.4887854 | T184: 175.7180305 | U184: -39.77739019 | Y184: 7.034963436 | Z184: 7.033976288 | AA184: -8.941158468 | AB184: -8.815833772 | AC184: 0.004225751141 | AD184: 0.01154377433 | AE184: -10.09207874 | AF184: -9.013533086 | AG184: 17.12719609 | AH184: 7.035228813 | AI184: -9.003958428 | AJ184: -10.75911557 | AK184: -3.974233145 | AL184: FALSE | AR184: 2.714336053 | AU184: End If
A185: 0 | B185: 145 | C185: 7.034843407 | D185: -9.13010316 | E185: -10.1427825 | F185: -5.474647813 | G185: -0.04480739834 | H185: -6.706537939 | I185: -3.973846876 | J185: -2.587888991 | K185: -1.926919851 | L185: -3.973846876 | M185: -0.04364249772 | N185: 0.02230996372 | O185: -10.83402082 | P185: 36.89882216 | Q185: -856.4509866 | R185: 3123.10382 | S185: 149.6365187 | T185: 209.8982862 | U185: -39.18288298 | Y185: 7.03503611 | Z185: 7.034963436 | AA185: -9.067030794 | AB185: -8.941158468 | AC185: -0.003055271768 | AD185: 0.004225751141 | AE185: -10.25273161 | AF185: -9.014211965 | AG185: 17.2878494 | AH185: 7.034843407 | AI185: -9.13010316 | AJ185: -10.83402082 | AK185: -3.973846876 | AL185: FALSE | AR185: 2.733185609
A186: 0 | B186: 146 | C186: 7.033538512 | D186: -9.256787072 | E186: -9.830786071 | F186: -6.2059984 | G186: -0.09367526503 | H186: -6.7349927 | I186: -3.973457222 | J186: -2.597132303 | K186: -1.906648382 | L186: -3.973457222 | M186: -0.04364249772 | N186: 0.02247095133 | O186: -10.90891872 | P186: 42.61692429 | Q186: -863.7183076 | R186: 3177.220921 | S186: 148.0239895 | T186: 243.6638094 | U186: -38.38598971 | Y186: 7.034190959 | Z186: 7.03503611 | AA186: -9.193445116 | AB186: -9.067030794 | AC186: -0.01030039768 | AD186: -0.003055271768 | AE186: -10.4143539 | AF186: -9.013718165 | AG186: 17.44947145 | AH186: 7.033538512 | AI186: -9.256787072 | AJ186: -10.90891872 | AK186: -3.973457222 | AL186: FALSE | AR186: 2.752035165
A187: 0 | B187: 147 | C187: 7.031310845 | D187: -9.384004523 | E187: -9.46607702 | F187: -6.92042332 | G187: -0.1427162119 | H187: -6.763148116 | I187: -3.973064172 | J187: -2.606253446 | K187: -1.886414408 | L187: -3.973064172 | M187: -0.04364249772 | N187: 0.02263263613 | O187: -10.98380922 | P187: 48.22957087 | Q187: -871.9011744 | R187: 3232.000985 | S187: 145.6458252 | T187: 276.8403333 | U187: -37.38705806 | Y187: 7.032424679 | Z187: 7.034190959 | AA187: -9.320395797 | AB187: -9.193445116 | AC187: -0.01751070398 | AD187: -0.01030039768 | AE187: -10.57693465 | AF187: -9.012043519 | AG187: 17.61205984 | AH187: 7.031310845 | AI187: -9.384004523 | AJ187: -10.98380922 | AK187: -3.973064172 | AL187: FALSE | AR187: 2.77088472
A188: 0 | B188: 148 | C188: 7.028157165 | D188: -9.511749867 | E188: -9.049500923 | F188: -7.614125801 | G188: -0.1919279406 | H188: -6.791003953 | I188: -3.972667712 | J188: -2.615252898 | K188: -1.866217344 | L188: -3.972667712 | M188: -0.04364249772 | N188: 0.02279502012 | O188: -11.05869224 | P188: 53.70719621 | Q188: -881.0256797 | R188: 3287.449615 | S188: 142.5004885 | T188: 309.2534945 | U188: -36.18746409 | Y188: 7.029734005 | Z188: 7.032424679 | AA188: -9.447877195 | AB188: -9.320395797 | AC188: -0.02468724308 | AD188: -0.01751070398 | AE188: -10.74046292 | AF188: -9.009180024 | AG188: 17.7756122 | AH188: 7.028157165 | AI188: -9.511749867 | AJ188: -11.05869224 | AK188: -3.972667712 | AL188: FALSE | AR188: 2.789734276
A189: 0 | B189: 149 | C189: 7.024074273 | D189: -9.640017457 | E189: -8.582176593 | F189: -8.283344789 | G189: -0.2413081618 | H189: -6.818560001 | I189: -3.972267828 | J189: -2.624131141 | K189: -1.846056649 | L189: -3.972267828 | M189: -0.04364249772 | N189: 0.02295810541 | O189: -11.13356773 | P189: 59.02039186 | Q189: -891.0987742 | R189: 3343.572437 | S189: 138.5903501 | T189: 340.7297223 | U189: -34.78962288 | Y189: 7.026115719 | Z189: 7.029734005 | AA189: -9.575883662 | AB189: -9.447877195 | AC189: -0.03183104331 | AD189: -0.02468724308 | AE189: -10.90492775 | AF189: -9.005119841 | AG189: 17.94012615 | AH189: 7.024074273 | AI189: -9.640017457 | AJ189: -11.13356773 | AK189: -3.972267828 | AL189: FALSE | AR189: 2.808583832
A190: 0 | B190: 150 | C190: 7.019059017 | D190: -9.768801638 | E190: -8.065495215 | F190: -8.924374593 | G190: -0.2908545954 | H190: -6.845816064 | I190: -3.971864507 | J190: -2.632888666 | K190: -1.825931821 | L190: -3.971864507 | M190: -0.04364249772 | N190: 0.0231218942 | O190: -11.20843561 | P190: 64.14005916 | Q190: -902.1126064 | R190: 3400.375104 | S190: 133.9217429 | T190: 371.0971375 | U190: -33.19699405 | Y190: 7.021566645 | Z190: 7.026115719 | AA190: -9.704409547 | AB190: -9.575883662 | AC190: -0.03894310977 | AD190: -0.03183104331 | AE190: -11.07031818 | AF190: -8.999855291 | AG190: 18.10559937 | AH190: 7.019059017 | AI190: -9.768801638 | AJ190: -11.20843561 | AK190: -3.971864507 | AL190: FALSE | AR190: 2.827433388
A191: 0 | B191: 151 | C191: 7.013108283 | D191: -9.898096756 | E191: -7.501118063 | F191: -9.533584583 | G191: -0.3405649707 | H191: -6.872771966 | I191: -3.971457737 | J191: -2.641525974 | K191: -1.8058424 | L191: -3.971457737 | M191: -0.04364249772 | N191: 0.02328638878 | O191: -11.28329582 | P191: 69.03756263 | Q191: -914.0473624 | R191: 3457.863295 | S191: 128.5049951 | T191: 400.186459 | U191: -31.41408188 | Y191: 7.01608365 | Z191: 7.021566645 | AA191: -9.833449197 | AB191: -9.704409547 | AC191: -0.04602442517 | AD191: -0.03894310977 | AE191: -11.23662327 | AF191: -8.993378853 | AG191: 18.27202955 | AH191: 7.013108283 | AI191: -9.898096756 | AJ191: -11.28329582 | AK191: -3.971457737 | AL191: FALSE | AR191: 2.846282944
A192: 0 | B192: 152 | C192: 7.006219004 | D192: -10.02789715 | E192: -6.890972796 | F192: -10.10743884 | G192: -0.3904370264 | H192: -6.899427552 | I192: -3.971047502 | J192: -2.650043567 | K192: -1.785787961 | L192: -3.971047502 | M192: -0.04364249772 | N192: 0.02345159153 | O192: -11.35814831 | P192: 73.68488369 | Q192: -926.8731801 | R192: 3516.042712 | S192: 122.3544442 | T192: 427.831911 | U192: -29.44643008 | Y192: 7.009663644 | Z192: 7.01608365 | AA192: -9.962996953 | AB192: -9.833449197 | AC192: -0.05307595059 | AD192: -0.04602442517 | AE192: -11.40383209 | AF192: -8.985683164 | AG192: 18.43941439 | AH192: 7.006219004 | AI192: -10.02789715 | AJ192: -11.35814831 | AK192: =(AJ192-AJ191)/DT -> -3.971047502 | AL192: FALSE | AR192: 2.8651325
A193: 0 | B193: 153 | C193: 6.998388153 | D193: -10.15819716 | E193: -6.237248331 | F193: -10.64251566 | G193: -0.4404685106 | H193: -6.92578268 | I193: -3.970633791 | J193: -2.65844196 | K193: -1.765768115 | L193: -3.970633791 | M193: -0.04364249772 | N193: 0.02361750493 | O193: -11.43299299 | P193: 78.05477372 | Q193: -940.5514957 | R193: 3574.919082 | S193: 115.4884298 | T193: 453.8721274 | U193: -27.30061106 | Y193: 7.002303578 | Z193: 7.009663644 | AA193: -10.09304715 | AB193: -9.962996953 | AC193: -0.06009862625 | AD193: -0.05307595059 | AE193: -11.57193369 | AF193: -8.976761011 | AG193: 18.60775163 | AH193: 6.998388153 | AI193: -10.15819716 | AJ193: -11.43299299 | AK193: -3.970633791 | AL193: FALSE | AR193: 2.883982056
A194: 0 | B194: 154 | C194: 6.989612745 | D194: -10.28899112 | E194: -5.542388287 | F194: -11.13552678 | G194: -0.4906571814 | H194: -6.95183723 | I194: -3.97021659 | J194: -2.666721668 | K194: -1.74578251 | L194: -3.97021659 | M194: -0.04364249772 | N194: 0.02378413155 | O194: -11.50782981 | P194: 82.12090566 | Q194: -955.0360423 | R194: 3634.498158 | S194: 107.9292645 | T194: 478.1510492 | U194: -24.98420967 | Y194: 6.994000449 | Z194: 7.002303578 | AA194: -10.22359414 | AB194: -10.09304715 | AC194: -0.06709337227 | AD194: -0.06009862625 | AE194: -11.74091716 | AF194: -8.966605337 | AG194: 18.77703903 | AH194: 6.989612745 | AI194: -10.28899112 | AJ194: -11.50782981 | AK194: -3.97021659 | AL194: FALSE | AR194: 2.902831612
A195: 0 | B195: 155 | C195: 6.979889839 | D195: -10.42027336 | E195: -4.809083019 | F195: -11.58333629 | G195: -0.5410008066 | H195: -6.977591098 | I195: -3.969795884 | J195: -2.674883218 | K195: -1.725830825 | L195: -3.969795884 | M195: -0.04364249772 | N195: 0.02395147403 | O195: -11.5826587 | P195: 85.85802351 | Q195: -970.2736343 | R195: 3694.785717 | S195: 99.70318508 | T195: 500.5188078 | U195: -22.5058015 | Y195: 6.984751292 | Z195: 6.994000449 | AA195: -10.35463224 | AB195: -10.22359414 | AC195: -0.07406108933 | AD195: -0.06709337227 | AE195: -11.91077158 | AF195: -8.955209231 | AG195: 18.94727436 | AH195: 6.979889839 | AI195: -10.42027336 | AJ195: -11.5826587 | AK195: -3.969795884 | AL195: FALSE | AR195: 2.921681168
A196: 0 | B196: 156 | C196: 6.969216535 | D196: -10.55203822 | E196: -4.04026025 | F196: -11.98297904 | G196: -0.591497164 | H196: -7.003044198 | I196: -3.969371661 | J196: -2.68292714 | K196: -1.70591277 | L196: -3.969371661 | M196: -0.04364249772 | N196: 0.02411953512 | O196: -11.65747959 | P196: 89.24208861 | Q196: -986.204821 | R196: 3755.787557 | S196: 90.84028091 | T196: 520.8325922 | U196: -19.87492561 | Y196: 6.974553187 | Z196: 6.984751292 | AA196: -10.48615579 | AB196: -10.35463224 | AC196: -0.08100265939 | AD196: -0.07406108933 | AE196: -12.08148607 | AF196: -8.94256593 | AG196: 19.11845544 | AH196: 6.969216535 | AI196: -10.55203822 | AJ196: -11.65747959 | AK196: -3.969371661 | AL196: FALSE | AR196: 2.940530724
A197: 0 | B197: 157 | C197: 6.957589976 | D197: -10.68428002 | E197: -3.239074342 | F197: -12.33167852 | G197: -0.6421440412 | H197: -7.028196459 | I197: -3.968943906 | J197: -2.690853969 | K197: -1.686028089 | L197: -3.968943906 | M197: -0.04364249772 | N197: 0.02428831765 | O197: -11.73229242 | P197: 92.25042228 | Q197: -1002.764462 | R197: 3817.509503 | S197: 81.37440215 | T197: 538.9574935 | U197: -17.10205193 | Y197: 6.963403255 | Z197: 6.974553187 | AA197: -10.61815912 | AB197: -10.48615579 | AC197: -0.08791894629 | AD197: -0.08100265939 | AE197: -12.25304974 | AF197: -8.928668817 | AG197: 19.29058008 | AH197: 6.957589976 | AI197: -10.68428002 | AJ197: -11.73229242 | AK197: -3.968943906 | AL197: FALSE | AR197: 2.95938028
A198: 0 | B198: 158 | C198: 6.945007343 | D198: -10.81699309 | E198: -2.408894224 | F198: -12.62686402 | G198: -0.6929392364 | H198: -7.05304783 | I198: -3.968512607 | J198: -2.698664248 | K198: -1.666176551 | L198: -3.968512607 | M198: -0.04364249772 | N198: 0.02445782454 | O198: -11.80709712 | P198: 94.86184365 | Q198: -1019.882254 | R198: 3879.957403 | S198: 71.34304617 | T198: 554.7673218 | U198: -14.19854322 | Y198: 6.951298659 | Z198: 6.963403255 | AA198: -10.75063655 | AB198: -10.61815912 | AC198: -0.09481079645 | AD198: -0.08791894629 | AE198: -12.42545173 | AF198: -8.913511415 | AG198: 19.46364615 | AH198: 6.945007343 | AI198: -10.81699309 | AJ198: -11.80709712 | AK198: -3.968512607 | AL198: FALSE | AR198: 2.978229836
A199: 1 | B199: 159 | C199: 6.931465864 | D199: -10.95017176 | E199: -1.553290019 | F199: -12.86618711 | G199: -0.7438805577 | H199: -7.077598274 | I199: -3.96807775 | J199: -2.706358523 | K199: -1.646357955 | L199: -3.96807775 | M199: -0.04364249772 | N199: 0.02462805879 | O199: -11.88189362 | P199: 97.05680209 | Q199: -1037.483238 | R199: 3943.137125 | S199: 60.78722338 | T199: 568.1453926 | U199: -11.17661187 | Y199: 6.938236604 | Z199: 6.951298659 | AA199: -10.88358243 | AB199: -10.75063655 | AC199: -0.1016790394 | AD199: -0.09481079645 | AE199: -12.59868119 | AF199: -8.897087392 | AG199: 19.63765151 | AH199: 6.931465864 | AI199: -10.95017176 | AJ199: -11.88189362 | AK199: -3.96807775 | AL199: FALSE | AR199: 2.997079392
A200: 0 | B200: 160 | C200: 6.916962803 | D200: -11.08381037 | E200: -0.6760184328 | F200: -13.04753715 | G200: -0.7949658237 | H200: -7.101847772 | I200: -3.96763932 | J200: -2.713937347 | K200: -1.626572127 | L200: -3.96763932 | M200: -0.04364249772 | N200: 0.02479902348 | O200: -11.95668186 | P200: 98.81750347 | Q200: -1055.488288 | R200: 4007.054565 | S200: 49.75130251 | T200: 578.9852759 | U200: -8.049271554 | Y200: 6.924214333 | Z200: 6.938236604 | AA200: -11.01699107 | AB200: -10.88358243 | AC200: -0.1085244884 | AD200: -0.1016790394 | AE200: -12.77272731 | AF200: -8.87939055 | AG200: 19.81259406 | AH200: 6.916962803 | AI200: -11.08381037 | AJ200: -11.95668186 | AK200: -3.96763932 | AL200: FALSE | AR200: 3.015928947
A201: 0 | B201: 161 | C201: 6.901495467 | D201: -11.21790323 | E201: 0.2189930593 | F201: -13.16905595 | G201: -0.8461928634 | H201: -7.125796322 | I201: -3.967197304 | J201: -2.721401277 | K201: -1.606818919 | L201: -3.967197304 | M201: -0.04364249772 | N201: 0.02497072179 | O201: -12.03146177 | P201: 100.1280294 | Q201: -1073.814605 | R201: 4071.715637 | S201: 38.28283591 | T201: 587.1915052 | U201: -4.830284022 | Y201: 6.909229135 | Z201: 6.924214333 | AA201: -11.1508568 | AB201: -11.01699107 | AC201: -0.1153479411 | AD201: -0.1085244884 | AE201: -12.94757928 | AF201: -8.860414829 | AG201: 19.98847174 | AH201: 6.901495467 | AI201: -11.21790323 | AJ201: -12.03146177 | AK201: -3.967197304 | AL201: FALSE | AR201: 3.034778503
A202: 0 | B202: 162 | C202: 6.885061206 | D202: -11.35244467 | E202: 1.127663153 | F202: -13.22915128 | G202: -0.8975595164 | H202: -7.149443936 | I202: -3.966751688 | J202: -2.728750875 | K202: -1.587098206 | L202: -3.966751688 | M202: -0.04364249772 | N202: 0.02514315696 | O202: -12.10623328 | P202: 100.9744487 | Q202: -1092.376209 | R202: 4137.12628 | S202: 26.43236546 | T202: 592.6802409 | U202: -1.534101121 | Y202: 6.893278337 | Z202: 6.909229135 | AA202: -11.28517395 | AB202: -11.1508568 | AC202: -0.1221501798 | AD202: -0.1153479411 | AE202: -13.12322632 | AF202: -8.840154305 | AG202: 20.16528248 | AH202: 6.885061206 | AI202: -11.35244467 | AJ202: -12.10623328 | AK202: -3.966751688 | AL202: FALSE | AR202: 3.053628059
A203: 0 | B203: 163 | C203: 6.867657407 | D203: -11.48742902 | E203: 2.04577472 | F203: -13.22650935 | G203: -0.949063633 | H203: -7.172790642 | I203: -3.966302458 | J203: -2.735986706 | K203: -1.567409887 | L203: -3.966302458 | M203: -0.04364249772 | N203: 0.02531633233 | O203: -12.18099632 | P203: 101.3449208 | Q203: -1111.08444 | R203: 4203.292454 | S203: 14.25320983 | T203: 595.3798848 | U203: 1.82419764 | Y203: 6.876359307 | Z203: 6.893278337 | AA203: -11.41993685 | AB203: -11.28517395 | AC203: -0.1289319723 | AD203: -0.1221501798 | AE203: -13.29965767 | AF203: -8.818603184 | AG203: 20.34302425 | AH203: 6.867657407 | AI203: -11.48742902 | AJ203: -12.18099632 | AK203: -3.966302458 | AL203: FALSE | AR203: 3.072477615
A204: 0 | B204: 164 | C204: 6.8492815 | D204: -11.62285061 | E204: 2.968993794 | F204: -13.16010598 | G204: -1.000703074 | H204: -7.195836486 | I204: -3.965849601 | J204: -2.743109342 | K204: -1.547753884 | L204: -3.965849601 | M204: -0.04364249772 | N204: 0.02549025129 | O204: -12.25575082 | P204: 101.2297894 | Q204: -1129.848461 | R204: 4270.220141 | S204: 1.801233926 | T204: 595.2316415 | U204: 5.228971774 | Y204: 6.858469453 | Z204: 6.876359307 | AA204: -11.55513982 | AB204: -11.41993685 | AC204: -0.1356940722 | AD204: -0.1289319723 | AE204: -13.4768626 | AF204: -8.795755802 | AG204: 20.52169506 | AH204: 6.8492815 | AI204: -11.62285061 | AJ204: -12.25575082 | AK204: -3.965849601 | AL204: FALSE | AR204: 3.091327171
A205: 0 | B205: 165 | C205: 6.829930953 | D205: -11.75870378 | E205: 3.892889466 | F205: -13.02921651 | G205: -1.052475711 | H205: -7.218581526 | I205: -3.965393102 | J205: -2.750119358 | K205: -1.528130141 | L205: -3.965393102 | M205: -0.04364249772 | N205: 0.02566491734 | O205: -12.33049672 | P205: 100.6216671 | Q205: -1148.575782 | R205: 4337.915346 | S205: -10.86539858 | T205: 592.1900221 | U205: 8.664090454 | Y205: 6.839606226 | Z205: 6.858469453 | AA205: -11.6907772 | AB205: -11.55513982 | AC205: -0.1424372195 | AD205: -0.1356940722 | AE205: -13.65483042 | AF205: -8.771606625 | AG205: 20.70129292 | AH205: 6.829930953 | AI205: -11.75870378 | AJ205: -12.33049672 | AK205: -3.965393102 | AL205: FALSE | AR205: 3.110176727
... 85 more rows

Sheet TIME EVOLUTION
B39: =A40+1 -> 1 | C39: =B39+1 -> 2 | D39: =C39+1 -> 3 | E39: =D39+1 -> 4 | F39: =E39+1 -> 5
B40: 0 | C40: =IF(B40<XRON,'constant L'!C40,X) -> 0 | D40: =IF(B40<XRON,'constant L'!D40,Y) -> 1 | E40: =IF(B40<XRON,'constant L'!E40,XOM) -> 0 | F40: =IF(B40<XRON,'constant L'!F40,YOM) -> 1
B41: 1 | C41: =IF(B41<XRON,'constant L'!C41,X) -> 0.07542584012 | D41: =IF(B41<XRON,'constant L'!D41,Y) -> 0.9990103128 | E41: =IF(B41<XRON,'constant L'!E41,XOM) -> 0.07542584012 | F41: =IF(B41<XRON,'constant L'!F41,YOM) -> 0.9990103128
B42: 2 | C42: =IF(B42<XRON,'constant L'!C42,X) -> 0.1506190886 | D42: =IF(B42<XRON,'constant L'!D42,Y) -> 0.9974408414 | E42: =IF(B42<XRON,'constant L'!E42,XOM) -> 0.07505708632 | F42: =IF(B42<XRON,'constant L'!F42,YOM) -> 1.005952671
B43: 3 | C43: =IF(B43<XRON,'constant L'!C43,X) -> 0.2258143199 | D43: =IF(B43<XRON,'constant L'!D43,Y) -> 0.9948054871 | E43: =IF(B43<XRON,'constant L'!E43,XOM) -> 0.07380650583 | F43: =IF(B43<XRON,'constant L'!F43,YOM) -> 1.017439268
B44: 4 | C44: =IF(B44<XRON,'constant L'!C44,X) -> 0.3009956819 | D44: =IF(B44<XRON,'constant L'!D44,Y) -> 0.9911043186 | E44: =IF(B44<XRON,'constant L'!E44,XOM) -> 0.07105292036 | F44: =IF(B44<XRON,'constant L'!F44,YOM) -> 1.033362305
B45: 5 | C45: =IF(B45<XRON,'constant L'!C45,X) -> 0.3761515727 | D45: =IF(B45<XRON,'constant L'!D45,Y) -> 0.9863375461 | E45: =IF(B45<XRON,'constant L'!E45,XOM) -> 0.06619124784 | F45: =IF(B45<XRON,'constant L'!F45,YOM) -> 1.053551365
B46: 6 | C46: =IF(B46<XRON,'constant L'!C46,X) -> 0.451271852 | D46: =IF(B46<XRON,'constant L'!D46,Y) -> 0.9805054588 | E46: =IF(B46<XRON,'constant L'!E46,XOM) -> 0.05863526926 | F46: =IF(B46<XRON,'constant L'!F46,YOM) -> 1.07777509
B47: 7 | C47: =IF(B47<XRON,'constant L'!C47,X) -> 0.526347053 | D47: =IF(B47<XRON,'constant L'!D47,Y) -> 0.9736084145 | E47: =IF(B47<XRON,'constant L'!E47,XOM) -> 0.04782224761 | F47: =IF(B47<XRON,'constant L'!F47,YOM) -> 1.105743007
B48: 8 | C48: =IF(B48<XRON,'constant L'!C48,X) -> 0.6013680747 | D48: =IF(B48<XRON,'constant L'!D48,Y) -> 0.9656468371 | E48: =IF(B48<XRON,'constant L'!E48,XOM) -> 0.03321786405 | F48: =IF(B48<XRON,'constant L'!F48,YOM) -> 1.137107712
B49: 9 | C49: =IF(B49<XRON,'constant L'!C49,X) -> 0.6763260368 | D49: =IF(B49<XRON,'constant L'!D49,Y) -> 0.9566212154 | E49: =IF(B49<XRON,'constant L'!E49,XOM) -> 0.01432112788 | F49: =IF(B49<XRON,'constant L'!F49,YOM) -> 1.17146744
B50: 10 | C50: =IF(B50<XRON,'constant L'!C50,X) -> 0.7512122041 | D50: =IF(B50<XRON,'constant L'!D50,Y) -> 0.946532103 | E50: =IF(B50<XRON,'constant L'!E50,XOM) -> -0.009330865536 | F50: =IF(B50<XRON,'constant L'!F50,YOM) -> 1.208369038
B51: 11 | C51: =IF(B51<XRON,'constant L'!C51,X) -> 0.8260179421 | D51: =IF(B51<XRON,'constant L'!D51,Y) -> 0.9353801179 | E51: =IF(B51<XRON,'constant L'!E51,XOM) -> -0.03815839586 | F51: =IF(B51<XRON,'constant L'!F51,YOM) -> 1.247311325
B52: 12 | C52: =IF(B52<XRON,'constant L'!C52,X) -> 0.9007346907 | D52: =IF(B52<XRON,'constant L'!D52,Y) -> 0.9231659425 | E52: =IF(B52<XRON,'constant L'!E52,XOM) -> -0.07253484353 | F52: =IF(B52<XRON,'constant L'!F52,YOM) -> 1.287748825
B53: 13 | C53: =IF(B53<XRON,'constant L'!C53,X) -> 0.9753539466 | D53: =IF(B53<XRON,'constant L'!D53,Y) -> 0.9098903234 | E53: =IF(B53<XRON,'constant L'!E53,XOM) -> -0.1127827169 | F53: =IF(B53<XRON,'constant L'!F53,YOM) -> 1.329095851
B54: 14 | C54: =IF(B54<XRON,'constant L'!C54,X) -> 1.049867253 | D54: =IF(B54<XRON,'constant L'!D54,Y) -> 0.8955540713 | E54: =IF(B54<XRON,'constant L'!E54,XOM) -> -0.1591700121 | F54: =IF(B54<XRON,'constant L'!F54,YOM) -> 1.370730918
B55: 15 | C55: =IF(B55<XRON,'constant L'!C55,X) -> 1.12426619 | D55: =IF(B55<XRON,'constant L'!D55,Y) -> 0.880158061 | E55: =IF(B55<XRON,'constant L'!E55,XOM) -> -0.2119069336 | F55: =IF(B55<XRON,'constant L'!F55,YOM) -> 1.412001462
B56: 16 | C56: =IF(B56<XRON,'constant L'!C56,X) -> 1.198542371 | D56: =IF(B56<XRON,'constant L'!D56,Y) -> 0.8637032311 | E56: =IF(B56<XRON,'constant L'!E56,XOM) -> -0.2711430008 | F56: =IF(B56<XRON,'constant L'!F56,YOM) -> 1.452228825
B57: 17 | C57: =IF(B57<XRON,'constant L'!C57,X) -> 1.272687439 | D57: =IF(B57<XRON,'constant L'!D57,Y) -> 0.8461905841 | E57: =IF(B57<XRON,'constant L'!E57,XOM) -> -0.336964562 | F57: =IF(B57<XRON,'constant L'!F57,YOM) -> 1.490713489
B58: 18 | C58: =IF(B58<XRON,'constant L'!C58,X) -> 1.346693063 | D58: =IF(B58<XRON,'constant L'!D58,Y) -> 0.8276211857 | E58: =IF(B58<XRON,'constant L'!E58,XOM) -> -0.4093927372 | F58: =IF(B58<XRON,'constant L'!F58,YOM) -> 1.526740522
B59: 19 | C59: =IF(B59<XRON,'constant L'!C59,X) -> 1.420550936 | D59: =IF(B59<XRON,'constant L'!D59,Y) -> 0.8079961655 | E59: =IF(B59<XRON,'constant L'!E59,XOM) -> -0.4883818046 | F59: =IF(B59<XRON,'constant L'!F59,YOM) -> 1.559585195
B60: 20 | C60: =IF(B60<XRON,'constant L'!C60,X) -> 1.494252776 | D60: =IF(B60<XRON,'constant L'!D60,Y) -> 0.7873167159 | E60: =IF(B60<XRON,'constant L'!E60,XOM) -> -0.5738180478 | F60: =IF(B60<XRON,'constant L'!F60,YOM) -> 1.588518749
B61: 21 | C61: =IF(B61<XRON,'constant L'!C61,X) -> 1.567790319 | D61: =IF(B61<XRON,'constant L'!D61,Y) -> 0.7655840925 | E61: =IF(B61<XRON,'constant L'!E61,XOM) -> -0.6655190725 | F61: =IF(B61<XRON,'constant L'!F61,YOM) -> 1.612814265
B62: 22 | C62: =IF(B62<XRON,'constant L'!C62,X) -> 1.641155329 | D62: =IF(B62<XRON,'constant L'!D62,Y) -> 0.7427996136 | E62: =IF(B62<XRON,'constant L'!E62,XOM) -> -0.7632336046 | F62: =IF(B62<XRON,'constant L'!F62,YOM) -> 1.631752599
B63: 23 | C63: =IF(B63<XRON,'constant L'!C63,X) -> 1.714339585 | D63: =IF(B63<XRON,'constant L'!D63,Y) -> 0.7189646603 | E63: =IF(B63<XRON,'constant L'!E63,XOM) -> -0.8666417732 | F63: =IF(B63<XRON,'constant L'!F63,YOM) -> 1.644628357
B64: 24 | C64: =IF(B64<XRON,'constant L'!C64,X) -> 1.787334893 | D64: =IF(B64<XRON,'constant L'!D64,Y) -> 0.6940806758 | E64: =IF(B64<XRON,'constant L'!E64,XOM) -> -0.9753558831 | F64: =IF(B64<XRON,'constant L'!F64,YOM) -> 1.650755859
B65: 25 | C65: =IF(B65<XRON,'constant L'!C65,X) -> 1.860133076 | D65: =IF(B65<XRON,'constant L'!D65,Y) -> 0.6681491656 | E65: =IF(B65<XRON,'constant L'!E65,XOM) -> -1.088921676 | F65: =IF(B65<XRON,'constant L'!F65,YOM) -> 1.649475053
B66: 26 | C66: =IF(B66<XRON,'constant L'!C66,X) -> 1.932725981 | D66: =IF(B66<XRON,'constant L'!D66,Y) -> 0.641171697 | E66: =IF(B66<XRON,'constant L'!E66,XOM) -> -1.206820081 | F66: =IF(B66<XRON,'constant L'!F66,YOM) -> 1.640157357
B67: 27 | C67: =IF(B67<XRON,'constant L'!C67,X) -> 2.005105476 | D67: =IF(B67<XRON,'constant L'!D67,Y) -> 0.6131498988 | E67: =IF(B67<XRON,'constant L'!E67,XOM) -> -1.328469441 | F67: =IF(B67<XRON,'constant L'!F67,YOM) -> 1.622211365
B68: 28 | C68: =IF(B68<XRON,'constant L'!C68,X) -> 2.077263449 | D68: =IF(B68<XRON,'constant L'!D68,Y) -> 0.5840854615 | E68: =IF(B68<XRON,'constant L'!E68,XOM) -> -1.453228215 | F68: =IF(B68<XRON,'constant L'!F68,YOM) -> 1.595088405
B69: 29 | C69: =IF(B69<XRON,'constant L'!C69,X) -> 2.149191813 | D69: =IF(B69<XRON,'constant L'!D69,Y) -> 0.553980136 | E69: =IF(B69<XRON,'constant L'!E69,XOM) -> -1.58039814 | F69: =IF(B69<XRON,'constant L'!F69,YOM) -> 1.558287894
B70: 30 | C70: =IF(B70<XRON,'constant L'!C70,X) -> 2.220882503 | D70: =IF(B70<XRON,'constant L'!D70,Y) -> 0.5228357347 | E70: =IF(B70<XRON,'constant L'!E70,XOM) -> -1.709227844 | F70: =IF(B70<XRON,'constant L'!F70,YOM) -> 1.511362456
B71: 31 | C71: =IF(B71<XRON,'constant L'!C71,X) -> 2.292327475 | D71: =IF(B71<XRON,'constant L'!D71,Y) -> 0.4906541297 | E71: =IF(B71<XRON,'constant L'!E71,XOM) -> -1.838916876 | F71: =IF(B71<XRON,'constant L'!F71,YOM) -> 1.453922779
B72: 32 | C72: =IF(B72<XRON,'constant L'!C72,X) -> 2.363518709 | D72: =IF(B72<XRON,'constant L'!D72,Y) -> 0.4574372539 | E72: =IF(B72<XRON,'constant L'!E72,XOM) -> -1.96862016 | F72: =IF(B72<XRON,'constant L'!F72,YOM) -> 1.38564216
B73: 33 | C73: =IF(B73<XRON,'constant L'!C73,X) -> 2.434448212 | D73: =IF(B73<XRON,'constant L'!D73,Y) -> 0.4231870995 | E73: =IF(B73<XRON,'constant L'!E73,XOM) -> -2.097452825 | F73: =IF(B73<XRON,'constant L'!F73,YOM) -> 1.306260718
B74: 34 | C74: =IF(B74<XRON,'constant L'!C74,X) -> 2.505108011 | D74: =IF(B74<XRON,'constant L'!D74,Y) -> 0.3879057185 | E74: =IF(B74<XRON,'constant L'!E74,XOM) -> -2.224495403 | F74: =IF(B74<XRON,'constant L'!F74,YOM) -> 1.215589238
B75: 35 | C75: =IF(B75<XRON,'constant L'!C75,X) -> 2.57549016 | D75: =IF(B75<XRON,'constant L'!D75,Y) -> 0.3515952219 | E75: =IF(B75<XRON,'constant L'!E75,XOM) -> -2.348799356 | F75: =IF(B75<XRON,'constant L'!F75,YOM) -> 1.113512618
B76: 36 | C76: =IF(B76<XRON,'constant L'!C76,X) -> 2.645586738 | D76: =IF(B76<XRON,'constant L'!D76,Y) -> 0.3142577795 | E76: =IF(B76<XRON,'constant L'!E76,XOM) -> -2.469392912 | F76: =IF(B76<XRON,'constant L'!F76,YOM) -> 0.9999928931
B77: 37 | C77: =IF(B77<XRON,'constant L'!C77,X) -> 2.71538985 | D77: =IF(B77<XRON,'constant L'!D77,Y) -> 0.2758956196 | E77: =IF(B77<XRON,'constant L'!E77,XOM) -> -2.585287173 | F77: =IF(B77<XRON,'constant L'!F77,YOM) -> 0.8750718054
B78: 38 | C78: =IF(B78<XRON,'constant L'!C78,X) -> 2.784891627 | D78: =IF(B78<XRON,'constant L'!D78,Y) -> 0.2365110284 | E78: =IF(B78<XRON,'constant L'!E78,XOM) -> -2.695482455 | F78: =IF(B78<XRON,'constant L'!F78,YOM) -> 0.738872909
B79: 39 | C79: =IF(B79<XRON,'constant L'!C79,X) -> 2.854084227 | D79: =IF(B79<XRON,'constant L'!D79,Y) -> 0.19610635 | E79: =IF(B79<XRON,'constant L'!E79,XOM) -> -2.79897484 | F79: =IF(B79<XRON,'constant L'!F79,YOM) -> 0.5916031767
B80: 40 | C80: =IF(B80<XRON,'constant L'!C80,X) -> 2.922959835 | D80: =IF(B80<XRON,'constant L'!D80,Y) -> 0.1546839856 | E80: =IF(B80<XRON,'constant L'!E80,XOM) -> -2.894762888 | F80: =IF(B80<XRON,'constant L'!F80,YOM) -> 0.4335540985
B81: 41 | C81: =IF(B81<XRON,'constant L'!C81,X) -> 2.991510664 | D81: =IF(B81<XRON,'constant L'!D81,Y) -> 0.1122463936 | E81: =IF(B81<XRON,'constant L'!E81,XOM) -> -2.981854473 | F81: =IF(B81<XRON,'constant L'!F81,YOM) -> 0.2651022558
B82: 42 | C82: =IF(B82<XRON,'constant L'!C82,X) -> 3.059728956 | D82: =IF(B82<XRON,'constant L'!D82,Y) -> 0.0687960886 | E82: =IF(B82<XRON,'constant L'!E82,XOM) -> -3.059273717 | F82: =IF(B82<XRON,'constant L'!F82,YOM) -> 0.08670935827
B83: 43 | C83: =IF(B83<XRON,'constant L'!C83,X) -> 3.127606981 | D83: =IF(B83<XRON,'constant L'!D83,Y) -> 0.02433564154 | E83: =IF(B83<XRON,'constant L'!E83,XOM) -> -3.126067951 | F83: =IF(B83<XRON,'constant L'!F83,YOM) -> -0.1010782652
B84: 44 | C84: =IF(B84<XRON,'constant L'!C84,X) -> 3.195137039 | D84: =IF(B84<XRON,'constant L'!D84,Y) -> -0.02113232105 | E84: =IF(B84<XRON,'constant L'!E84,XOM) -> -3.1813147 | F84: =IF(B84<XRON,'constant L'!F84,YOM) -> -0.2976307268
B85: 45 | C85: =IF(B85<XRON,'constant L'!C85,X) -> 3.262311459 | D85: =IF(B85<XRON,'constant L'!D85,Y) -> -0.06760511732 | E85: =IF(B85<XRON,'constant L'!E85,XOM) -> -3.224128613 | F85: =IF(B85<XRON,'constant L'!F85,YOM) -> -0.5022361941
B86: 46 | C86: =IF(B86<XRON,'constant L'!C86,X) -> 3.329122603 | D86: =IF(B86<XRON,'constant L'!D86,Y) -> -0.1150800106 | E86: =IF(B86<XRON,'constant L'!E86,XOM) -> -3.253668319 | F86: =IF(B86<XRON,'constant L'!F86,YOM) -> -0.7141030594
B87: 47 | C87: =IF(B87<XRON,'constant L'!C87,X) -> 3.39556286 | D87: =IF(B87<XRON,'constant L'!D87,Y) -> -0.1635542097 | E87: =IF(B87<XRON,'constant L'!E87,XOM) -> -3.269143158 | F87: =IF(B87<XRON,'constant L'!F87,YOM) -> -0.932362658
B88: 48 | C88: =IF(B88<XRON,'constant L'!C88,X) -> 3.461624653 | D88: =IF(B88<XRON,'constant L'!D88,Y) -> -0.2130248696 | E88: =IF(B88<XRON,'constant L'!E88,XOM) -> -3.269819741 | F88: =IF(B88<XRON,'constant L'!F88,YOM) -> -1.15607253
B89: 49 | C89: =IF(B89<XRON,'constant L'!C89,X) -> 3.527300438 | D89: =IF(B89<XRON,'constant L'!D89,Y) -> -0.2634890916 | E89: =IF(B89<XRON,'constant L'!E89,XOM) -> -3.255028306 | F89: =IF(B89<XRON,'constant L'!F89,YOM) -> -1.384220217
B90: 50 | C90: =IF(B90<XRON,'constant L'!C90,X) -> 3.5925827 | D90: =IF(B90<XRON,'constant L'!D90,Y) -> -0.314943924 | E90: =IF(B90<XRON,'constant L'!E90,XOM) -> -3.224168814 | F90: =IF(B90<XRON,'constant L'!F90,YOM) -> -1.615727574
B91: 51 | C91: =IF(B91<XRON,'constant L'!C91,X) -> 3.65746396 | D91: =IF(B91<XRON,'constant L'!D91,Y) -> -0.3673863626 | E91: =IF(B91<XRON,'constant L'!E91,XOM) -> -3.176716762 | F91: =IF(B91<XRON,'constant L'!F91,YOM) -> -1.849455588
B92: 52 | C92: =IF(B92<XRON,'constant L'!C92,X) -> 3.72193677 | D92: =IF(B92<XRON,'constant L'!D92,Y) -> -0.4208133508 | E92: =IF(B92<XRON,'constant L'!E92,XOM) -> -3.112228655 | F92: =IF(B92<XRON,'constant L'!F92,YOM) -> -2.084209682
B93: 53 | C93: =IF(B93<XRON,'constant L'!C93,X) -> 3.785993719 | D93: =IF(B93<XRON,'constant L'!D93,Y) -> -0.4752217805 | E93: =IF(B93<XRON,'constant L'!E93,XOM) -> -3.030347112 | F93: =IF(B93<XRON,'constant L'!F93,YOM) -> -2.318745471
B94: 54 | C94: =IF(B94<XRON,'constant L'!C94,X) -> 3.849627426 | D94: =IF(B94<XRON,'constant L'!D94,Y) -> -0.5306084923 | E94: =IF(B94<XRON,'constant L'!E94,XOM) -> -2.93080556 | F94: =IF(B94<XRON,'constant L'!F94,YOM) -> -2.551774962
B95: 55 | C95: =IF(B95<XRON,'constant L'!C95,X) -> 3.912830547 | D95: =IF(B95<XRON,'constant L'!D95,Y) -> -0.5869702761 | E95: =IF(B95<XRON,'constant L'!E95,XOM) -> -2.813432489 | F95: =IF(B95<XRON,'constant L'!F95,YOM) -> -2.781973154
B96: 56 | C96: =IF(B96<XRON,'constant L'!C96,X) -> 3.975595775 | D96: =IF(B96<XRON,'constant L'!D96,Y) -> -0.6443038716 | E96: =IF(B96<XRON,'constant L'!E96,XOM) -> -2.678155224 | F96: =IF(B96<XRON,'constant L'!F96,YOM) -> -3.007985014
B97: 57 | C97: =IF(B97<XRON,'constant L'!C97,X) -> 4.037915837 | D97: =IF(B97<XRON,'constant L'!D97,Y) -> -0.7026059687 | E97: =IF(B97<XRON,'constant L'!E97,XOM) -> -2.525003196 | F97: =IF(B97<XRON,'constant L'!F97,YOM) -> -3.228432795
B98: 58 | C98: =IF(B98<XRON,'constant L'!C98,X) -> 4.099783494 | D98: =IF(B98<XRON,'constant L'!D98,Y) -> -0.7618732081 | E98: =IF(B98<XRON,'constant L'!E98,XOM) -> -2.35411067 | F98: =IF(B98<XRON,'constant L'!F98,YOM) -> -3.441923653
B99: 59 | C99: =IF(B99<XRON,'constant L'!C99,X) -> 4.161191546 | D99: =IF(B99<XRON,'constant L'!D99,Y) -> -0.8221021817 | E99: =IF(B99<XRON,'constant L'!E99,XOM) -> -2.165718918 | F99: =IF(B99<XRON,'constant L'!F99,YOM) -> -3.647057533
B100: 60 | C100: =IF(B100<XRON,'constant L'!C100,X) -> 4.22213283 | D100: =IF(B100<XRON,'constant L'!D100,Y) -> -0.8832894331 | E100: =IF(B100<XRON,'constant L'!E100,XOM) -> -1.960177795 | F100: =IF(B100<XRON,'constant L'!F100,YOM) -> -3.842435278
B101: 61 | C101: =IF(B101<XRON,'constant L'!C101,X) -> 4.28260022 | D101: =IF(B101<XRON,'constant L'!D101,Y) -> -0.9454314584 | E101: =IF(B101<XRON,'constant L'!E101,XOM) -> -1.737946723 | F101: =IF(B101<XRON,'constant L'!F101,YOM) -> -4.026666918
B102: 62 | C102: =IF(B102<XRON,'constant L'!C102,X) -> 4.342586626 | D102: =IF(B102<XRON,'constant L'!D102,Y) -> -1.008524706 | E102: =IF(B102<XRON,'constant L'!E102,XOM) -> -1.499595037 | F102: =IF(B102<XRON,'constant L'!F102,YOM) -> -4.198380094
B103: 63 | C103: =IF(B103<XRON,'constant L'!C103,X) -> 4.402084998 | D103: =IF(B103<XRON,'constant L'!D103,Y) -> -1.072565579 | E103: =IF(B103<XRON,'constant L'!E103,XOM) -> -1.245801707 | F103: =IF(B103<XRON,'constant L'!F103,YOM) -> -4.356228571
B104: 64 | C104: =IF(B104<XRON,'constant L'!C104,X) -> 4.461088325 | D104: =IF(B104<XRON,'constant L'!D104,Y) -> -1.137550431 | E104: =IF(B104<XRON,'constant L'!E104,XOM) -> -0.9773544022 | F104: =IF(B104<XRON,'constant L'!F104,YOM) -> -4.498900799
B105: 65 | C105: =IF(B105<XRON,'constant L'!C105,X) -> 4.519589633 | D105: =IF(B105<XRON,'constant L'!D105,Y) -> -1.203475575 | E105: =IF(B105<XRON,'constant L'!E105,XOM) -> -0.6951479061 | F105: =IF(B105<XRON,'constant L'!F105,YOM) -> -4.625128463
B106: 66 | C106: =IF(B106<XRON,'constant L'!C106,X) -> 4.577581988 | D106: =IF(B106<XRON,'constant L'!D106,Y) -> -1.270337274 | E106: =IF(B106<XRON,'constant L'!E106,XOM) -> -0.4001818706 | F106: =IF(B106<XRON,'constant L'!F106,YOM) -> -4.733694975
B107: 67 | C107: =IF(B107<XRON,'constant L'!C107,X) -> 4.635058496 | D107: =IF(B107<XRON,'constant L'!D107,Y) -> -1.338131749 | E107: =IF(B107<XRON,'constant L'!E107,XOM) -> -0.09355791216 | F107: =IF(B107<XRON,'constant L'!F107,YOM) -> -4.823443869
B108: 68 | C108: =IF(B108<XRON,'constant L'!C108,X) -> 4.692012303 | D108: =IF(B108<XRON,'constant L'!D108,Y) -> -1.406855176 | E108: =IF(B108<XRON,'constant L'!E108,XOM) -> 0.2235239456 | F108: =IF(B108<XRON,'constant L'!F108,YOM) -> -4.893287033
B109: 69 | C109: =IF(B109<XRON,'constant L'!C109,X) -> 4.748436594 | D109: =IF(B109<XRON,'constant L'!D109,Y) -> -1.476503689 | E109: =IF(B109<XRON,'constant L'!E109,XOM) -> 0.5497694773 | F109: =IF(B109<XRON,'constant L'!F109,YOM) -> -4.942212739
B110: 70 | C110: =IF(B110<XRON,'constant L'!C110,X) -> 4.804324596 | D110: =IF(B110<XRON,'constant L'!D110,Y) -> -1.547073376 | E110: =IF(B110<XRON,'constant L'!E110,XOM) -> 0.883795096 | F110: =IF(B110<XRON,'constant L'!F110,YOM) -> -4.969293419
B111: 71 | C111: =IF(B111<XRON,'constant L'!C111,X) -> 4.859669577 | D111: =IF(B111<XRON,'constant L'!D111,Y) -> -1.618560286 | E111: =IF(B111<XRON,'constant L'!E111,XOM) -> 1.224133314 | F111: =IF(B111<XRON,'constant L'!F111,YOM) -> -4.973693137
B112: 72 | C112: =IF(B112<XRON,'constant L'!C112,X) -> 4.914464844 | D112: =IF(B112<XRON,'constant L'!D112,Y) -> -1.690960424 | E112: =IF(B112<XRON,'constant L'!E112,XOM) -> 1.569238807 | F112: =IF(B112<XRON,'constant L'!F112,YOM) -> -4.954674705
B113: 73 | C113: =IF(B113<XRON,'constant L'!C113,X) -> 4.968703749 | D113: =IF(B113<XRON,'constant L'!D113,Y) -> -1.764269754 | E113: =IF(B113<XRON,'constant L'!E113,XOM) -> 1.917495053 | F113: =IF(B113<XRON,'constant L'!F113,YOM) -> -4.911606401
B114: 74 | C114: =IF(B114<XRON,'constant L'!C114,X) -> 5.022379683 | D114: =IF(B114<XRON,'constant L'!D114,Y) -> -1.8384842 | E114: =IF(B114<XRON,'constant L'!E114,XOM) -> 2.267221529 | F114: =IF(B114<XRON,'constant L'!F114,YOM) -> -4.843968247
B115: 75 | C115: =IF(B115<XRON,'constant L'!C115,X) -> 5.075486081 | D115: =IF(B115<XRON,'constant L'!D115,Y) -> -1.913599643 | E115: =IF(B115<XRON,'constant L'!E115,XOM) -> 2.616681431 | F115: =IF(B115<XRON,'constant L'!F115,YOM) -> -4.75135779
B116: 76 | C116: =IF(B116<XRON,'constant L'!C116,X) -> 5.128016419 | D116: =IF(B116<XRON,'constant L'!D116,Y) -> -1.989611929 | E116: =IF(B116<XRON,'constant L'!E116,XOM) -> 2.964089879 | F116: =IF(B116<XRON,'constant L'!F116,YOM) -> -4.633495356
B117: 77 | C117: =IF(B117<XRON,'constant L'!C117,X) -> 5.179964217 | D117: =IF(B117<XRON,'constant L'!D117,Y) -> -2.06651686 | E117: =IF(B117<XRON,'constant L'!E117,XOM) -> 3.307622582 | F117: =IF(B117<XRON,'constant L'!F117,YOM) -> -4.490228732
B118: 78 | C118: =IF(B118<XRON,'constant L'!C118,X) -> 5.231323036 | D118: =IF(B118<XRON,'constant L'!D118,Y) -> -2.144310202 | E118: =IF(B118<XRON,'constant L'!E118,XOM) -> 3.645424918 | F118: =IF(B118<XRON,'constant L'!F118,YOM) -> -4.32153724
B119: 79 | C119: =IF(B119<XRON,'constant L'!C119,X) -> 5.282086483 | D119: =IF(B119<XRON,'constant L'!D119,Y) -> -2.222987683 | E119: =IF(B119<XRON,'constant L'!E119,XOM) -> 3.975621376 | F119: =IF(B119<XRON,'constant L'!F119,YOM) -> -4.127535163
B120: 80 | C120: =IF(B120<XRON,'constant L'!C120,X) -> 5.332248205 | D120: =IF(B120<XRON,'constant L'!D120,Y) -> -2.302544992 | E120: =IF(B120<XRON,'constant L'!E120,XOM) -> 4.29632534 | F120: =IF(B120<XRON,'constant L'!F120,YOM) -> -3.908474502
B121: 81 | C121: =IF(B121<XRON,'constant L'!C121,X) -> 5.381801897 | D121: =IF(B121<XRON,'constant L'!D121,Y) -> -2.382977782 | E121: =IF(B121<XRON,'constant L'!E121,XOM) -> 4.605649139 | F121: =IF(B121<XRON,'constant L'!F121,YOM) -> -3.664747028
B122: 82 | C122: =IF(B122<XRON,'constant L'!C122,X) -> 5.430741293 | D122: =IF(B122<XRON,'constant L'!D122,Y) -> -2.464281671 | E122: =IF(B122<XRON,'constant L'!E122,XOM) -> 4.90171433 | F122: =IF(B122<XRON,'constant L'!F122,YOM) -> -3.396885598
B123: 83 | C123: =IF(B123<XRON,'constant L'!C123,X) -> 5.479060175 | D123: =IF(B123<XRON,'constant L'!D123,Y) -> -2.546452238 | E123: =IF(B123<XRON,'constant L'!E123,XOM) -> 5.182662163 | F123: =IF(B123<XRON,'constant L'!F123,YOM) -> -3.105564732
B124: 84 | C124: =IF(B124<XRON,'constant L'!C124,X) -> 5.526752367 | D124: =IF(B124<XRON,'constant L'!D124,Y) -> -2.629485029 | E124: =IF(B124<XRON,'constant L'!E124,XOM) -> 5.446664154 | F124: =IF(B124<XRON,'constant L'!F124,YOM) -> -2.791600409
B125: 85 | C125: =IF(B125<XRON,'constant L'!C125,X) -> 5.57381174 | D125: =IF(B125<XRON,'constant L'!D125,Y) -> -2.713375555 | E125: =IF(B125<XRON,'constant L'!E125,XOM) -> 5.691932738 | F125: =IF(B125<XRON,'constant L'!F125,YOM) -> -2.455949088
B126: 86 | C126: =IF(B126<XRON,'constant L'!C126,X) -> 5.620232206 | D126: =IF(B126<XRON,'constant L'!D126,Y) -> -2.798119292 | E126: =IF(B126<XRON,'constant L'!E126,XOM) -> 5.916731919 | F126: =IF(B126<XRON,'constant L'!F126,YOM) -> -2.099705935
B127: 87 | C127: =IF(B127<XRON,'constant L'!C127,X) -> 5.666007725 | D127: =IF(B127<XRON,'constant L'!D127,Y) -> -2.883711683 | E127: =IF(B127<XRON,'constant L'!E127,XOM) -> 6.119387882 | F127: =IF(B127<XRON,'constant L'!F127,YOM) -> -1.724102249
B128: 88 | C128: =IF(B128<XRON,'constant L'!C128,X) -> 5.711132301 | D128: =IF(B128<XRON,'constant L'!D128,Y) -> -2.970148137 | E128: =IF(B128<XRON,'constant L'!E128,XOM) -> 6.298299478 | F128: =IF(B128<XRON,'constant L'!F128,YOM) -> -1.330502088
B129: 89 | C129: =IF(B129<XRON,'constant L'!C129,X) -> 5.755599983 | D129: =IF(B129<XRON,'constant L'!D129,Y) -> -3.057424032 | E129: =IF(B129<XRON,'constant L'!E129,XOM) -> 6.45194856 | F129: =IF(B129<XRON,'constant L'!F129,YOM) -> -0.9203981009
B130: 90 | C130: =IF(B130<XRON,'constant L'!C130,X) -> 5.799404867 | D130: =IF(B130<XRON,'constant L'!D130,Y) -> -3.145534713 | E130: =IF(B130<XRON,'constant L'!E130,XOM) -> 6.578910075 | F130: =IF(B130<XRON,'constant L'!F130,YOM) -> -0.4954065657
B131: 91 | C131: =IF(B131<XRON,'constant L'!C131,X) -> 5.842541091 | D131: =IF(B131<XRON,'constant L'!D131,Y) -> -3.234475494 | E131: =IF(B131<XRON,'constant L'!E131,XOM) -> 6.677861876 | F131: =IF(B131<XRON,'constant L'!F131,YOM) -> -0.05726164857
B132: 92 | C132: =IF(B132<XRON,'constant L'!C132,X) -> 5.885002843 | D132: =IF(B132<XRON,'constant L'!D132,Y) -> -3.324241658 | E132: =IF(B132<XRON,'constant L'!E132,XOM) -> 6.747594179 | F132: =IF(B132<XRON,'constant L'!F132,YOM) -> 0.3921910971
B133: 93 | C133: =IF(B133<XRON,'constant L'!C133,X) -> 5.926784353 | D133: =IF(B133<XRON,'constant L'!D133,Y) -> -3.414828457 | E133: =IF(B133<XRON,'constant L'!E133,XOM) -> 6.787018624 | F133: =IF(B133<XRON,'constant L'!F133,YOM) -> 0.8510019755
B134: 94 | C134: =IF(B134<XRON,'constant L'!C134,X) -> 5.9678799 | D134: =IF(B134<XRON,'constant L'!D134,Y) -> -3.506231114 | E134: =IF(B134<XRON,'constant L'!E134,XOM) -> 6.795176861 | F134: =IF(B134<XRON,'constant L'!F134,YOM) -> 1.317125111
B135: 95 | C135: =IF(B135<XRON,'constant L'!C135,X) -> 6.008283807 | D135: =IF(B135<XRON,'constant L'!D135,Y) -> -3.598444822 | E135: =IF(B135<XRON,'constant L'!E135,XOM) -> 6.771248627 | F135: =IF(B135<XRON,'constant L'!F135,YOM) -> 1.788427096
B136: 96 | C136: =IF(B136<XRON,'constant L'!C136,X) -> 6.047990444 | D136: =IF(B136<XRON,'constant L'!D136,Y) -> -3.691464748 | E136: =IF(B136<XRON,'constant L'!E136,XOM) -> 6.714559245 | F136: =IF(B136<XRON,'constant L'!F136,YOM) -> 2.262696298
B137: 97 | C137: =IF(B137<XRON,'constant L'!C137,X) -> 6.086994228 | D137: =IF(B137<XRON,'constant L'!D137,Y) -> -3.785286026 | E137: =IF(B137<XRON,'constant L'!E137,XOM) -> 6.624586499 | F137: =IF(B137<XRON,'constant L'!F137,YOM) -> 2.73765278
B138: 98 | C138: =IF(B138<XRON,'constant L'!C138,X) -> 6.12528962 | D138: =IF(B138<XRON,'constant L'!D138,Y) -> -3.879903767 | E138: =IF(B138<XRON,'constant L'!E138,XOM) -> 6.500966834 | F138: =IF(B138<XRON,'constant L'!F138,YOM) -> 3.210958797
B139: 99 | C139: =IF(B139<XRON,'constant L'!C139,X) -> 6.16287113 | D139: =IF(B139<XRON,'constant L'!D139,Y) -> -3.975313053 | E139: =IF(B139<XRON,'constant L'!E139,XOM) -> 6.34350084 | F139: =IF(B139<XRON,'constant L'!F139,YOM) -> 3.68022982
B140: 100 | C140: =IF(B140<XRON,'constant L'!C140,X) -> 6.199733313 | D140: =IF(B140<XRON,'constant L'!D140,Y) -> -4.071508939 | E140: =IF(B140<XRON,'constant L'!E140,XOM) -> 6.152157965 | F140: =IF(B140<XRON,'constant L'!F140,YOM) -> 4.143046049
B141: 101 | C141: =IF(B141<XRON,'constant L'!C141,X) -> 6.235870772 | D141: =IF(B141<XRON,'constant L'!D141,Y) -> -4.168486454 | E141: =IF(B141<XRON,'constant L'!E141,XOM) -> 5.927080432 | F141: =IF(B141<XRON,'constant L'!F141,YOM) -> 4.596964342
B142: 102 | C142: =IF(B142<XRON,'constant L'!C142,X) -> 6.271278155 | D142: =IF(B142<XRON,'constant L'!D142,Y) -> -4.266240603 | E142: =IF(B142<XRON,'constant L'!E142,XOM) -> 5.668586306 | F142: =IF(B142<XRON,'constant L'!F142,YOM) -> 5.039530521
B143: 103 | C143: =IF(B143<XRON,'constant L'!C143,X) -> 6.305950158 | D143: =IF(B143<XRON,'constant L'!D143,Y) -> -4.364766366 | E143: =IF(B143<XRON,'constant L'!E143,XOM) -> 5.377171697 | F143: =IF(B143<XRON,'constant L'!F143,YOM) -> 5.468291997
B144: 104 | C144: =IF(B144<XRON,'constant L'!C144,X) -> 6.339881523 | D144: =IF(B144<XRON,'constant L'!D144,Y) -> -4.464058696 | E144: =IF(B144<XRON,'constant L'!E144,XOM) -> 5.05351205 | F144: =IF(B144<XRON,'constant L'!F144,YOM) -> 5.880810635
B145: 105 | C145: =IF(B145<XRON,'constant L'!C145,X) -> 6.373067039 | D145: =IF(B145<XRON,'constant L'!D145,Y) -> -4.564112525 | E145: =IF(B145<XRON,'constant L'!E145,XOM) -> 4.69846252 | F145: =IF(B145<XRON,'constant L'!F145,YOM) -> 6.274675814
B146: 106 | C146: =IF(B146<XRON,'constant L'!C146,X) -> 6.405501542 | D146: =IF(B146<XRON,'constant L'!D146,Y) -> -4.66492276 | E146: =IF(B146<XRON,'constant L'!E146,XOM) -> 4.313057393 | F146: =IF(B146<XRON,'constant L'!F146,YOM) -> 6.647517604
B147: 107 | C147: =IF(B147<XRON,'constant L'!C147,X) -> 6.437179915 | D147: =IF(B147<XRON,'constant L'!D147,Y) -> -4.766484286 | E147: =IF(B147<XRON,'constant L'!E147,XOM) -> 3.898508547 | F147: =IF(B147<XRON,'constant L'!F147,YOM) -> 6.997019996
B148: 108 | C148: =IF(B148<XRON,'constant L'!C148,X) -> 6.468097088 | D148: =IF(B148<XRON,'constant L'!D148,Y) -> -4.868791967 | E148: =IF(B148<XRON,'constant L'!E148,XOM) -> 3.456202947 | F148: =IF(B148<XRON,'constant L'!F148,YOM) -> 7.320934117
B149: 109 | C149: =IF(B149<XRON,'constant L'!C149,X) -> 6.498248038 | D149: =IF(B149<XRON,'constant L'!D149,Y) -> -4.971840641 | E149: =IF(B149<XRON,'constant L'!E149,XOM) -> 2.987699156 | F149: =IF(B149<XRON,'constant L'!F149,YOM) -> 7.617091353
B150: 110 | C150: =IF(B150<XRON,'constant L'!C150,X) -> 6.527627788 | D150: =IF(B150<XRON,'constant L'!D150,Y) -> -5.075625129 | E150: =IF(B150<XRON,'constant L'!E150,XOM) -> 2.494722875 | F150: =IF(B150<XRON,'constant L'!F150,YOM) -> 7.883416313
B151: 111 | C151: =IF(B151<XRON,'constant L'!C151,X) -> 6.556231408 | D151: =IF(B151<XRON,'constant L'!D151,Y) -> -5.180140229 | E151: =IF(B151<XRON,'constant L'!E151,XOM) -> 1.979161512 | F151: =IF(B151<XRON,'constant L'!F151,YOM) -> 8.117939565
B152: 112 | C152: =IF(B152<XRON,'constant L'!C152,X) -> 6.584054016 | D152: =IF(B152<XRON,'constant L'!D152,Y) -> -5.285380721 | E152: =IF(B152<XRON,'constant L'!E152,XOM) -> 1.443057787 | F152: =IF(B152<XRON,'constant L'!F152,YOM) -> 8.318810064
B153: 113 | C153: =IF(B153<XRON,'constant L'!C153,X) -> 6.611090778 | D153: =IF(B153<XRON,'constant L'!D153,Y) -> -5.391341361 | E153: =IF(B153<XRON,'constant L'!E153,XOM) -> 0.8886023958 | F153: =IF(B153<XRON,'constant L'!F153,YOM) -> 8.484307203
B154: 114 | C154: =IF(B154<XRON,'constant L'!C154,X) -> 6.637336903 | D154: =IF(B154<XRON,'constant L'!D154,Y) -> -5.49801689 | E154: =IF(B154<XRON,'constant L'!E154,XOM) -> 0.3181257481 | F154: =IF(B154<XRON,'constant L'!F154,YOM) -> 8.612852425
B155: 115 | C155: =IF(B155<XRON,'constant L'!C155,X) -> 6.66278765 | D155: =IF(B155<XRON,'constant L'!D155,Y) -> -5.605402029 | E155: =IF(B155<XRON,'constant L'!E155,XOM) -> -0.2659111871 | F155: =IF(B155<XRON,'constant L'!F155,YOM) -> 8.703020304
B156: 116 | C156: =IF(B156<XRON,'constant L'!C156,X) -> 6.687438324 | D156: =IF(B156<XRON,'constant L'!D156,Y) -> -5.713491479 | E156: =IF(B156<XRON,'constant L'!E156,XOM) -> -0.8609269062 | F156: =IF(B156<XRON,'constant L'!F156,YOM) -> 8.753549056
B157: 117 | C157: =IF(B157<XRON,'constant L'!C157,X) -> 6.711284278 | D157: =IF(B157<XRON,'constant L'!D157,Y) -> -5.822279925 | E157: =IF(B157<XRON,'constant L'!E157,XOM) -> -1.46423022 | F157: =IF(B157<XRON,'constant L'!F157,YOM) -> 8.763350389
B158: 118 | C158: =IF(B158<XRON,'constant L'!C158,X) -> 6.734320909 | D158: =IF(B158<XRON,'constant L'!D158,Y) -> -5.931762034 | E158: =IF(B158<XRON,'constant L'!E158,XOM) -> -2.073031892 | F158: =IF(B158<XRON,'constant L'!F158,YOM) -> 8.731518637
B159: 119 | C159: =IF(B159<XRON,'constant L'!C159,X) -> 6.756543663 | D159: =IF(B159<XRON,'constant L'!D159,Y) -> -6.041932458 | E159: =IF(B159<XRON,'constant L'!E159,XOM) -> -2.684457011 | F159: =IF(B159<XRON,'constant L'!F159,YOM) -> 8.657339121
B160: 120 | C160: =IF(B160<XRON,'constant L'!C160,X) -> 6.777948033 | D160: =IF(B160<XRON,'constant L'!D160,Y) -> -6.152785829 | E160: =IF(B160<XRON,'constant L'!E160,XOM) -> -3.295558055 | F160: =IF(B160<XRON,'constant L'!F160,YOM) -> 8.540295668
B161: 121 | C161: =IF(B161<XRON,'constant L'!C161,X) -> 6.798529556 | D161: =IF(B161<XRON,'constant L'!D161,Y) -> -6.264316766 | E161: =IF(B161<XRON,'constant L'!E161,XOM) -> -3.903328586 | F161: =IF(B161<XRON,'constant L'!F161,YOM) -> 8.380077244
B162: 122 | C162: =IF(B162<XRON,'constant L'!C162,X) -> 6.818283819 | D162: =IF(B162<XRON,'constant L'!D162,Y) -> -6.376519873 | E162: =IF(B162<XRON,'constant L'!E162,XOM) -> -4.504717515 | F162: =IF(B162<XRON,'constant L'!F162,YOM) -> 8.176583641
B163: 123 | C163: =IF(B163<XRON,'constant L'!C163,X) -> 6.837206453 | D163: =IF(B163<XRON,'constant L'!D163,Y) -> -6.489389736 | E163: =IF(B163<XRON,'constant L'!E163,XOM) -> -5.096643869 | F163: =IF(B163<XRON,'constant L'!F163,YOM) -> 7.92993017
B164: 124 | C164: =IF(B164<XRON,'constant L'!C164,X) -> 6.855293136 | D164: =IF(B164<XRON,'constant L'!D164,Y) -> -6.60292093 | E164: =IF(B164<XRON,'constant L'!E164,XOM) -> -5.676011999 | F164: =IF(B164<XRON,'constant L'!F164,YOM) -> 7.640451334
B165: 125 | C165: =IF(B165<XRON,'constant L'!C165,X) -> 6.872539593 | D165: =IF(B165<XRON,'constant L'!D165,Y) -> -6.717108014 | E165: =IF(B165<XRON,'constant L'!E165,XOM) -> -6.239727155 | F165: =IF(B165<XRON,'constant L'!F165,YOM) -> 7.308703412
B166: 126 | C166: =IF(B166<XRON,'constant L'!C166,X) -> 6.888941595 | D166: =IF(B166<XRON,'constant L'!D166,Y) -> -6.831945534 | E166: =IF(B166<XRON,'constant L'!E166,XOM) -> -6.784711347 | F166: =IF(B166<XRON,'constant L'!F166,YOM) -> 6.935465955
B167: 127 | C167: =IF(B167<XRON,'constant L'!C167,X) -> 6.904494958 | D167: =IF(B167<XRON,'constant L'!D167,Y) -> -6.947428023 | E167: =IF(B167<XRON,'constant L'!E167,XOM) -> -7.307919417 | F167: =IF(B167<XRON,'constant L'!F167,YOM) -> 6.521742141
B168: 128 | C168: =IF(B168<XRON,'constant L'!C168,X) -> 6.919195546 | D168: =IF(B168<XRON,'constant L'!D168,Y) -> -7.063550001 | E168: =IF(B168<XRON,'constant L'!E168,XOM) -> -7.806355249 | F168: =IF(B168<XRON,'constant L'!F168,YOM) -> 6.068757974
B169: 129 | C169: =IF(B169<XRON,'constant L'!C169,X) -> 6.933039268 | D169: =IF(B169<XRON,'constant L'!D169,Y) -> -7.180305975 | E169: =IF(B169<XRON,'constant L'!E169,XOM) -> -8.277088017 | F169: =IF(B169<XRON,'constant L'!F169,YOM) -> 5.577960323
B170: 130 | C170: =IF(B170<XRON,'constant L'!C170,X) -> 6.946022079 | D170: =IF(B170<XRON,'constant L'!D170,Y) -> -7.297690444 | E170: =IF(B170<XRON,'constant L'!E170,XOM) -> -8.717268408 | F170: =IF(B170<XRON,'constant L'!F170,YOM) -> 5.051013764
B171: 131 | C171: =IF(B171<XRON,'constant L'!C171,X) -> 6.95813998 | D171: =IF(B171<XRON,'constant L'!D171,Y) -> -7.415697891 | E171: =IF(B171<XRON,'constant L'!E171,XOM) -> -9.124144718 | F171: =IF(B171<XRON,'constant L'!F171,YOM) -> 4.48979625
B172: 132 | C172: =IF(B172<XRON,'constant L'!C172,X) -> 6.969389017 | D172: =IF(B172<XRON,'constant L'!D172,Y) -> -7.53432279 | E172: =IF(B172<XRON,'constant L'!E172,XOM) -> -9.495078736 | F172: =IF(B172<XRON,'constant L'!F172,YOM) -> 3.896393584
B173: 133 | C173: =IF(B173<XRON,'constant L'!C173,X) -> 6.979765282 | D173: =IF(B173<XRON,'constant L'!D173,Y) -> -7.653559605 | E173: =IF(B173<XRON,'constant L'!E173,XOM) -> -9.827561347 | F173: =IF(B173<XRON,'constant L'!F173,YOM) -> 3.273092727
B174: 134 | C174: =IF(B174<XRON,'constant L'!C174,X) -> 6.989264913 | D174: =IF(B174<XRON,'constant L'!D174,Y) -> -7.773402791 | E174: =IF(B174<XRON,'constant L'!E174,XOM) -> -10.11922773 | F174: =IF(B174<XRON,'constant L'!F174,YOM) -> 2.622373929
B175: 135 | C175: =IF(B175<XRON,'constant L'!C175,X) -> 6.997884092 | D175: =IF(B175<XRON,'constant L'!D175,Y) -> -7.89384679 | E175: =IF(B175<XRON,'constant L'!E175,XOM) -> -10.36787213 | F175: =IF(B175<XRON,'constant L'!F175,YOM) -> 1.946901729
B176: 136 | C176: =IF(B176<XRON,'constant L'!C176,X) -> 7.005619048 | D176: =IF(B176<XRON,'constant L'!D176,Y) -> -8.014886037 | E176: =IF(B176<XRON,'constant L'!E176,XOM) -> -10.57146201 | F176: =IF(B176<XRON,'constant L'!F176,YOM) -> 1.249514838
B177: 137 | C177: =IF(B177<XRON,'constant L'!C177,X) -> 7.012466053 | D177: =IF(B177<XRON,'constant L'!D177,Y) -> -8.136514959 | E177: =IF(B177<XRON,'constant L'!E177,XOM) -> -10.72815164 | F177: =IF(B177<XRON,'constant L'!F177,YOM) -> 0.5332149321
B178: 138 | C178: =IF(B178<XRON,'constant L'!C178,X) -> 7.018421426 | D178: =IF(B178<XRON,'constant L'!D178,Y) -> -8.258727974 | E178: =IF(B178<XRON,'constant L'!E178,XOM) -> -10.83629491 | F178: =IF(B178<XRON,'constant L'!F178,YOM) -> -0.1988455896
B179: 139 | C179: =IF(B179<XRON,'constant L'!C179,X) -> 7.023481529 | D179: =IF(B179<XRON,'constant L'!D179,Y) -> -8.38151949 | E179: =IF(B179<XRON,'constant L'!E179,XOM) -> -10.89445739 | F179: =IF(B179<XRON,'constant L'!F179,YOM) -> -0.9433768467
B180: 140 | C180: =IF(B180<XRON,'constant L'!C180,X) -> 7.02764277 | D180: =IF(B180<XRON,'constant L'!D180,Y) -> -8.50488391 | E180: =IF(B180<XRON,'constant L'!E180,XOM) -> -10.90142746 | F180: =IF(B180<XRON,'constant L'!F180,YOM) -> -1.696965665
B181: 141 | C181: =IF(B181<XRON,'constant L'!C181,X) -> 7.0309016 | D181: =IF(B181<XRON,'constant L'!D181,Y) -> -8.628815629 | E181: =IF(B181<XRON,'constant L'!E181,XOM) -> -10.85622656 | F181: =IF(B181<XRON,'constant L'!F181,YOM) -> -2.456090653
B182: 142 | C182: =IF(B182<XRON,'constant L'!C182,X) -> 7.033254516 | D182: =IF(B182<XRON,'constant L'!D182,Y) -> -8.753309035 | E182: =IF(B182<XRON,'constant L'!E182,XOM) -> -10.75811836 | F182: =IF(B182<XRON,'constant L'!F182,YOM) -> -3.2171381
B183: 143 | C183: =IF(B183<XRON,'constant L'!C183,X) -> 7.034698059 | D183: =IF(B183<XRON,'constant L'!D183,Y) -> -8.878358509 | E183: =IF(B183<XRON,'constant L'!E183,XOM) -> -10.60661687 | F183: =IF(B183<XRON,'constant L'!F183,YOM) -> -3.976418634
B184: 144 | C184: =IF(B184<XRON,'constant L'!C184,X) -> 7.035228813 | D184: =IF(B184<XRON,'constant L'!D184,Y) -> -9.003958428 | E184: =IF(B184<XRON,'constant L'!E184,XOM) -> -10.40149344 | F184: =IF(B184<XRON,'constant L'!F184,YOM) -> -4.730184563
B185: 145 | C185: =IF(B185<XRON,'constant L'!C185,X) -> 7.034843407 | D185: =IF(B185<XRON,'constant L'!D185,Y) -> -9.13010316 | E185: =IF(B185<XRON,'constant L'!E185,XOM) -> -10.1427825 | F185: =IF(B185<XRON,'constant L'!F185,YOM) -> -5.474647813
B186: 146 | C186: =IF(B186<XRON,'constant L'!C186,X) -> 7.033538512 | D186: =IF(B186<XRON,'constant L'!D186,Y) -> -9.256787072 | E186: =IF(B186<XRON,'constant L'!E186,XOM) -> -9.830786071 | F186: =IF(B186<XRON,'constant L'!F186,YOM) -> -6.2059984
B187: 147 | C187: =IF(B187<XRON,'constant L'!C187,X) -> 7.031310845 | D187: =IF(B187<XRON,'constant L'!D187,Y) -> -9.384004523 | E187: =IF(B187<XRON,'constant L'!E187,XOM) -> -9.46607702 | F187: =IF(B187<XRON,'constant L'!F187,YOM) -> -6.92042332
B188: 148 | C188: =IF(B188<XRON,'constant L'!C188,X) -> 7.028157165 | D188: =IF(B188<XRON,'constant L'!D188,Y) -> -9.511749867 | E188: =IF(B188<XRON,'constant L'!E188,XOM) -> -9.049500923 | F188: =IF(B188<XRON,'constant L'!F188,YOM) -> -7.614125801
B189: 149 | C189: =IF(B189<XRON,'constant L'!C189,X) -> 7.024074273 | D189: =IF(B189<XRON,'constant L'!D189,Y) -> -9.640017457 | E189: =IF(B189<XRON,'constant L'!E189,XOM) -> -8.582176593 | F189: =IF(B189<XRON,'constant L'!F189,YOM) -> -8.283344789
B190: 150 | C190: =IF(B190<XRON,'constant L'!C190,X) -> 7.019059017 | D190: =IF(B190<XRON,'constant L'!D190,Y) -> -9.768801638 | E190: =IF(B190<XRON,'constant L'!E190,XOM) -> -8.065495215 | F190: =IF(B190<XRON,'constant L'!F190,YOM) -> -8.924374593
B191: 151 | C191: =IF(B191<XRON,'constant L'!C191,X) -> 7.013108283 | D191: =IF(B191<XRON,'constant L'!D191,Y) -> -9.898096756 | E191: =IF(B191<XRON,'constant L'!E191,XOM) -> -7.501118063 | F191: =IF(B191<XRON,'constant L'!F191,YOM) -> -9.533584583
B192: 152 | C192: =IF(B192<XRON,'constant L'!C192,X) -> 7.006219004 | D192: =IF(B192<XRON,'constant L'!D192,Y) -> -10.02789715 | E192: =IF(B192<XRON,'constant L'!E192,XOM) -> -6.890972796 | F192: =IF(B192<XRON,'constant L'!F192,YOM) -> -10.10743884
B193: 153 | C193: =IF(B193<XRON,'constant L'!C193,X) -> 6.998388153 | D193: =IF(B193<XRON,'constant L'!D193,Y) -> -10.15819716 | E193: =IF(B193<XRON,'constant L'!E193,XOM) -> -6.237248331 | F193: =IF(B193<XRON,'constant L'!F193,YOM) -> -10.64251566
B194: 154 | C194: =IF(B194<XRON,'constant L'!C194,X) -> 6.989612745 | D194: =IF(B194<XRON,'constant L'!D194,Y) -> -10.28899112 | E194: =IF(B194<XRON,'constant L'!E194,XOM) -> -5.542388287 | F194: =IF(B194<XRON,'constant L'!F194,YOM) -> -11.13552678
B195: 155 | C195: =IF(B195<XRON,'constant L'!C195,X) -> 6.979889839 | D195: =IF(B195<XRON,'constant L'!D195,Y) -> -10.42027336 | E195: =IF(B195<XRON,'constant L'!E195,XOM) -> -4.809083019 | F195: =IF(B195<XRON,'constant L'!F195,YOM) -> -11.58333629
B196: 156 | C196: =IF(B196<XRON,'constant L'!C196,X) -> 6.969216535 | D196: =IF(B196<XRON,'constant L'!D196,Y) -> -10.55203822 | E196: =IF(B196<XRON,'constant L'!E196,XOM) -> -4.04026025 | F196: =IF(B196<XRON,'constant L'!F196,YOM) -> -11.98297904
B197: 157 | C197: =IF(B197<XRON,'constant L'!C197,X) -> 6.957589976 | D197: =IF(B197<XRON,'constant L'!D197,Y) -> -10.68428002 | E197: =IF(B197<XRON,'constant L'!E197,XOM) -> -3.239074342 | F197: =IF(B197<XRON,'constant L'!F197,YOM) -> -12.33167852
B198: 158 | C198: =IF(B198<XRON,'constant L'!C198,X) -> 6.945007343 | D198: =IF(B198<XRON,'constant L'!D198,Y) -> -10.81699309 | E198: =IF(B198<XRON,'constant L'!E198,XOM) -> -2.408894224 | F198: =IF(B198<XRON,'constant L'!F198,YOM) -> -12.62686402
B199: 159 | C199: =IF(B199<XRON,'constant L'!C199,X) -> 6.931465864 | D199: =IF(B199<XRON,'constant L'!D199,Y) -> -10.95017176 | E199: =IF(B199<XRON,'constant L'!E199,XOM) -> -1.553290019 | F199: =IF(B199<XRON,'constant L'!F199,YOM) -> -12.86618711
B200: 160 | C200: =IF(B200<XRON,'constant L'!C200,X) -> 6.931465864 | D200: =IF(B200<XRON,'constant L'!D200,Y) -> -10.95017176 | E200: =IF(B200<XRON,'constant L'!E200,XOM) -> -1.553290019 | F200: =IF(B200<XRON,'constant L'!F200,YOM) -> -12.86618711
B201: 161 | C201: =IF(B201<XRON,'constant L'!C201,X) -> 6.931465864 | D201: =IF(B201<XRON,'constant L'!D201,Y) -> -10.95017176 | E201: =IF(B201<XRON,'constant L'!E201,XOM) -> -1.553290019 | F201: =IF(B201<XRON,'constant L'!F201,YOM) -> -12.86618711
B202: 162 | C202: =IF(B202<XRON,'constant L'!C202,X) -> 6.931465864 | D202: =IF(B202<XRON,'constant L'!D202,Y) -> -10.95017176 | E202: =IF(B202<XRON,'constant L'!E202,XOM) -> -1.553290019 | F202: =IF(B202<XRON,'constant L'!F202,YOM) -> -12.86618711
B203: 163 | C203: =IF(B203<XRON,'constant L'!C203,X) -> 6.931465864 | D203: =IF(B203<XRON,'constant L'!D203,Y) -> -10.95017176 | E203: =IF(B203<XRON,'constant L'!E203,XOM) -> -1.553290019 | F203: =IF(B203<XRON,'constant L'!F203,YOM) -> -12.86618711
B204: 164 | C204: =IF(B204<XRON,'constant L'!C204,X) -> 6.931465864 | D204: =IF(B204<XRON,'constant L'!D204,Y) -> -10.95017176 | E204: =IF(B204<XRON,'constant L'!E204,XOM) -> -1.553290019 | F204: =IF(B204<XRON,'constant L'!F204,YOM) -> -12.86618711
B205: 165 | C205: =IF(B205<XRON,'constant L'!C205,X) -> 6.931465864 | D205: =IF(B205<XRON,'constant L'!D205,Y) -> -10.95017176 | E205: =IF(B205<XRON,'constant L'!E205,XOM) -> -1.553290019 | F205: =IF(B205<XRON,'constant L'!F205,YOM) -> -12.86618711
B206: 166 | C206: =IF(B206<XRON,'constant L'!C206,X) -> 6.931465864 | D206: =IF(B206<XRON,'constant L'!D206,Y) -> -10.95017176 | E206: =IF(B206<XRON,'constant L'!E206,XOM) -> -1.553290019 | F206: =IF(B206<XRON,'constant L'!F206,YOM) -> -12.86618711
B207: 167 | C207: =IF(B207<XRON,'constant L'!C207,X) -> 6.931465864 | D207: =IF(B207<XRON,'constant L'!D207,Y) -> -10.95017176 | E207: =IF(B207<XRON,'constant L'!E207,XOM) -> -1.553290019 | F207: =IF(B207<XRON,'constant L'!F207,YOM) -> -12.86618711
B208: 168 | C208: =IF(B208<XRON,'constant L'!C208,X) -> 6.931465864 | D208: =IF(B208<XRON,'constant L'!D208,Y) -> -10.95017176 | E208: =IF(B208<XRON,'constant L'!E208,XOM) -> -1.553290019 | F208: =IF(B208<XRON,'constant L'!F208,YOM) -> -12.86618711
B209: 169 | C209: =IF(B209<XRON,'constant L'!C209,X) -> 6.931465864 | D209: =IF(B209<XRON,'constant L'!D209,Y) -> -10.95017176 | E209: =IF(B209<XRON,'constant L'!E209,XOM) -> -1.553290019 | F209: =IF(B209<XRON,'constant L'!F209,YOM) -> -12.86618711
B210: 170 | C210: =IF(B210<XRON,'constant L'!C210,X) -> 6.931465864 | D210: =IF(B210<XRON,'constant L'!D210,Y) -> -10.95017176 | E210: =IF(B210<XRON,'constant L'!E210,XOM) -> -1.553290019 | F210: =IF(B210<XRON,'constant L'!F210,YOM) -> -12.86618711
B211: 171 | C211: =IF(B211<XRON,'constant L'!C211,X) -> 6.931465864 | D211: =IF(B211<XRON,'constant L'!D211,Y) -> -10.95017176 | E211: =IF(B211<XRON,'constant L'!E211,XOM) -> -1.553290019 | F211: =IF(B211<XRON,'constant L'!F211,YOM) -> -12.86618711
B212: 172 | C212: =IF(B212<XRON,'constant L'!C212,X) -> 6.931465864 | D212: =IF(B212<XRON,'constant L'!D212,Y) -> -10.95017176 | E212: =IF(B212<XRON,'constant L'!E212,XOM) -> -1.553290019 | F212: =IF(B212<XRON,'constant L'!F212,YOM) -> -12.86618711
B213: 173 | C213: =IF(B213<XRON,'constant L'!C213,X) -> 6.931465864 | D213: =IF(B213<XRON,'constant L'!D213,Y) -> -10.95017176 | E213: =IF(B213<XRON,'constant L'!E213,XOM) -> -1.553290019 | F213: =IF(B213<XRON,'constant L'!F213,YOM) -> -12.86618711
B214: 174 | C214: =IF(B214<XRON,'constant L'!C214,X) -> 6.931465864 | D214: =IF(B214<XRON,'constant L'!D214,Y) -> -10.95017176 | E214: =IF(B214<XRON,'constant L'!E214,XOM) -> -1.553290019 | F214: =IF(B214<XRON,'constant L'!F214,YOM) -> -12.86618711
B215: 175 | C215: =IF(B215<XRON,'constant L'!C215,X) -> 6.931465864 | D215: =IF(B215<XRON,'constant L'!D215,Y) -> -10.95017176 | E215: =IF(B215<XRON,'constant L'!E215,XOM) -> -1.553290019 | F215: =IF(B215<XRON,'constant L'!F215,YOM) -> -12.86618711
B216: 176 | C216: =IF(B216<XRON,'constant L'!C216,X) -> 6.931465864 | D216: =IF(B216<XRON,'constant L'!D216,Y) -> -10.95017176 | E216: =IF(B216<XRON,'constant L'!E216,XOM) -> -1.553290019 | F216: =IF(B216<XRON,'constant L'!F216,YOM) -> -12.86618711
B217: 177 | C217: =IF(B217<XRON,'constant L'!C217,X) -> 6.931465864 | D217: =IF(B217<XRON,'constant L'!D217,Y) -> -10.95017176 | E217: =IF(B217<XRON,'constant L'!E217,XOM) -> -1.553290019 | F217: =IF(B217<XRON,'constant L'!F217,YOM) -> -12.86618711
B218: 178 | C218: =IF(B218<XRON,'constant L'!C218,X) -> 6.931465864 | D218: =IF(B218<XRON,'constant L'!D218,Y) -> -10.95017176 | E218: =IF(B218<XRON,'constant L'!E218,XOM) -> -1.553290019 | F218: =IF(B218<XRON,'constant L'!F218,YOM) -> -12.86618711
B219: 179 | C219: =IF(B219<XRON,'constant L'!C219,X) -> 6.931465864 | D219: =IF(B219<XRON,'constant L'!D219,Y) -> -10.95017176 | E219: =IF(B219<XRON,'constant L'!E219,XOM) -> -1.553290019 | F219: =IF(B219<XRON,'constant L'!F219,YOM) -> -12.86618711
B220: 180 | C220: =IF(B220<XRON,'constant L'!C220,X) -> 6.931465864 | D220: =IF(B220<XRON,'constant L'!D220,Y) -> -10.95017176 | E220: =IF(B220<XRON,'constant L'!E220,XOM) -> -1.553290019 | F220: =IF(B220<XRON,'constant L'!F220,YOM) -> -12.86618711
B221: 181 | C221: =IF(B221<XRON,'constant L'!C221,X) -> 6.931465864 | D221: =IF(B221<XRON,'constant L'!D221,Y) -> -10.95017176 | E221: =IF(B221<XRON,'constant L'!E221,XOM) -> -1.553290019 | F221: =IF(B221<XRON,'constant L'!F221,YOM) -> -12.86618711
B222: 182 | C222: =IF(B222<XRON,'constant L'!C222,X) -> 6.931465864 | D222: =IF(B222<XRON,'constant L'!D222,Y) -> -10.95017176 | E222: =IF(B222<XRON,'constant L'!E222,XOM) -> -1.553290019 | F222: =IF(B222<XRON,'constant L'!F222,YOM) -> -12.86618711
B223: 183 | C223: =IF(B223<XRON,'constant L'!C223,X) -> 6.931465864 | D223: =IF(B223<XRON,'constant L'!D223,Y) -> -10.95017176 | E223: =IF(B223<XRON,'constant L'!E223,XOM) -> -1.553290019 | F223: =IF(B223<XRON,'constant L'!F223,YOM) -> -12.86618711
B224: 184 | C224: =IF(B224<XRON,'constant L'!C224,X) -> 6.931465864 | D224: =IF(B224<XRON,'constant L'!D224,Y) -> -10.95017176 | E224: =IF(B224<XRON,'constant L'!E224,XOM) -> -1.553290019 | F224: =IF(B224<XRON,'constant L'!F224,YOM) -> -12.86618711
B225: 185 | C225: =IF(B225<XRON,'constant L'!C225,X) -> 6.931465864 | D225: =IF(B225<XRON,'constant L'!D225,Y) -> -10.95017176 | E225: =IF(B225<XRON,'constant L'!E225,XOM) -> -1.553290019 | F225: =IF(B225<XRON,'constant L'!F225,YOM) -> -12.86618711
B226: 186 | C226: =IF(B226<XRON,'constant L'!C226,X) -> 6.931465864 | D226: =IF(B226<XRON,'constant L'!D226,Y) -> -10.95017176 | E226: =IF(B226<XRON,'constant L'!E226,XOM) -> -1.553290019 | F226: =IF(B226<XRON,'constant L'!F226,YOM) -> -12.86618711
B227: 187 | C227: =IF(B227<XRON,'constant L'!C227,X) -> 6.931465864 | D227: =IF(B227<XRON,'constant L'!D227,Y) -> -10.95017176 | E227: =IF(B227<XRON,'constant L'!E227,XOM) -> -1.553290019 | F227: =IF(B227<XRON,'constant L'!F227,YOM) -> -12.86618711
B228: 188 | C228: =IF(B228<XRON,'constant L'!C228,X) -> 6.931465864 | D228: =IF(B228<XRON,'constant L'!D228,Y) -> -10.95017176 | E228: =IF(B228<XRON,'constant L'!E228,XOM) -> -1.553290019 | F228: =IF(B228<XRON,'constant L'!F228,YOM) -> -12.86618711
B229: 189 | C229: =IF(B229<XRON,'constant L'!C229,X) -> 6.931465864 | D229: =IF(B229<XRON,'constant L'!D229,Y) -> -10.95017176 | E229: =IF(B229<XRON,'constant L'!E229,XOM) -> -1.553290019 | F229: =IF(B229<XRON,'constant L'!F229,YOM) -> -12.86618711
B230: 190 | C230: =IF(B230<XRON,'constant L'!C230,X) -> 6.931465864 | D230: =IF(B230<XRON,'constant L'!D230,Y) -> -10.95017176 | E230: =IF(B230<XRON,'constant L'!E230,XOM) -> -1.553290019 | F230: =IF(B230<XRON,'constant L'!F230,YOM) -> -12.86618711
B231: 191 | C231: =IF(B231<XRON,'constant L'!C231,X) -> 6.931465864 | D231: =IF(B231<XRON,'constant L'!D231,Y) -> -10.95017176 | E231: =IF(B231<XRON,'constant L'!E231,XOM) -> -1.553290019 | F231: =IF(B231<XRON,'constant L'!F231,YOM) -> -12.86618711
B232: 192 | C232: =IF(B232<XRON,'constant L'!C232,X) -> 6.931465864 | D232: =IF(B232<XRON,'constant L'!D232,Y) -> -10.95017176 | E232: =IF(B232<XRON,'constant L'!E232,XOM) -> -1.553290019 | F232: =IF(B232<XRON,'constant L'!F232,YOM) -> -12.86618711
B233: 193 | C233: =IF(B233<XRON,'constant L'!C233,X) -> 6.931465864 | D233: =IF(B233<XRON,'constant L'!D233,Y) -> -10.95017176 | E233: =IF(B233<XRON,'constant L'!E233,XOM) -> -1.553290019 | F233: =IF(B233<XRON,'constant L'!F233,YOM) -> -12.86618711
B234: 194 | C234: =IF(B234<XRON,'constant L'!C234,X) -> 6.931465864 | D234: =IF(B234<XRON,'constant L'!D234,Y) -> -10.95017176 | E234: =IF(B234<XRON,'constant L'!E234,XOM) -> -1.553290019 | F234: =IF(B234<XRON,'constant L'!F234,YOM) -> -12.86618711
B235: 195 | C235: =IF(B235<XRON,'constant L'!C235,X) -> 6.931465864 | D235: =IF(B235<XRON,'constant L'!D235,Y) -> -10.95017176 | E235: =IF(B235<XRON,'constant L'!E235,XOM) -> -1.553290019 | F235: =IF(B235<XRON,'constant L'!F235,YOM) -> -12.86618711
B236: 196 | C236: =IF(B236<XRON,'constant L'!C236,X) -> 6.931465864 | D236: =IF(B236<XRON,'constant L'!D236,Y) -> -10.95017176 | E236: =IF(B236<XRON,'constant L'!E236,XOM) -> -1.553290019 | F236: =IF(B236<XRON,'constant L'!F236,YOM) -> -12.86618711
B237: 197 | C237: =IF(B237<XRON,'constant L'!C237,X) -> 6.931465864 | D237: =IF(B237<XRON,'constant L'!D237,Y) -> -10.95017176 | E237: =IF(B237<XRON,'constant L'!E237,XOM) -> -1.553290019 | F237: =IF(B237<XRON,'constant L'!F237,YOM) -> -12.86618711
B238: 198 | C238: =IF(B238<XRON,'constant L'!C238,X) -> 6.931465864 | D238: =IF(B238<XRON,'constant L'!D238,Y) -> -10.95017176 | E238: =IF(B238<XRON,'constant L'!E238,XOM) -> -1.553290019 | F238: =IF(B238<XRON,'constant L'!F238,YOM) -> -12.86618711
... 52 more rows
